﻿Department family,Entity,Date of payment,Expense type,Expense area,Supplier,Transaction number,Amount in Sterling,Supplier VAT Registration Number
Department of Health,Guys and St Thomas NHS Foundation Trust,28/01/2021,(81400) Medical Surgical Supplies & Equipment,(id:850419) TAP,NHS SUPPLY CHAIN (MAIDSTONE),id:13589614, 154.87
Department of Health,Guys and St Thomas NHS Foundation Trust,15/01/2021,(81100) Dressings,(id:850419) TAP,NHS SUPPLY CHAIN (MAIDSTONE),id:13544798   ,  63.61
Department of Health,Guys and St Thomas NHS Foundation Trust,28/01/2021,(82600) Uniforms & Clothing,(id:850419) TAP,NHS SUPPLY CHAIN (MAIDSTONE),id:13578141   ,   1.52
Department of Health,Guys and St Thomas NHS Foundation Trust,08/01/2021,(81200) Medical Surgical Supplies & Equipment,(id:41900) TAP,ANETIC AID LTD,id:13578294, 561.60
Department of Health,Guys and St Thomas NHS Foundation Trust,15/01/2021,(81700) Lab Equipment Purchase,(id:41897) TAP,NHS SUPPLY CHAIN (MAIDSTONE),id:13559981 ,   9.05
Department of Health,Guys and St Thomas NHS Foundation Trust,15/01/2021,(81100) Dressings,(id:41894) TAP,NHS SUPPLY CHAIN (MAIDSTONE),id:13559981    ,  56.21
Department of Health,Guys and St Thomas NHS Foundation Trust,15/01/2021,(81100) Dressings,(id:41894) TAP,NHS SUPPLY CHAIN (MAIDSTONE),id:13544798    , 111.36
Department of Health,Guys and St Thomas NHS Foundation Trust,08/01/2021,(81280) Medical Surgical Supplies & Equipment,(id:41894) TAP,EDWARDS LIFESCIENCES LTD,id:13535137,1104.00
Department of Health,Guys and St Thomas NHS Foundation Trust,15/01/2021,(82800) Bedding & Linen,(id:41883) TAP,NHS SUPPLY CHAIN (MAIDSTONE),id:13559981   , 361.99
Department of Health,Guys and St Thomas NHS Foundation Trust,15/01/2021,(81700) Lab Equipment Purchase,(id:41883) TAP,NHS SUPPLY CHAIN (MAIDSTONE),id:13544798 ,  40.51
Department of Health,Guys and St Thomas NHS Foundation Trust,15/01/2021,(81100) Dressings,(id:41883) TAP,ELIS UK LIMITED,id:13573834  ,1694.31
Department of Health,Guys and St Thomas NHS Foundation Trust,15/01/2021,(81100) Dressings,(id:41883) TAP,ELIS UK LIMITED,id:13550664  , 814.63
Department of Health,Guys and St Thomas NHS Foundation Trust,28/01/2021,(81100) Dressings,(id:41883) TAP,ELIS UK LIMITED,id:13696074  ,1769.81
Department of Health,Guys and St Thomas NHS Foundation Trust,28/01/2021,(81200) Medical Surgical Supplies & Equipment,(id:41883) TAP,NHS SUPPLY CHAIN (MAIDSTONE),id:13589614 ,3053.23
Department of Health,Guys and St Thomas NHS Foundation Trust,08/01/2021,(81200) Medical Surgical Supplies & Equipment,(id:41883) TAP,JOHNSON & JOHNSON MEDICAL LTD,id:13574190, 121.37
Department of Health,Guys and St Thomas NHS Foundation Trust,08/01/2021,(81200) Medical Surgical Supplies & Equipment,(id:41883) TAP,JOHNSON & JOHNSON MEDICAL LTD,id:13565063, 136.17
Department of Health,Guys and St Thomas NHS Foundation Trust,28/01/2021,(81200) Medical Surgical Supplies & Equipment,(id:41883) TAP,JOHNSON & JOHNSON MEDICAL LTD,id:13585519, 542.76
Department of Health,Guys and St Thomas NHS Foundation Trust,15/01/2021,(84500) Establishment,(id:41883) TAP,CDP  PRINT MANAGEMENT,id:13614396  ,   3.60
Department of Health,Guys and St Thomas NHS Foundation Trust,15/01/2021,(81255) Medical Surgical Supplies & Equipment,(id:41883) TAP,NHS SUPPLY CHAIN (MAIDSTONE),id:13544798 ,  20.59
Department of Health,Guys and St Thomas NHS Foundation Trust,15/01/2021,(83400) Office Equipment,(id:41883) TAP,NHS SUPPLY CHAIN (MAIDSTONE),id:13544798  ,1441.99
Department of Health,Guys and St Thomas NHS Foundation Trust,15/01/2021,(81200) Medical Surgical Supplies & Equipment,(id:41907) TAP,NHS SUPPLY CHAIN (MAIDSTONE),id:13559981 ,1403.18
Department of Health,Guys and St Thomas NHS Foundation Trust,28/01/2021,(81200) Medical Surgical Supplies & Equipment,(id:41907) TAP,NHS SUPPLY CHAIN (MAIDSTONE),id:13598214 , 977.06
Department of Health,Guys and St Thomas NHS Foundation Trust,15/01/2021,(81100) Dressings,(id:41907) TAP,NHS SUPPLY CHAIN (MAIDSTONE),id:13544798    ,  73.28
Department of Health,Guys and St Thomas NHS Foundation Trust,28/01/2021,(82600) Uniforms & Clothing,(id:41907) TAP,NHS SUPPLY CHAIN (MAIDSTONE),id:13589614    ,   2.16
Department of Health,Guys and St Thomas NHS Foundation Trust,28/01/2021,(83400) Office Equipment,(id:41907) TAP,NHS SUPPLY CHAIN (MAIDSTONE),id:13578141  ,  24.98
Department of Health,Guys and St Thomas NHS Foundation Trust,15/01/2021,(83400) Office Equipment,(id:41906) TAP,NHS SUPPLY CHAIN (MAIDSTONE),id:13544798  , 593.44
Department of Health,Guys and St Thomas NHS Foundation Trust,28/01/2021,(83400) Office Equipment,(id:41906) TAP,NHS SUPPLY CHAIN (MAIDSTONE),id:13589614  , 224.22
Department of Health,Guys and St Thomas NHS Foundation Trust,28/01/2021,(82800) Bedding & Linen,(id:41906) TAP,NHS SUPPLY CHAIN (MAIDSTONE),id:13598214   ,  11.16
Department of Health,Guys and St Thomas NHS Foundation Trust,28/01/2021,(81200) Medical Surgical Supplies & Equipment,(id:41906) TAP,INTERSURGICAL LTD,id:13664034  ,1056.00
Department of Health,Guys and St Thomas NHS Foundation Trust,28/01/2021,(82600) Uniforms & Clothing,(id:41906) TAP,BUNZL HEALTHCARE,id:13683774 ,1007.52
Department of Health,Guys and St Thomas NHS Foundation Trust,15/01/2021,(81200) Medical Surgical Supplies & Equipment,(id:41905) TAP,NHS SUPPLY CHAIN (MAIDSTONE),id:13544798 ,8603.18
Department of Health,Guys and St Thomas NHS Foundation Trust,28/01/2021,(81200) Medical Surgical Supplies & Equipment,(id:41905) TAP,NHS SUPPLY CHAIN (MAIDSTONE),id:13598214 ,1440.41
Department of Health,Guys and St Thomas NHS Foundation Trust,15/01/2021,(83400) Office Equipment,(id:41905) TAP,NHS SUPPLY CHAIN (MAIDSTONE),id:13559981  , 239.10
Department of Health,Guys and St Thomas NHS Foundation Trust,15/01/2021,(84500) Establishment,(id:2549419) TAP,CDP  PRINT MANAGEMENT,id:13614400,  22.20
Department of Health,Guys and St Thomas NHS Foundation Trust,28/01/2021,(81255) Medical Surgical Supplies & Equipment,(id:41913) TAP,NHS SUPPLY CHAIN (MAIDSTONE),id:13578141 ,  27.85
Department of Health,Guys and St Thomas NHS Foundation Trust,28/01/2021,(81100) Dressings,(id:41913) TAP,NHS SUPPLY CHAIN (MAIDSTONE),id:13598214    , 417.13
Department of Health,Guys and St Thomas NHS Foundation Trust,28/01/2021,(82600) Uniforms & Clothing,(id:41913) TAP,NHS SUPPLY CHAIN (MAIDSTONE),id:13598214    ,   5.04
Department of Health,Guys and St Thomas NHS Foundation Trust,15/01/2021,(82800) Bedding & Linen,(id:41913) TAP,NHS SUPPLY CHAIN (MAIDSTONE),id:13544798   , 183.31
Department of Health,Guys and St Thomas NHS Foundation Trust,28/01/2021,(83500) Furniture & Fittings,(id:41913) TAP,TECHNIBLINDS LTD,id:13626935,1000.80
Department of Health,Guys and St Thomas NHS Foundation Trust,15/01/2021,(84500) Establishment,(id:41911) TAP,CDP  PRINT MANAGEMENT,id:13614401  ,  34.10
Department of Health,Guys and St Thomas NHS Foundation Trust,28/01/2021,(82000) Provisions & Kitchens,(id:41918) TAP,NHS SUPPLY CHAIN (MAIDSTONE),id:13598214  ,  10.14
Department of Health,Guys and St Thomas NHS Foundation Trust,15/01/2021,(84500) Establishment,(id:41918) TAP,CDP  PRINT MANAGEMENT,id:13614399  ,  12.40
Department of Health,Guys and St Thomas NHS Foundation Trust,15/01/2021,(84500) Establishment,(id:41918) TAP,CDP  PRINT MANAGEMENT,id:13614396  ,   3.10
Department of Health,Guys and St Thomas NHS Foundation Trust,08/01/2021,(81200) Medical Surgical Supplies & Equipment,(id:41918) TAP,JOHNSON & JOHNSON MEDICAL LTD,id:13484790,    11730.00
Department of Health,Guys and St Thomas NHS Foundation Trust,08/01/2021,(81100) Dressings,(id:41918) TAP,ELIS UK LIMITED,id:13570374  , 471.90
Department of Health,Guys and St Thomas NHS Foundation Trust,08/01/2021,(81100) Dressings,(id:41918) TAP,ELIS UK LIMITED,id:13565935  , 543.50
Department of Health,Guys and St Thomas NHS Foundation Trust,28/01/2021,(81255) Medical Surgical Supplies & Equipment,(id:41918) TAP,NHS SUPPLY CHAIN (MAIDSTONE),id:13598214 ,   4.37
Department of Health,Guys and St Thomas NHS Foundation Trust,28/01/2021,(82800) Bedding & Linen,(id:41916) TAP,NHS SUPPLY CHAIN (MAIDSTONE),id:13589614   ,  29.03
Department of Health,Guys and St Thomas NHS Foundation Trust,15/01/2021,(84500) Establishment,(id:41916) TAP,CDP  PRINT MANAGEMENT,id:13614394  ,  17.50
Department of Health,Guys and St Thomas NHS Foundation Trust,15/01/2021,(81100) Dressings,(id:41916) TAP,NHS SUPPLY CHAIN (MAIDSTONE),id:13544798    , 180.07
Department of Health,Guys and St Thomas NHS Foundation Trust,28/01/2021,(81100) Dressings,(id:41916) TAP,NHS SUPPLY CHAIN (MAIDSTONE),id:13578141    , 365.41
Department of Health,Guys and St Thomas NHS Foundation Trust,15/01/2021,(83400) Office Equipment,(id:41916) TAP,NHS SUPPLY CHAIN (MAIDSTONE),id:13544798  , 329.39
Department of Health,Guys and St Thomas NHS Foundation Trust,28/01/2021,(83400) Office Equipment,(id:41916) TAP,NHS SUPPLY CHAIN (MAIDSTONE),id:13598214  ,  16.71
Department of Health,Guys and St Thomas NHS Foundation Trust,15/01/2021,(81230) Medical Surgical Supplies & Equipment,(id:41916) TAP,NHS SUPPLY CHAIN (MAIDSTONE),id:13544798 ,   6.60
Department of Health,Guys and St Thomas NHS Foundation Trust,15/01/2021,(82800) Bedding & Linen,(id:41922) TAP,NHS SUPPLY CHAIN (MAIDSTONE),id:13559981   ,  31.97
Department of Health,Guys and St Thomas NHS Foundation Trust,15/01/2021,(84500) Establishment,(id:41921) TAP,CDP  PRINT MANAGEMENT,id:13614401  ,  12.40
Department of Health,Guys and St Thomas NHS Foundation Trust,15/01/2021,(81100) Dressings,(id:41921) TAP,NHS SUPPLY CHAIN (MAIDSTONE),id:13559981    , 355.14
Department of Health,Guys and St Thomas NHS Foundation Trust,28/01/2021,(81275) Medical Surgical Supplies & Equipment,(id:41921) TAP,NHS SUPPLY CHAIN (MAIDSTONE),id:13589614 ,   5.40
Department of Health,Guys and St Thomas NHS Foundation Trust,28/01/2021,(82700) Uniforms & Clothing,(id:41958) Gastrointestinal Medicine & Surgery,NHS SUPPLY CHAIN (MAIDSTONE),id:13598214  ,  31.68
Department of Health,Guys and St Thomas NHS Foundation Trust,15/01/2021,(50522) Unqualified Nursing Staff,(id:41958) Gastrointestinal Medicine & Surgery,GLOBE LOCUMS LTD,id:13629318   , 239.71
Department of Health,Guys and St Thomas NHS Foundation Trust,28/01/2021,(81225) Medical Surgical Supplies & Equipment,(id:41958) Gastrointestinal Medicine & Surgery,NHS SUPPLY CHAIN (MAIDSTONE),id:13589614    ,  14.55
Department of Health,Guys and St Thomas NHS Foundation Trust,28/01/2021,(81225) Medical Surgical Supplies & Equipment,(id:41958) Gastrointestinal Medicine & Surgery,NHS SUPPLY CHAIN (MAIDSTONE),id:13598214    ,  14.55
Department of Health,Guys and St Thomas NHS Foundation Trust,15/01/2021,(81000) Surgical Appliances,(id:41956) Gastrointestinal Medicine & Surgery,TALAR MADE ORTHOTICS LTD,id:13624754 ,  29.40
Department of Health,Guys and St Thomas NHS Foundation Trust,15/01/2021,(84500) Establishment,(id:41954) Gastrointestinal Medicine & Surgery,CDP  PRINT MANAGEMENT,id:13614397,   7.20
Department of Health,Guys and St Thomas NHS Foundation Trust,28/01/2021,(81200) Medical Surgical Supplies & Equipment,(id:41954) Gastrointestinal Medicine & Surgery,NHS SUPPLY CHAIN (MAIDSTONE),id:13598214    , 322.32
Department of Health,Guys and St Thomas NHS Foundation Trust,15/01/2021,(81100) Dressings,(id:41954) Gastrointestinal Medicine & Surgery,NHS SUPPLY CHAIN (MAIDSTONE),id:13544798  , 615.73
Department of Health,Guys and St Thomas NHS Foundation Trust,28/01/2021,(50552) Qualified Nursing Staff,(id:41954) Gastrointestinal Medicine & Surgery,MSI GROUP LTD,id:13694440   , 357.81
Department of Health,Guys and St Thomas NHS Foundation Trust,08/01/2021,(50552) Qualified Nursing Staff,(id:41954) Gastrointestinal Medicine & Surgery,CONTINENTAL NURSE LTD,id:13611835,2332.38
Department of Health,Guys and St Thomas NHS Foundation Trust,15/01/2021,(81255) Medical Surgical Supplies & Equipment,(id:41954) Gastrointestinal Medicine & Surgery,NHS SUPPLY CHAIN (MAIDSTONE),id:13559981    ,   5.29
Department of Health,Guys and St Thomas NHS Foundation Trust,28/01/2021,(81700) Lab Equipment Purchase,(id:41954) Gastrointestinal Medicine & Surgery,NHS SUPPLY CHAIN (MAIDSTONE),id:13589614    ,   3.14
Department of Health,Guys and St Thomas NHS Foundation Trust,28/01/2021,(81700) Lab Equipment Purchase,(id:41954) Gastrointestinal Medicine & Surgery,NHS SUPPLY CHAIN (MAIDSTONE),id:13598214    ,  11.86
Department of Health,Guys and St Thomas NHS Foundation Trust,08/01/2021,(81100) Dressings,(id:41949) Gastrointestinal Medicine & Surgery,JOHNSON & JOHNSON MEDICAL LTD,id:13558267 , 678.78
Department of Health,Guys and St Thomas NHS Foundation Trust,08/01/2021,(81200) Medical Surgical Supplies & Equipment,(id:41949) Gastrointestinal Medicine & Surgery,JOHNSON & JOHNSON MEDICAL LTD,id:13561743   , 199.98
Department of Health,Guys and St Thomas NHS Foundation Trust,08/01/2021,(81200) Medical Surgical Supplies & Equipment,(id:41949) Gastrointestinal Medicine & Surgery,LOCAMED LTD,id:13584338 , 264.00
Department of Health,Guys and St Thomas NHS Foundation Trust,08/01/2021,(81200) Medical Surgical Supplies & Equipment,(id:41949) Gastrointestinal Medicine & Surgery,JOHNSON & JOHNSON MEDICAL LTD,id:13561735   , 295.40
Department of Health,Guys and St Thomas NHS Foundation Trust,08/01/2021,(81200) Medical Surgical Supplies & Equipment,(id:41949) Gastrointestinal Medicine & Surgery,JOHNSON & JOHNSON MEDICAL LTD,id:13565088   , 353.83
Department of Health,Guys and St Thomas NHS Foundation Trust,22/01/2021,(81200) Medical Surgical Supplies & Equipment,(id:41949) Gastrointestinal Medicine & Surgery,JOHNSON & JOHNSON MEDICAL LTD,id:13602379   ,1131.89
Department of Health,Guys and St Thomas NHS Foundation Trust,28/01/2021,(81200) Medical Surgical Supplies & Equipment,(id:41949) Gastrointestinal Medicine & Surgery,H&R HEALTHCARE LTD,id:13685414    ,7812.00
Department of Health,Guys and St Thomas NHS Foundation Trust,15/01/2021,(82000) Provisions & Kitchens,(id:2367419) Gastrointestinal Medicine & Surgery,NHS SUPPLY CHAIN (MAIDSTONE),id:13544798   ,  21.36
Department of Health,Guys and St Thomas NHS Foundation Trust,28/01/2021,(82800) Bedding & Linen,(id:2367419) Gastrointestinal Medicine & Surgery,NHS SUPPLY CHAIN (MAIDSTONE),id:13589614    , 144.63
Department of Health,Guys and St Thomas NHS Foundation Trust,28/01/2021,(82800) Bedding & Linen,(id:2367419) Gastrointestinal Medicine & Surgery,NHS SUPPLY CHAIN (MAIDSTONE),id:13578141    ,  53.51
Department of Health,Guys and St Thomas NHS Foundation Trust,28/01/2021,(81255) Medical Surgical Supplies & Equipment,(id:2367419) Gastrointestinal Medicine & Surgery,NHS SUPPLY CHAIN (MAIDSTONE),id:13589614  ,   1.87
Department of Health,Guys and St Thomas NHS Foundation Trust,15/01/2021,(81255) Medical Surgical Supplies & Equipment,(id:2367419) Gastrointestinal Medicine & Surgery,NHS SUPPLY CHAIN (MAIDSTONE),id:13559981  ,   1.55
Department of Health,Guys and St Thomas NHS Foundation Trust,28/01/2021,(81200) Medical Surgical Supplies & Equipment,(id:1064419) Gastrointestinal Medicine & Surgery,CORPTELUK,id:13669554 ,   7.21
Department of Health,Guys and St Thomas NHS Foundation Trust,15/01/2021,(81200) Medical Surgical Supplies & Equipment,(id:41957) Gastrointestinal Medicine & Surgery,NHS SUPPLY CHAIN (MAIDSTONE),id:13559981    ,   8.11
Department of Health,Guys and St Thomas NHS Foundation Trust,08/01/2021,(81200) Medical Surgical Supplies & Equipment,(id:41942) Gastrointestinal Medicine & Surgery,FUNCTIONAL GUT DIAGNOSTICS LTD,id:13605735  ,  36.00
Department of Health,Guys and St Thomas NHS Foundation Trust,05/01/2021,(83640) IT Costs,(id:41942) Gastrointestinal Medicine & Surgery,BIOCOMPUTING PLATFORMS LTD OY,id:12930014  ,3260.00
Department of Health,Guys and St Thomas NHS Foundation Trust,08/01/2021,(81700) Lab Equipment Purchase,(id:41942) Gastrointestinal Medicine & Surgery,FUNCTIONAL GUT DIAGNOSTICS LTD,id:13605735  ,4375.00
Department of Health,Guys and St Thomas NHS Foundation Trust,15/01/2021,(81700) Lab Equipment Purchase,(id:41942) Gastrointestinal Medicine & Surgery,NHS SUPPLY CHAIN (MAIDSTONE),id:13544798    ,  40.38
Department of Health,Guys and St Thomas NHS Foundation Trust,15/01/2021,(82800) Bedding & Linen,(id:41917) Gastrointestinal Medicine & Surgery,NHS SUPPLY CHAIN (MAIDSTONE),id:13544798 ,  67.39
Department of Health,Guys and St Thomas NHS Foundation Trust,28/01/2021,(82700) Uniforms & Clothing,(id:41917) Gastrointestinal Medicine & Surgery,NHS SUPPLY CHAIN (MAIDSTONE),id:13578141  , 626.83
Department of Health,Guys and St Thomas NHS Foundation Trust,08/01/2021,(81235) Medical Surgical Supplies & Equipment,(id:41917) Gastrointestinal Medicine & Surgery,BOSTON SCIENTIFIC LTD,id:13583412 ,2174.10
Department of Health,Guys and St Thomas NHS Foundation Trust,08/01/2021,(81235) Medical Surgical Supplies & Equipment,(id:41917) Gastrointestinal Medicine & Surgery,BOSTON SCIENTIFIC LTD,id:13583417 ,1536.66
Department of Health,Guys and St Thomas NHS Foundation Trust,22/01/2021,(81200) Medical Surgical Supplies & Equipment,(id:41917) Gastrointestinal Medicine & Surgery,SYNECTICS MEDICAL LTD (SYNMED),id:13614831  ,2541.60
Department of Health,Guys and St Thomas NHS Foundation Trust,22/01/2021,(81200) Medical Surgical Supplies & Equipment,(id:41917) Gastrointestinal Medicine & Surgery,BOSTON SCIENTIFIC LTD,id:13597750 ,3480.00
Department of Health,Guys and St Thomas NHS Foundation Trust,08/01/2021,(81200) Medical Surgical Supplies & Equipment,(id:41917) Gastrointestinal Medicine & Surgery,SYNECTICS MEDICAL LTD (SYNMED),id:13609945  ,2151.60
Department of Health,Guys and St Thomas NHS Foundation Trust,08/01/2021,(81200) Medical Surgical Supplies & Equipment,(id:41917) Gastrointestinal Medicine & Surgery,MEDTRONIC LTD,id:13585496    ,4140.00
Department of Health,Guys and St Thomas NHS Foundation Trust,28/01/2021,(81200) Medical Surgical Supplies & Equipment,(id:41917) Gastrointestinal Medicine & Surgery,NHS SUPPLY CHAIN (MAIDSTONE),id:13589614    ,8799.33
Department of Health,Guys and St Thomas NHS Foundation Trust,28/01/2021,(81200) Medical Surgical Supplies & Equipment,(id:41917) Gastrointestinal Medicine & Surgery,DIAGMED HEALTHCARE LTD,id:13680414, 936.00
Department of Health,Guys and St Thomas NHS Foundation Trust,28/01/2021,(81200) Medical Surgical Supplies & Equipment,(id:41917) Gastrointestinal Medicine & Surgery,SYNECTICS MEDICAL LTD (SYNMED),id:13682414  ,2541.60
Department of Health,Guys and St Thomas NHS Foundation Trust,28/01/2021,(81200) Medical Surgical Supplies & Equipment,(id:41917) Gastrointestinal Medicine & Surgery,MEDTRONIC LTD,id:13615275    ,3870.00
Department of Health,Guys and St Thomas NHS Foundation Trust,15/01/2021,(81200) Medical Surgical Supplies & Equipment,(id:41917) Gastrointestinal Medicine & Surgery,NHS SUPPLY CHAIN (MAIDSTONE),id:13559981    ,1443.74
Department of Health,Guys and St Thomas NHS Foundation Trust,28/01/2021,(81400) Medical Surgical Supplies & Equipment,(id:41917) Gastrointestinal Medicine & Surgery,NHS SUPPLY CHAIN (MAIDSTONE),id:13578141    ,4153.24
Department of Health,Guys and St Thomas NHS Foundation Trust,08/01/2021,(83610) IT Costs,(id:41917) Gastrointestinal Medicine & Surgery,OFFICE DEPOT UK LTD,id:13576819  ,1048.80
Department of Health,Guys and St Thomas NHS Foundation Trust,08/01/2021,(50552) Qualified Nursing Staff,(id:41917) Gastrointestinal Medicine & Surgery,SIRONA MEDICAL LIMITED,id:13611751    , 486.21
Department of Health,Guys and St Thomas NHS Foundation Trust,08/01/2021,(50552) Qualified Nursing Staff,(id:41917) Gastrointestinal Medicine & Surgery,CONTINENTAL NURSE LTD,id:13611774,1946.36
Department of Health,Guys and St Thomas NHS Foundation Trust,28/01/2021,(81255) Medical Surgical Supplies & Equipment,(id:41917) Gastrointestinal Medicine & Surgery,NHS SUPPLY CHAIN (MAIDSTONE),id:13589614    , 110.40
Department of Health,Guys and St Thomas NHS Foundation Trust,15/01/2021,(86300) Healthcare from non-NHS bodies,(id:2534420) Gastrointestinal Medicine & Surgery,18 WEEK SUPPORT LIMITED,id:13627194    ,    23800.00
Department of Health,Guys and St Thomas NHS Foundation Trust,15/01/2021,(81900) Lab Equipment Purchase,(id:111406) Pathology,VIAPATH SERVICES LLP,id:13523191  ,8415.00
Department of Health,Guys and St Thomas NHS Foundation Trust,22/01/2021,(83880) Building & Engineering,(id:3821419) Cancer Strategy,CER LONG LANE LTD,id:13661877   ,9628.00
Department of Health,Guys and St Thomas NHS Foundation Trust,15/01/2021,(81200) Medical Surgical Supplies & Equipment,(id:2625419) Transplant Renal and Urology,BARD LTD,id:13597024    , 666.36
Department of Health,Guys and St Thomas NHS Foundation Trust,15/01/2021,(84500) Establishment,(id:42419) Transplant Renal and Urology,CDP  PRINT MANAGEMENT,id:13614396  ,  52.50
Department of Health,Guys and St Thomas NHS Foundation Trust,15/01/2021,(81100) Dressings,(id:42419) Transplant Renal and Urology,NHS SUPPLY CHAIN (MAIDSTONE),id:13544798    , 320.96
Department of Health,Guys and St Thomas NHS Foundation Trust,28/01/2021,(81200) Medical Surgical Supplies & Equipment,(id:42419) Transplant Renal and Urology,NHS SUPPLY CHAIN (MAIDSTONE),id:13589614 , 472.35
Department of Health,Guys and St Thomas NHS Foundation Trust,28/01/2021,(81225) Medical Surgical Supplies & Equipment,(id:42419) Transplant Renal and Urology,NHS SUPPLY CHAIN (MAIDSTONE),id:13598214 ,  30.48
Department of Health,Guys and St Thomas NHS Foundation Trust,28/01/2021,(81700) Lab Equipment Purchase,(id:42419) Transplant Renal and Urology,NHS SUPPLY CHAIN (MAIDSTONE),id:13578141 ,  35.43
Department of Health,Guys and St Thomas NHS Foundation Trust,15/01/2021,(84500) Establishment,(id:2882419) Transplant Renal and Urology,CDP  PRINT MANAGEMENT,id:13614395, 100.80
Department of Health,Guys and St Thomas NHS Foundation Trust,28/01/2021,(81200) Medical Surgical Supplies & Equipment,(id:2882419) Transplant Renal and Urology,NHS SUPPLY CHAIN (MAIDSTONE),id:13578141    ,1311.36
Department of Health,Guys and St Thomas NHS Foundation Trust,08/01/2021,(81200) Medical Surgical Supplies & Equipment,(id:42450) Transplant Renal and Urology,STRYKER UK LTD,id:13556604, 613.87
Department of Health,Guys and St Thomas NHS Foundation Trust,15/01/2021,(81200) Medical Surgical Supplies & Equipment,(id:42450) Transplant Renal and Urology,STRYKER UK LTD,id:13634594, 613.87
Department of Health,Guys and St Thomas NHS Foundation Trust,08/01/2021,(81200) Medical Surgical Supplies & Equipment,(id:42450) Transplant Renal and Urology,MEDTRONIC LTD,id:13570994 , 931.18
Department of Health,Guys and St Thomas NHS Foundation Trust,28/01/2021,(83400) Office Equipment,(id:42447) Transplant Renal and Urology,NHS SUPPLY CHAIN (MAIDSTONE),id:13589614  , 162.79
Department of Health,Guys and St Thomas NHS Foundation Trust,15/01/2021,(81400) Medical Surgical Supplies & Equipment,(id:42447) Transplant Renal and Urology,NHS SUPPLY CHAIN ( CAPITAL FUND ONLY),id:13627262  , 405.41
Department of Health,Guys and St Thomas NHS Foundation Trust,28/01/2021,(81700) Lab Equipment Purchase,(id:42447) Transplant Renal and Urology,NHS SUPPLY CHAIN (MAIDSTONE),id:13578141 ,  39.88
Department of Health,Guys and St Thomas NHS Foundation Trust,28/01/2021,(81225) Medical Surgical Supplies & Equipment,(id:42447) Transplant Renal and Urology,NHS SUPPLY CHAIN (MAIDSTONE),id:13578141 ,   6.24
Department of Health,Guys and St Thomas NHS Foundation Trust,28/01/2021,(81230) Medical Surgical Supplies & Equipment,(id:42447) Transplant Renal and Urology,NHS SUPPLY CHAIN (MAIDSTONE),id:13598214 ,  70.92
Department of Health,Guys and St Thomas NHS Foundation Trust,22/01/2021,(81200) Medical Surgical Supplies & Equipment,(id:42446) Transplant Renal and Urology,BOSTON SCIENTIFIC LTD,id:13665945   ,5216.94
Department of Health,Guys and St Thomas NHS Foundation Trust,28/01/2021,(81200) Medical Surgical Supplies & Equipment,(id:42446) Transplant Renal and Urology,BXTACCELYON LIMITED,id:13695355,1254.00
Department of Health,Guys and St Thomas NHS Foundation Trust,08/01/2021,(81265) Medical Surgical Supplies & Equipment,(id:42446) Transplant Renal and Urology,BOSTON SCIENTIFIC LTD,id:13558275   ,6480.60
Department of Health,Guys and St Thomas NHS Foundation Trust,08/01/2021,(81200) Medical Surgical Supplies & Equipment,(id:42444) Transplant Renal and Urology,BOSTON SCIENTIFIC LTD,id:13582543   , 571.80
Department of Health,Guys and St Thomas NHS Foundation Trust,15/01/2021,(82800) Bedding & Linen,(id:42443) Transplant Renal and Urology,NHS SUPPLY CHAIN (MAIDSTONE),id:13559981   , 223.79
Department of Health,Guys and St Thomas NHS Foundation Trust,28/01/2021,(81100) Dressings,(id:42443) Transplant Renal and Urology,NHS SUPPLY CHAIN (MAIDSTONE),id:13589614    , 443.30
Department of Health,Guys and St Thomas NHS Foundation Trust,28/01/2021,(81100) Dressings,(id:42443) Transplant Renal and Urology,NHS SUPPLY CHAIN (MAIDSTONE),id:13578141    , 655.13
Department of Health,Guys and St Thomas NHS Foundation Trust,15/01/2021,(81200) Medical Surgical Supplies & Equipment,(id:42443) Transplant Renal and Urology,NHS SUPPLY CHAIN (MAIDSTONE),id:13544798 ,1479.90
Department of Health,Guys and St Thomas NHS Foundation Trust,28/01/2021,(83400) Office Equipment,(id:42443) Transplant Renal and Urology,NHS SUPPLY CHAIN (MAIDSTONE),id:13589614  ,  94.95
Department of Health,Guys and St Thomas NHS Foundation Trust,28/01/2021,(83400) Office Equipment,(id:42443) Transplant Renal and Urology,NHS SUPPLY CHAIN (MAIDSTONE),id:13598214  ,  86.89
Department of Health,Guys and St Thomas NHS Foundation Trust,28/01/2021,(81255) Medical Surgical Supplies & Equipment,(id:42443) Transplant Renal and Urology,NHS SUPPLY CHAIN (MAIDSTONE),id:13589614 ,  86.35
Department of Health,Guys and St Thomas NHS Foundation Trust,08/01/2021,(50552) Qualified Nursing Staff,(id:42442) Transplant Renal and Urology,GLOBE LOCUMS LTD,id:13611674  , 321.60
Department of Health,Guys and St Thomas NHS Foundation Trust,28/01/2021,(81225) Medical Surgical Supplies & Equipment,(id:42442) Transplant Renal and Urology,NHS SUPPLY CHAIN (MAIDSTONE),id:13578141 ,  12.14
Department of Health,Guys and St Thomas NHS Foundation Trust,22/01/2021,(81200) Medical Surgical Supplies & Equipment,(id:42439) Transplant Renal and Urology,INTUITIVE SURGICAL LTD,id:13641634  ,   172989.67
Department of Health,Guys and St Thomas NHS Foundation Trust,15/01/2021,(81200) Medical Surgical Supplies & Equipment,(id:2653419) Transplant Renal and Urology,NHS SUPPLY CHAIN (MAIDSTONE),id:13544798    ,  70.38
Department of Health,Guys and St Thomas NHS Foundation Trust,28/01/2021,(82700) Uniforms & Clothing,(id:42435) Transplant Renal and Urology,NHS SUPPLY CHAIN (MAIDSTONE),id:13578141    ,  63.36
Department of Health,Guys and St Thomas NHS Foundation Trust,28/01/2021,(82000) Provisions & Kitchens,(id:42435) Transplant Renal and Urology,NHS SUPPLY CHAIN (MAIDSTONE),id:13578141  ,  78.51
Department of Health,Guys and St Thomas NHS Foundation Trust,28/01/2021,(83500) Furniture & Fittings,(id:42435) Transplant Renal and Urology,TECHNIBLINDS LTD,id:13679995, 500.40
Department of Health,Guys and St Thomas NHS Foundation Trust,15/01/2021,(82800) Bedding & Linen,(id:42435) Transplant Renal and Urology,NHS SUPPLY CHAIN (MAIDSTONE),id:13544798   , 217.58
Department of Health,Guys and St Thomas NHS Foundation Trust,28/01/2021,(82800) Bedding & Linen,(id:42435) Transplant Renal and Urology,NHS SUPPLY CHAIN (MAIDSTONE),id:13589614   ,  84.15
Department of Health,Guys and St Thomas NHS Foundation Trust,28/01/2021,(82800) Bedding & Linen,(id:42435) Transplant Renal and Urology,NHS SUPPLY CHAIN (MAIDSTONE),id:13578141   ,  46.82
Department of Health,Guys and St Thomas NHS Foundation Trust,15/01/2021,(84500) Establishment,(id:42435) Transplant Renal and Urology,CDP  PRINT MANAGEMENT,id:13614394  ,  18.60
Department of Health,Guys and St Thomas NHS Foundation Trust,15/01/2021,(84500) Establishment,(id:42435) Transplant Renal and Urology,CDP  PRINT MANAGEMENT,id:13614398  ,  18.60
Department of Health,Guys and St Thomas NHS Foundation Trust,15/01/2021,(81100) Dressings,(id:42435) Transplant Renal and Urology,NHS SUPPLY CHAIN (MAIDSTONE),id:13544798    , 344.12
Department of Health,Guys and St Thomas NHS Foundation Trust,28/01/2021,(81200) Medical Surgical Supplies & Equipment,(id:42435) Transplant Renal and Urology,NHS SUPPLY CHAIN (MAIDSTONE),id:13598214 , 269.07
Department of Health,Guys and St Thomas NHS Foundation Trust,28/01/2021,(81200) Medical Surgical Supplies & Equipment,(id:42435) Transplant Renal and Urology,NHS SUPPLY CHAIN (MAIDSTONE),id:13589614 , 475.48
Department of Health,Guys and St Thomas NHS Foundation Trust,15/01/2021,(50552) Qualified Nursing Staff,(id:42435) Transplant Renal and Urology,GLOBE LOCUMS LTD,id:13629422  , 322.48
Department of Health,Guys and St Thomas NHS Foundation Trust,08/01/2021,(50552) Qualified Nursing Staff,(id:42435) Transplant Renal and Urology,MSI GROUP LTD,id:13611627, 320.75
Department of Health,Guys and St Thomas NHS Foundation Trust,15/01/2021,(81200) Medical Surgical Supplies & Equipment,(id:42433) Transplant Renal and Urology,TELEFLEX MEDICAL,id:13569535   ,2137.50
Department of Health,Guys and St Thomas NHS Foundation Trust,15/01/2021,(81200) Medical Surgical Supplies & Equipment,(id:42430) Transplant Renal and Urology,BAXTER HEALTHCARE LTD,id:13627096   ,2826.50
Department of Health,Guys and St Thomas NHS Foundation Trust,15/01/2021,(81200) Medical Surgical Supplies & Equipment,(id:42430) Transplant Renal and Urology,CAPITAL WATER TREATMENT LTD,id:13618155  , 960.00
Department of Health,Guys and St Thomas NHS Foundation Trust,15/01/2021,(81200) Medical Surgical Supplies & Equipment,(id:42428) Transplant Renal and Urology,NHS SUPPLY CHAIN (MAIDSTONE),id:13559981 , 291.99
Department of Health,Guys and St Thomas NHS Foundation Trust,28/01/2021,(84400) Transport,(id:42428) Transplant Renal and Urology,CITYSPRINT (UK) LTD,id:13578238   ,    11719.77
Department of Health,Guys and St Thomas NHS Foundation Trust,28/01/2021,(83400) Office Equipment,(id:42428) Transplant Renal and Urology,NHS SUPPLY CHAIN (MAIDSTONE),id:13598214  ,   1.78
Department of Health,Guys and St Thomas NHS Foundation Trust,08/01/2021,(81200) Medical Surgical Supplies & Equipment,(id:42420) Transplant Renal and Urology,BAXTER HEALTHCARE LTD,id:13584007   ,2441.09
Department of Health,Guys and St Thomas NHS Foundation Trust,15/01/2021,(81200) Medical Surgical Supplies & Equipment,(id:42420) Transplant Renal and Urology,NHS SUPPLY CHAIN (MAIDSTONE),id:13559981 ,1724.40
Department of Health,Guys and St Thomas NHS Foundation Trust,28/01/2021,(81200) Medical Surgical Supplies & Equipment,(id:42420) Transplant Renal and Urology,BAXTER HEALTHCARE LTD,id:13615934   , 769.25
Department of Health,Guys and St Thomas NHS Foundation Trust,28/01/2021,(82800) Bedding & Linen,(id:42420) Transplant Renal and Urology,NHS SUPPLY CHAIN (MAIDSTONE),id:13589614   , 136.84
Department of Health,Guys and St Thomas NHS Foundation Trust,28/01/2021,(82000) Provisions & Kitchens,(id:42420) Transplant Renal and Urology,NHS SUPPLY CHAIN (MAIDSTONE),id:13598214  ,  24.48
Department of Health,Guys and St Thomas NHS Foundation Trust,15/01/2021,(50562) Qualified Nursing Staff,(id:42438) Transplant Renal and Urology,GLOBE LOCUMS LTD,id:13629320  , 837.74
Department of Health,Guys and St Thomas NHS Foundation Trust,22/01/2021,(86300) Healthcare from non-NHS bodies,(id:42424) Transplant Renal and Urology,DIAVERUM UK LTD,id:13662756 ,    37213.02
Department of Health,Guys and St Thomas NHS Foundation Trust,28/01/2021,(81200) Medical Surgical Supplies & Equipment,(id:42422) Transplant Renal and Urology,NHS SUPPLY CHAIN (MAIDSTONE),id:13578141 , 364.66
Department of Health,Guys and St Thomas NHS Foundation Trust,28/01/2021,(81200) Medical Surgical Supplies & Equipment,(id:42422) Transplant Renal and Urology,NXSTAGE MEDICAL UK LIMITED,id:13654074   ,1404.40
Department of Health,Guys and St Thomas NHS Foundation Trust,28/01/2021,(81200) Medical Surgical Supplies & Equipment,(id:42422) Transplant Renal and Urology,NXSTAGE MEDICAL UK LIMITED,id:13654014   ,1624.32
Department of Health,Guys and St Thomas NHS Foundation Trust,28/01/2021,(81200) Medical Surgical Supplies & Equipment,(id:42422) Transplant Renal and Urology,NXSTAGE MEDICAL UK LIMITED,id:13687514   ,1086.24
Department of Health,Guys and St Thomas NHS Foundation Trust,28/01/2021,(81200) Medical Surgical Supplies & Equipment,(id:42422) Transplant Renal and Urology,NXSTAGE MEDICAL UK LIMITED,id:13687114   ,1281.28
Department of Health,Guys and St Thomas NHS Foundation Trust,28/01/2021,(81200) Medical Surgical Supplies & Equipment,(id:42422) Transplant Renal and Urology,NXSTAGE MEDICAL UK LIMITED,id:13687497   ,1636.80
Department of Health,Guys and St Thomas NHS Foundation Trust,15/01/2021,(80150) Drug Costs,(id:42422) Transplant Renal and Urology,BAXTER HEALTHCARE LTD,id:13238616,    12748.92
Department of Health,Guys and St Thomas NHS Foundation Trust,15/01/2021,(81100) Dressings,(id:884419) Surgery,NHS SUPPLY CHAIN (MAIDSTONE),id:13559981    , 121.98
Department of Health,Guys and St Thomas NHS Foundation Trust,28/01/2021,(82800) Bedding & Linen,(id:884419) Surgery,NHS SUPPLY CHAIN (MAIDSTONE),id:13578141   ,   6.77
Department of Health,Guys and St Thomas NHS Foundation Trust,15/01/2021,(81700) Lab Equipment Purchase,(id:42485) Surgery,NHS SUPPLY CHAIN (MAIDSTONE),id:13544798  ,   6.28
Department of Health,Guys and St Thomas NHS Foundation Trust,28/01/2021,(81700) Lab Equipment Purchase,(id:42485) Surgery,NHS SUPPLY CHAIN (MAIDSTONE),id:13598214  ,   9.07
Department of Health,Guys and St Thomas NHS Foundation Trust,15/01/2021,(81000) Surgical Appliances,(id:42485) Surgery,TALAR MADE ORTHOTICS LTD,id:13624754    , 114.00
Department of Health,Guys and St Thomas NHS Foundation Trust,08/01/2021,(81200) Medical Surgical Supplies & Equipment,(id:42484) Surgery,HEALTHCARE 21 LTD,id:13567857   , 636.00
Department of Health,Guys and St Thomas NHS Foundation Trust,22/01/2021,(81200) Medical Surgical Supplies & Equipment,(id:42484) Surgery,SEVERN HEALTHCARE TECHNOLOGIES LTD,id:13661936 ,1362.00
Department of Health,Guys and St Thomas NHS Foundation Trust,22/01/2021,(81200) Medical Surgical Supplies & Equipment,(id:42484) Surgery,BONESUPPORT AB,id:13642554 ,2520.00
Department of Health,Guys and St Thomas NHS Foundation Trust,28/01/2021,(81200) Medical Surgical Supplies & Equipment,(id:42484) Surgery,NHS SUPPLY CHAIN (MAIDSTONE),id:13598214  ,    .84
Department of Health,Guys and St Thomas NHS Foundation Trust,28/01/2021,(81200) Medical Surgical Supplies & Equipment,(id:42483) Surgery,NHS SUPPLY CHAIN (MAIDSTONE),id:13589614  , 196.07
Department of Health,Guys and St Thomas NHS Foundation Trust,15/01/2021,(81200) Medical Surgical Supplies & Equipment,(id:42483) Surgery,NHS SUPPLY CHAIN (MAIDSTONE),id:13544798  , 587.34
Department of Health,Guys and St Thomas NHS Foundation Trust,15/01/2021,(83400) Office Equipment,(id:42483) Surgery,NHS SUPPLY CHAIN (MAIDSTONE),id:13544798   , 410.88
Department of Health,Guys and St Thomas NHS Foundation Trust,28/01/2021,(83400) Office Equipment,(id:42483) Surgery,NHS SUPPLY CHAIN (MAIDSTONE),id:13578141   , 407.01
Department of Health,Guys and St Thomas NHS Foundation Trust,22/01/2021,(81200) Medical Surgical Supplies & Equipment,(id:42467) Surgery,STRYKER UK LTD,id:13661136 ,5349.96
Department of Health,Guys and St Thomas NHS Foundation Trust,22/01/2021,(81200) Medical Surgical Supplies & Equipment,(id:42467) Surgery,JOHNSON & JOHNSON MEDICAL LTD,id:13602547 ,4825.58
Department of Health,Guys and St Thomas NHS Foundation Trust,22/01/2021,(81200) Medical Surgical Supplies & Equipment,(id:42467) Surgery,JOHNSON & JOHNSON MEDICAL LTD,id:13602434 , 653.35
Department of Health,Guys and St Thomas NHS Foundation Trust,22/01/2021,(81200) Medical Surgical Supplies & Equipment,(id:42467) Surgery,BONESUPPORT AB,id:13622514 ,3456.00
Department of Health,Guys and St Thomas NHS Foundation Trust,28/01/2021,(81200) Medical Surgical Supplies & Equipment,(id:42467) Surgery,JOHNSON & JOHNSON MEDICAL LTD,id:13615290 , 859.73
Department of Health,Guys and St Thomas NHS Foundation Trust,28/01/2021,(81200) Medical Surgical Supplies & Equipment,(id:42467) Surgery,NHS SUPPLY CHAIN (MAIDSTONE),id:13598214  , 639.00
Department of Health,Guys and St Thomas NHS Foundation Trust,08/01/2021,(81200) Medical Surgical Supplies & Equipment,(id:42467) Surgery,ACUMED LTD,id:13266680,3324.00
Department of Health,Guys and St Thomas NHS Foundation Trust,28/01/2021,(81100) Dressings,(id:42467) Surgery,NHS SUPPLY CHAIN (MAIDSTONE),id:13598214, 106.80
Department of Health,Guys and St Thomas NHS Foundation Trust,15/01/2021,(83400) Office Equipment,(id:42467) Surgery,NHS SUPPLY CHAIN (MAIDSTONE),id:13559981   , 193.94
Department of Health,Guys and St Thomas NHS Foundation Trust,08/01/2021,(81000) Surgical Appliances,(id:42466) Surgery,TALAR MADE ORTHOTICS LTD,id:13588492    ,  93.00
Department of Health,Guys and St Thomas NHS Foundation Trust,22/01/2021,(81225) Medical Surgical Supplies & Equipment,(id:42466) Surgery,PROMEDICS ORTHOPAEDICS LTD,id:13635302    ,1080.00
Department of Health,Guys and St Thomas NHS Foundation Trust,28/01/2021,(82000) Provisions & Kitchens,(id:42465) Surgery,NHS SUPPLY CHAIN (MAIDSTONE),id:13598214   ,  40.22
Department of Health,Guys and St Thomas NHS Foundation Trust,28/01/2021,(82000) Provisions & Kitchens,(id:42465) Surgery,NHS SUPPLY CHAIN (MAIDSTONE),id:13578141   , 142.50
Department of Health,Guys and St Thomas NHS Foundation Trust,28/01/2021,(83400) Office Equipment,(id:42465) Surgery,NHS SUPPLY CHAIN (MAIDSTONE),id:13578141   , 177.75
Department of Health,Guys and St Thomas NHS Foundation Trust,15/01/2021,(82800) Bedding & Linen,(id:42465) Surgery,NHS SUPPLY CHAIN (MAIDSTONE),id:13544798    , 170.64
Department of Health,Guys and St Thomas NHS Foundation Trust,28/01/2021,(81225) Medical Surgical Supplies & Equipment,(id:42465) Surgery,NHS SUPPLY CHAIN (MAIDSTONE),id:13578141  , 171.64
Department of Health,Guys and St Thomas NHS Foundation Trust,15/01/2021,(81225) Medical Surgical Supplies & Equipment,(id:42465) Surgery,NHS SUPPLY CHAIN (MAIDSTONE),id:13544798  ,  41.57
Department of Health,Guys and St Thomas NHS Foundation Trust,15/01/2021,(81225) Medical Surgical Supplies & Equipment,(id:42465) Surgery,NHS SUPPLY CHAIN (MAIDSTONE),id:13559981  ,  78.29
Department of Health,Guys and St Thomas NHS Foundation Trust,28/01/2021,(81200) Medical Surgical Supplies & Equipment,(id:42465) Surgery,NHS SUPPLY CHAIN (MAIDSTONE),id:13578141  , 994.86
Department of Health,Guys and St Thomas NHS Foundation Trust,15/01/2021,(81200) Medical Surgical Supplies & Equipment,(id:42465) Surgery,ARJO UK LIMITED,id:13616714, 686.40
Department of Health,Guys and St Thomas NHS Foundation Trust,08/01/2021,(81000) Surgical Appliances,(id:42465) Surgery,TALAR MADE ORTHOTICS LTD,id:13589054    ,  14.40
Department of Health,Guys and St Thomas NHS Foundation Trust,08/01/2021,(81000) Surgical Appliances,(id:42465) Surgery,TALAR MADE ORTHOTICS LTD,id:13589114    , 252.00
Department of Health,Guys and St Thomas NHS Foundation Trust,28/01/2021,(81700) Lab Equipment Purchase,(id:42465) Surgery,NHS SUPPLY CHAIN (MAIDSTONE),id:13598214  ,  22.47
Department of Health,Guys and St Thomas NHS Foundation Trust,28/01/2021,(81255) Medical Surgical Supplies & Equipment,(id:42465) Surgery,NHS SUPPLY CHAIN (MAIDSTONE),id:13589614  ,   4.68
Department of Health,Guys and St Thomas NHS Foundation Trust,28/01/2021,(82800) Bedding & Linen,(id:42461) Surgery,NHS SUPPLY CHAIN (MAIDSTONE),id:13589614    , 187.30
Department of Health,Guys and St Thomas NHS Foundation Trust,08/01/2021,(81000) Surgical Appliances,(id:42461) Surgery,TALAR MADE ORTHOTICS LTD,id:13588492    , 197.40
Department of Health,Guys and St Thomas NHS Foundation Trust,15/01/2021,(81000) Surgical Appliances,(id:42461) Surgery,TALAR MADE ORTHOTICS LTD,id:13624754    ,  29.40
Department of Health,Guys and St Thomas NHS Foundation Trust,15/01/2021,(81000) Surgical Appliances,(id:42461) Surgery,TALAR MADE ORTHOTICS LTD,id:13624774    ,  29.40
Department of Health,Guys and St Thomas NHS Foundation Trust,15/01/2021,(81000) Surgical Appliances,(id:42461) Surgery,TALAR MADE ORTHOTICS LTD,id:13624814    , 371.20
Department of Health,Guys and St Thomas NHS Foundation Trust,15/01/2021,(81000) Surgical Appliances,(id:42461) Surgery,TALAR MADE ORTHOTICS LTD,id:13625034    , 162.24
Department of Health,Guys and St Thomas NHS Foundation Trust,15/01/2021,(81000) Surgical Appliances,(id:42461) Surgery,TALAR MADE ORTHOTICS LTD,id:13624934    , 489.84
Department of Health,Guys and St Thomas NHS Foundation Trust,15/01/2021,(81000) Surgical Appliances,(id:42461) Surgery,MEDI UK LTD,id:13625154  , 384.00
Department of Health,Guys and St Thomas NHS Foundation Trust,15/01/2021,(82700) Uniforms & Clothing,(id:42461) Surgery,NHS SUPPLY CHAIN (MAIDSTONE),id:13544798,  50.62
Department of Health,Guys and St Thomas NHS Foundation Trust,28/01/2021,(82800) Bedding & Linen,(id:42459) Surgery,NHS SUPPLY CHAIN (MAIDSTONE),id:13578141    , 163.68
Department of Health,Guys and St Thomas NHS Foundation Trust,15/01/2021,(82800) Bedding & Linen,(id:42459) Surgery,NHS SUPPLY CHAIN (MAIDSTONE),id:13544798    , 180.79
Department of Health,Guys and St Thomas NHS Foundation Trust,28/01/2021,(83400) Office Equipment,(id:42459) Surgery,NHS SUPPLY CHAIN (MAIDSTONE),id:13598214   ,  67.55
Department of Health,Guys and St Thomas NHS Foundation Trust,28/01/2021,(82000) Provisions & Kitchens,(id:42458) Surgery,NHS SUPPLY CHAIN (MAIDSTONE),id:13598214   ,  10.20
Department of Health,Guys and St Thomas NHS Foundation Trust,28/01/2021,(81100) Dressings,(id:42458) Surgery,NHS SUPPLY CHAIN (MAIDSTONE),id:13598214,  84.89
Department of Health,Guys and St Thomas NHS Foundation Trust,28/01/2021,(81225) Medical Surgical Supplies & Equipment,(id:42458) Surgery,NHS SUPPLY CHAIN (MAIDSTONE),id:13598214  ,  14.54
Department of Health,Guys and St Thomas NHS Foundation Trust,15/01/2021,(84500) Establishment,(id:42245) Cancer Supportive Services and R&D,CDP  PRINT MANAGEMENT,id:13614401 ,   3.10
Department of Health,Guys and St Thomas NHS Foundation Trust,15/01/2021,(82800) Bedding & Linen,(id:42245) Cancer Supportive Services and R&D,NHS SUPPLY CHAIN (MAIDSTONE),id:13559981  ,  46.82
Department of Health,Guys and St Thomas NHS Foundation Trust,15/01/2021,(84500) Establishment,(id:42277) Cancer Supportive Services and R&D,CDP  PRINT MANAGEMENT,id:13614398 ,  34.60
Department of Health,Guys and St Thomas NHS Foundation Trust,15/01/2021,(84500) Establishment,(id:42277) Cancer Supportive Services and R&D,CDP  PRINT MANAGEMENT,id:13614400 ,  12.90
Department of Health,Guys and St Thomas NHS Foundation Trust,15/01/2021,(84500) Establishment,(id:42276) Haematology Cellular Pathology and Supporting Services,CDP  PRINT MANAGEMENT,id:13614401 ,  24.20
Department of Health,Guys and St Thomas NHS Foundation Trust,08/01/2021,(81200) Medical Surgical Supplies & Equipment,(id:42270) Haematology Cellular Pathology and Supporting Services,TERUMO BCT EUROPE NV/SA  (PREVIOUSLY CARIDIAN),id:13605584  ,4169.38
Department of Health,Guys and St Thomas NHS Foundation Trust,08/01/2021,(81200) Medical Surgical Supplies & Equipment,(id:42270) Haematology Cellular Pathology and Supporting Services,TERUMO BCT EUROPE NV/SA  (PREVIOUSLY CARIDIAN),id:13608336  ,4169.38
Department of Health,Guys and St Thomas NHS Foundation Trust,28/01/2021,(81255) Medical Surgical Supplies & Equipment,(id:42270) Haematology Cellular Pathology and Supporting Services,NHS SUPPLY CHAIN (MAIDSTONE),id:13578141,    .67
Department of Health,Guys and St Thomas NHS Foundation Trust,28/01/2021,(83400) Office Equipment,(id:42270) Haematology Cellular Pathology and Supporting Services,NHS SUPPLY CHAIN (MAIDSTONE),id:13589614 , 418.14
Department of Health,Guys and St Thomas NHS Foundation Trust,28/01/2021,(81700) Lab Equipment Purchase,(id:42270) Haematology Cellular Pathology and Supporting Services,NHS SUPPLY CHAIN (MAIDSTONE),id:13578141, 157.90
Department of Health,Guys and St Thomas NHS Foundation Trust,15/01/2021,(82800) Bedding & Linen,(id:42270) Haematology Cellular Pathology and Supporting Services,NHS SUPPLY CHAIN (MAIDSTONE),id:13544798  , 102.40
Department of Health,Guys and St Thomas NHS Foundation Trust,28/01/2021,(82800) Bedding & Linen,(id:42270) Haematology Cellular Pathology and Supporting Services,NHS SUPPLY CHAIN (MAIDSTONE),id:13578141  , 112.88
Department of Health,Guys and St Thomas NHS Foundation Trust,08/01/2021,(81000) Surgical Appliances,(id:42268) Haematology Cellular Pathology and Supporting Services,TALAR MADE ORTHOTICS LTD,id:13589095  , 252.00
Department of Health,Guys and St Thomas NHS Foundation Trust,15/01/2021,(81000) Surgical Appliances,(id:42268) Haematology Cellular Pathology and Supporting Services,TALAR MADE ORTHOTICS LTD,id:13624934  , 253.24
Department of Health,Guys and St Thomas NHS Foundation Trust,15/01/2021,(84500) Establishment,(id:42267) Haematology Cellular Pathology and Supporting Services,CDP  PRINT MANAGEMENT,id:13614400 ,  16.00
Department of Health,Guys and St Thomas NHS Foundation Trust,15/01/2021,(84500) Establishment,(id:42267) Haematology Cellular Pathology and Supporting Services,CDP  PRINT MANAGEMENT,id:13614396 ,   3.60
Department of Health,Guys and St Thomas NHS Foundation Trust,15/01/2021,(83400) Office Equipment,(id:42267) Haematology Cellular Pathology and Supporting Services,NHS SUPPLY CHAIN (MAIDSTONE),id:13544798 ,  19.56
Department of Health,Guys and St Thomas NHS Foundation Trust,15/01/2021,(82000) Provisions & Kitchens,(id:42265) Haematology Cellular Pathology and Supporting Services,NHS SUPPLY CHAIN (MAIDSTONE),id:13559981 ,  36.47
Department of Health,Guys and St Thomas NHS Foundation Trust,28/01/2021,(82000) Provisions & Kitchens,(id:42265) Haematology Cellular Pathology and Supporting Services,NHS SUPPLY CHAIN (MAIDSTONE),id:13578141 ,  77.81
Department of Health,Guys and St Thomas NHS Foundation Trust,15/01/2021,(84500) Establishment,(id:42265) Haematology Cellular Pathology and Supporting Services,CDP  PRINT MANAGEMENT,id:13614397 ,  18.00
Department of Health,Guys and St Thomas NHS Foundation Trust,08/01/2021,(84400) Transport,(id:42265) Haematology Cellular Pathology and Supporting Services,OCURA HEALTHCARE FURNITURE,id:13589714,3162.60
Department of Health,Guys and St Thomas NHS Foundation Trust,28/01/2021,(83400) Office Equipment,(id:42265) Haematology Cellular Pathology and Supporting Services,NHS SUPPLY CHAIN (MAIDSTONE),id:13578141 , 218.23
Department of Health,Guys and St Thomas NHS Foundation Trust,28/01/2021,(83400) Office Equipment,(id:42265) Haematology Cellular Pathology and Supporting Services,NHS SUPPLY CHAIN (MAIDSTONE),id:13598214 ,  35.63
Department of Health,Guys and St Thomas NHS Foundation Trust,28/01/2021,(81700) Lab Equipment Purchase,(id:42265) Haematology Cellular Pathology and Supporting Services,NHS SUPPLY CHAIN (MAIDSTONE),id:13598214,  48.56
Department of Health,Guys and St Thomas NHS Foundation Trust,22/01/2021,(80205) Drug Costs,(id:42273) Haematology Cellular Pathology and Supporting Services,HEALTHCARE AT HOME LTD,id:13649296   ,5509.00
Department of Health,Guys and St Thomas NHS Foundation Trust,22/01/2021,(80205) Drug Costs,(id:42273) Haematology Cellular Pathology and Supporting Services,HEALTHCARE AT HOME LTD,id:13655023   ,5957.00
Department of Health,Guys and St Thomas NHS Foundation Trust,22/01/2021,(80205) Drug Costs,(id:42273) Haematology Cellular Pathology and Supporting Services,HEALTHCARE AT HOME LTD,id:13649015   ,6067.00
Department of Health,Guys and St Thomas NHS Foundation Trust,22/01/2021,(80205) Drug Costs,(id:42273) Haematology Cellular Pathology and Supporting Services,HEALTHCARE AT HOME LTD,id:13655544   ,1871.20
Department of Health,Guys and St Thomas NHS Foundation Trust,22/01/2021,(80205) Drug Costs,(id:42273) Haematology Cellular Pathology and Supporting Services,HEALTHCARE AT HOME LTD,id:13649294   ,2047.00
Department of Health,Guys and St Thomas NHS Foundation Trust,22/01/2021,(80205) Drug Costs,(id:42273) Haematology Cellular Pathology and Supporting Services,HEALTHCARE AT HOME LTD,id:13650634   ,2097.80
Department of Health,Guys and St Thomas NHS Foundation Trust,15/01/2021,(80205) Drug Costs,(id:42273) Haematology Cellular Pathology and Supporting Services,HEALTHCARE AT HOME LTD,id:13616077   ,1677.40
Department of Health,Guys and St Thomas NHS Foundation Trust,15/01/2021,(80205) Drug Costs,(id:42273) Haematology Cellular Pathology and Supporting Services,HEALTHCARE AT HOME LTD,id:13616334   ,2909.50
Department of Health,Guys and St Thomas NHS Foundation Trust,15/01/2021,(80205) Drug Costs,(id:42273) Haematology Cellular Pathology and Supporting Services,HEALTHCARE AT HOME LTD,id:13615374   ,3127.00
Department of Health,Guys and St Thomas NHS Foundation Trust,15/01/2021,(80205) Drug Costs,(id:42273) Haematology Cellular Pathology and Supporting Services,HEALTHCARE AT HOME LTD,id:13616594   ,4927.00
Department of Health,Guys and St Thomas NHS Foundation Trust,15/01/2021,(80205) Drug Costs,(id:42273) Haematology Cellular Pathology and Supporting Services,HEALTHCARE AT HOME LTD,id:13616194   ,4927.00
Department of Health,Guys and St Thomas NHS Foundation Trust,15/01/2021,(80205) Drug Costs,(id:42273) Haematology Cellular Pathology and Supporting Services,HEALTHCARE AT HOME LTD,id:13618473   ,4927.00
Department of Health,Guys and St Thomas NHS Foundation Trust,15/01/2021,(80205) Drug Costs,(id:42273) Haematology Cellular Pathology and Supporting Services,HEALTHCARE AT HOME LTD,id:13615474   ,5127.00
Department of Health,Guys and St Thomas NHS Foundation Trust,15/01/2021,(80205) Drug Costs,(id:42273) Haematology Cellular Pathology and Supporting Services,HEALTHCARE AT HOME LTD,id:13616254   ,6127.00
Department of Health,Guys and St Thomas NHS Foundation Trust,15/01/2021,(80205) Drug Costs,(id:42273) Haematology Cellular Pathology and Supporting Services,HEALTHCARE AT HOME LTD,id:13616374   ,7327.00
Department of Health,Guys and St Thomas NHS Foundation Trust,15/01/2021,(80205) Drug Costs,(id:42273) Haematology Cellular Pathology and Supporting Services,HEALTHCARE AT HOME LTD,id:13618173   ,8287.00
Department of Health,Guys and St Thomas NHS Foundation Trust,15/01/2021,(80205) Drug Costs,(id:42273) Haematology Cellular Pathology and Supporting Services,HEALTHCARE AT HOME LTD,id:13618461   ,    10127.00
Department of Health,Guys and St Thomas NHS Foundation Trust,22/01/2021,(80205) Drug Costs,(id:42273) Haematology Cellular Pathology and Supporting Services,HEALTHCARE AT HOME LTD,id:13649934   ,8227.00
Department of Health,Guys and St Thomas NHS Foundation Trust,22/01/2021,(80205) Drug Costs,(id:42273) Haematology Cellular Pathology and Supporting Services,HEALTHCARE AT HOME LTD,id:13654814   ,8287.00
Department of Health,Guys and St Thomas NHS Foundation Trust,22/01/2021,(80205) Drug Costs,(id:42273) Haematology Cellular Pathology and Supporting Services,HEALTHCARE AT HOME LTD,id:13649035   ,    17587.00
Department of Health,Guys and St Thomas NHS Foundation Trust,22/01/2021,(80205) Drug Costs,(id:42273) Haematology Cellular Pathology and Supporting Services,HEALTHCARE AT HOME LTD,id:13655027   ,    18127.00
Department of Health,Guys and St Thomas NHS Foundation Trust,28/01/2021,(54052) Technical Officers,(id:42128) Haematology Cellular Pathology and Supporting Services,TOTAL ASSIST RECRUITMENT LTD,id:13661402    ,1280.70
Department of Health,Guys and St Thomas NHS Foundation Trust,28/01/2021,(82700) Uniforms & Clothing,(id:42258) Oncology Services,NHS SUPPLY CHAIN (MAIDSTONE),id:13578141,  24.42
Department of Health,Guys and St Thomas NHS Foundation Trust,28/01/2021,(83400) Office Equipment,(id:42258) Oncology Services,NHS SUPPLY CHAIN (MAIDSTONE),id:13598214   ,   1.82
Department of Health,Guys and St Thomas NHS Foundation Trust,22/01/2021,(83360) Premises Services,(id:42258) Oncology Services,CITY & KENT CLEANING LTD,id:13644654 ,7340.00
Department of Health,Guys and St Thomas NHS Foundation Trust,28/01/2021,(81500) X Ray Equipment Purchase,(id:42258) Oncology Services,SHAWBROOK BANK LIMITED,id:13688045 ,9290.66
Department of Health,Guys and St Thomas NHS Foundation Trust,15/01/2021,(81100) Dressings,(id:42258) Oncology Services,NHS SUPPLY CHAIN (MAIDSTONE),id:13544798, 257.21
Department of Health,Guys and St Thomas NHS Foundation Trust,08/01/2021,(81000) Surgical Appliances,(id:42257) Oncology Services,MEDI UK LTD,id:13588420  , 347.16
Department of Health,Guys and St Thomas NHS Foundation Trust,15/01/2021,(81000) Surgical Appliances,(id:42257) Oncology Services,TALAR MADE ORTHOTICS LTD,id:13624974    ,  12.00
Department of Health,Guys and St Thomas NHS Foundation Trust,15/01/2021,(81000) Surgical Appliances,(id:42257) Oncology Services,TALAR MADE ORTHOTICS LTD,id:13624914    , 194.50
Department of Health,Guys and St Thomas NHS Foundation Trust,22/01/2021,(89120) Other - Legal fees,(id:42257) Oncology Services,BEACHCROFT LLP OFFICE ACCOUNT,id:13658405, 982.00
Department of Health,Guys and St Thomas NHS Foundation Trust,22/01/2021,(81900) Lab Equipment Purchase,(id:42261) Oncology Services,VIAPATH SERVICES LLP,id:13649055,1798.00
Department of Health,Guys and St Thomas NHS Foundation Trust,14/01/2021,(53672) Pharmacists,(id:42261) Oncology Services,PRICEWATERHOUSECOOPERS LLP,id:13628959,1399.68
Department of Health,Guys and St Thomas NHS Foundation Trust,08/01/2021,(81000) Surgical Appliances,(id:42261) Oncology Services,MEDI UK LTD,id:13588456  , 296.99
Department of Health,Guys and St Thomas NHS Foundation Trust,15/01/2021,(81000) Surgical Appliances,(id:42261) Oncology Services,MEDI UK LTD,id:13625074  , 129.44
Department of Health,Guys and St Thomas NHS Foundation Trust,15/01/2021,(81000) Surgical Appliances,(id:42261) Oncology Services,TALAR MADE ORTHOTICS LTD,id:13624854    ,  93.00
Department of Health,Guys and St Thomas NHS Foundation Trust,15/01/2021,(81200) Medical Surgical Supplies & Equipment,(id:4631424) Oncology Services,NHS SUPPLY CHAIN (MAIDSTONE),id:13559981, 458.30
Department of Health,Guys and St Thomas NHS Foundation Trust,15/01/2021,(84500) Establishment,(id:42260) Oncology Services,CDP  PRINT MANAGEMENT,id:13614398   ,  18.60
Department of Health,Guys and St Thomas NHS Foundation Trust,15/01/2021,(82800) Bedding & Linen,(id:42260) Oncology Services,NHS SUPPLY CHAIN (MAIDSTONE),id:13544798    , 215.19
Department of Health,Guys and St Thomas NHS Foundation Trust,15/01/2021,(81700) Lab Equipment Purchase,(id:42260) Oncology Services,NHS SUPPLY CHAIN (MAIDSTONE),id:13559981  ,1350.79
Department of Health,Guys and St Thomas NHS Foundation Trust,28/01/2021,(82000) Provisions & Kitchens,(id:42260) Oncology Services,NHS SUPPLY CHAIN (MAIDSTONE),id:13578141   ,  47.98
Department of Health,Guys and St Thomas NHS Foundation Trust,28/01/2021,(82000) Provisions & Kitchens,(id:42259) Oncology Services,NHS SUPPLY CHAIN (MAIDSTONE),id:13578141   ,  42.60
Department of Health,Guys and St Thomas NHS Foundation Trust,28/01/2021,(82800) Bedding & Linen,(id:42259) Oncology Services,NHS SUPPLY CHAIN (MAIDSTONE),id:13578141    , 131.73
Department of Health,Guys and St Thomas NHS Foundation Trust,08/01/2021,(50522) Unqualified Nursing Staff,(id:42259) Oncology Services,MSI GROUP LTD,id:13611730    , 269.22
Department of Health,Guys and St Thomas NHS Foundation Trust,15/01/2021,(83400) Office Equipment,(id:42259) Oncology Services,NHS SUPPLY CHAIN (MAIDSTONE),id:13559981   , 116.44
Department of Health,Guys and St Thomas NHS Foundation Trust,15/01/2021,(81255) Medical Surgical Supplies & Equipment,(id:42259) Oncology Services,NHS SUPPLY CHAIN (MAIDSTONE),id:13544798  ,   1.56
Department of Health,Guys and St Thomas NHS Foundation Trust,22/01/2021,(81200) Medical Surgical Supplies & Equipment,(id:42280) Surgical Oncology,ELEMENTAL HEALTHCARE LTD,id:13646416 ,5295.00
Department of Health,Guys and St Thomas NHS Foundation Trust,28/01/2021,(81200) Medical Surgical Supplies & Equipment,(id:42280) Surgical Oncology,TRIANGLE SURGICAL LTD,id:13693736    , 639.60
Department of Health,Guys and St Thomas NHS Foundation Trust,28/01/2021,(81200) Medical Surgical Supplies & Equipment,(id:42280) Surgical Oncology,JOHNSON & JOHNSON MEDICAL LTD,id:13620030 ,1333.40
Department of Health,Guys and St Thomas NHS Foundation Trust,15/01/2021,(83400) Office Equipment,(id:42280) Surgical Oncology,NHS SUPPLY CHAIN (MAIDSTONE),id:13559981   , 193.94
Department of Health,Guys and St Thomas NHS Foundation Trust,15/01/2021,(84500) Establishment,(id:42280) Surgical Oncology,CDP  PRINT MANAGEMENT,id:13614397   ,   3.10
Department of Health,Guys and St Thomas NHS Foundation Trust,15/01/2021,(84500) Establishment,(id:243406) Surgical Oncology,CDP  PRINT MANAGEMENT,id:13614398  ,  12.40
Department of Health,Guys and St Thomas NHS Foundation Trust,15/01/2021,(81700) Lab Equipment Purchase,(id:243406) Surgical Oncology,NHS SUPPLY CHAIN (MAIDSTONE),id:13544798 ,  27.22
Department of Health,Guys and St Thomas NHS Foundation Trust,15/01/2021,(82700) Uniforms & Clothing,(id:243406) Surgical Oncology,NHS SUPPLY CHAIN (MAIDSTONE),id:13544798    ,  10.56
Department of Health,Guys and St Thomas NHS Foundation Trust,28/01/2021,(82700) Uniforms & Clothing,(id:243406) Surgical Oncology,NHS SUPPLY CHAIN (MAIDSTONE),id:13589614    ,  31.68
Department of Health,Guys and St Thomas NHS Foundation Trust,08/01/2021,(50522) Unqualified Nursing Staff,(id:243406) Surgical Oncology,MSI GROUP LTD,id:13611628   , 284.24
Department of Health,Guys and St Thomas NHS Foundation Trust,28/01/2021,(81225) Medical Surgical Supplies & Equipment,(id:42474) Surgical Oncology,NHS SUPPLY CHAIN (MAIDSTONE),id:13589614  ,  51.41
Department of Health,Guys and St Thomas NHS Foundation Trust,21/01/2021,(51862) Physiotherapists,(id:42474) Surgical Oncology,PRICEWATERHOUSECOOPERS LLP,id:13658775,1213.74
Department of Health,Guys and St Thomas NHS Foundation Trust,15/01/2021,(82800) Bedding & Linen,(id:42473) Surgical Oncology,NHS SUPPLY CHAIN (MAIDSTONE),id:13559981    ,  55.20
Department of Health,Guys and St Thomas NHS Foundation Trust,15/01/2021,(81100) Dressings,(id:42473) Surgical Oncology,DELTA SURGICAL LTD,id:13622275,1113.72
Department of Health,Guys and St Thomas NHS Foundation Trust,28/01/2021,(81200) Medical Surgical Supplies & Equipment,(id:42473) Surgical Oncology,R&D SURGICAL LTD,id:13688039    ,2540.40
Department of Health,Guys and St Thomas NHS Foundation Trust,08/01/2021,(81200) Medical Surgical Supplies & Equipment,(id:42473) Surgical Oncology,T J SMITH & NEPHEW LTD,id:13584066   , 587.90
Department of Health,Guys and St Thomas NHS Foundation Trust,15/01/2021,(81200) Medical Surgical Supplies & Equipment,(id:42473) Surgical Oncology,MEDTRONIC LTD,id:13596977  , 619.20
Department of Health,Guys and St Thomas NHS Foundation Trust,15/01/2021,(81200) Medical Surgical Supplies & Equipment,(id:42473) Surgical Oncology,DELTA SURGICAL LTD,id:13622296  ,1328.40
Department of Health,Guys and St Thomas NHS Foundation Trust,08/01/2021,(81400) Medical Surgical Supplies & Equipment,(id:42473) Surgical Oncology,KARL STORZ ENDOSCOPY UK LTD,id:13582415   , 862.75
Department of Health,Guys and St Thomas NHS Foundation Trust,08/01/2021,(81400) Medical Surgical Supplies & Equipment,(id:42473) Surgical Oncology,KARL STORZ ENDOSCOPY UK LTD,id:13582394   ,1161.10
Department of Health,Guys and St Thomas NHS Foundation Trust,15/01/2021,(81000) Surgical Appliances,(id:42473) Surgical Oncology,NHS SUPPLY CHAIN (MAIDSTONE),id:13559981, 315.00
Department of Health,Guys and St Thomas NHS Foundation Trust,15/01/2021,(83400) Office Equipment,(id:42473) Surgical Oncology,STRYKER UK LTD,id:13627375  ,-900.00
Department of Health,Guys and St Thomas NHS Foundation Trust,15/01/2021,(84500) Establishment,(id:42475) Surgical Oncology,CDP  PRINT MANAGEMENT,id:13614400   ,   9.30
Department of Health,Guys and St Thomas NHS Foundation Trust,08/01/2021,(81215) Medical Surgical Supplies & Equipment,(id:42475) Surgical Oncology,COCHLEAR EUROPE LTD,id:13504945 ,5394.00
Department of Health,Guys and St Thomas NHS Foundation Trust,28/01/2021,(81225) Medical Surgical Supplies & Equipment,(id:42475) Surgical Oncology,NHS SUPPLY CHAIN (MAIDSTONE),id:13589614  ,    24409.64
Department of Health,Guys and St Thomas NHS Foundation Trust,15/01/2021,(81225) Medical Surgical Supplies & Equipment,(id:42475) Surgical Oncology,COCHLEAR EUROPE LTD,id:13615177 ,1204.80
Department of Health,Guys and St Thomas NHS Foundation Trust,15/01/2021,(81225) Medical Surgical Supplies & Equipment,(id:42475) Surgical Oncology,COCHLEAR EUROPE LTD,id:13628114 ,1371.60
Department of Health,Guys and St Thomas NHS Foundation Trust,08/01/2021,(81225) Medical Surgical Supplies & Equipment,(id:42472) Surgical Oncology,SIVANTOS LIMITED,id:13588464    ,2673.60
Department of Health,Guys and St Thomas NHS Foundation Trust,15/01/2021,(82800) Bedding & Linen,(id:42286) Surgical Oncology,NHS SUPPLY CHAIN (MAIDSTONE),id:13559981    ,  55.20
Department of Health,Guys and St Thomas NHS Foundation Trust,22/01/2021,(81400) Medical Surgical Supplies & Equipment,(id:42286) Surgical Oncology,KARL STORZ ENDOSCOPY UK LTD,id:13666700   ,1072.80
Department of Health,Guys and St Thomas NHS Foundation Trust,08/01/2021,(81400) Medical Surgical Supplies & Equipment,(id:42286) Surgical Oncology,KARL STORZ ENDOSCOPY UK LTD,id:13582155   , 667.20
Department of Health,Guys and St Thomas NHS Foundation Trust,22/01/2021,(83400) Office Equipment,(id:42286) Surgical Oncology,DICT8 LIMITED,id:13612942   , 464.04
Department of Health,Guys and St Thomas NHS Foundation Trust,15/01/2021,(81200) Medical Surgical Supplies & Equipment,(id:42286) Surgical Oncology,MEDTRONIC LTD,id:13596984  ,1368.54
Department of Health,Guys and St Thomas NHS Foundation Trust,08/01/2021,(81200) Medical Surgical Supplies & Equipment,(id:42286) Surgical Oncology,MEDTRONIC LTD,id:13593500  ,4264.42
Department of Health,Guys and St Thomas NHS Foundation Trust,08/01/2021,(81200) Medical Surgical Supplies & Equipment,(id:42286) Surgical Oncology,JOHNSON & JOHNSON MEDICAL LTD,id:13565072 , 551.62
Department of Health,Guys and St Thomas NHS Foundation Trust,08/01/2021,(81200) Medical Surgical Supplies & Equipment,(id:42286) Surgical Oncology,JOHNSON & JOHNSON MEDICAL LTD,id:13586668 ,2164.10
Department of Health,Guys and St Thomas NHS Foundation Trust,28/01/2021,(81200) Medical Surgical Supplies & Equipment,(id:42286) Surgical Oncology,MEDTRONIC LTD,id:13688254  ,3118.75
Department of Health,Guys and St Thomas NHS Foundation Trust,15/01/2021,(82800) Bedding & Linen,(id:42284) Surgical Oncology,NHS SUPPLY CHAIN (MAIDSTONE),id:13544798    , 191.57
Department of Health,Guys and St Thomas NHS Foundation Trust,15/01/2021,(82800) Bedding & Linen,(id:42284) Surgical Oncology,NHS SUPPLY CHAIN (MAIDSTONE),id:13559981    ,  46.82
Department of Health,Guys and St Thomas NHS Foundation Trust,15/01/2021,(84500) Establishment,(id:42284) Surgical Oncology,CDP  PRINT MANAGEMENT,id:13614398   ,  21.70
Department of Health,Guys and St Thomas NHS Foundation Trust,28/01/2021,(83400) Office Equipment,(id:42284) Surgical Oncology,NHS SUPPLY CHAIN (MAIDSTONE),id:13578141   ,  58.73
Department of Health,Guys and St Thomas NHS Foundation Trust,15/01/2021,(81700) Lab Equipment Purchase,(id:42284) Surgical Oncology,NHS SUPPLY CHAIN (MAIDSTONE),id:13559981  ,  31.76
Department of Health,Guys and St Thomas NHS Foundation Trust,28/01/2021,(81255) Medical Surgical Supplies & Equipment,(id:42284) Surgical Oncology,NHS SUPPLY CHAIN (MAIDSTONE),id:13598214  ,   1.92
Department of Health,Guys and St Thomas NHS Foundation Trust,08/01/2021,(81200) Medical Surgical Supplies & Equipment,(id:42471) Surgical Oncology,ATOS MEDICAL,id:13602917   , 838.18
Department of Health,Guys and St Thomas NHS Foundation Trust,15/01/2021,(84500) Establishment,(id:42470) Surgical Oncology,CDP  PRINT MANAGEMENT,id:13614398   ,   6.20
Department of Health,Guys and St Thomas NHS Foundation Trust,15/01/2021,(84500) Establishment,(id:42470) Surgical Oncology,CDP  PRINT MANAGEMENT,id:13614396   ,  34.10
Department of Health,Guys and St Thomas NHS Foundation Trust,15/01/2021,(81255) Medical Surgical Supplies & Equipment,(id:42470) Surgical Oncology,NHS SUPPLY CHAIN (MAIDSTONE),id:13544798  ,  12.48
Department of Health,Guys and St Thomas NHS Foundation Trust,15/01/2021,(81225) Medical Surgical Supplies & Equipment,(id:2182419) Acute & General Medicine,NHS SUPPLY CHAIN (MAIDSTONE),id:13559981   ,  72.72
Department of Health,Guys and St Thomas NHS Foundation Trust,28/01/2021,(81700) Lab Equipment Purchase,(id:2182419) Acute & General Medicine,NHS SUPPLY CHAIN (MAIDSTONE),id:13589614   , 140.52
Department of Health,Guys and St Thomas NHS Foundation Trust,28/01/2021,(82600) Uniforms & Clothing,(id:2182419) Acute & General Medicine,NHS SUPPLY CHAIN (MAIDSTONE),id:13598214 ,  13.50
Department of Health,Guys and St Thomas NHS Foundation Trust,28/01/2021,(81200) Medical Surgical Supplies & Equipment,(id:2182419) Acute & General Medicine,NHS SUPPLY CHAIN (MAIDSTONE),id:13589614   ,2337.29
Department of Health,Guys and St Thomas NHS Foundation Trust,15/01/2021,(50552) Qualified Nursing Staff,(id:2182419) Acute & General Medicine,PULSE HEALTHCARE LIMITED,id:13629416 , 598.22
Department of Health,Guys and St Thomas NHS Foundation Trust,15/01/2021,(50552) Qualified Nursing Staff,(id:2182419) Acute & General Medicine,MSI GROUP LTD,id:13629198  , 703.76
Department of Health,Guys and St Thomas NHS Foundation Trust,28/01/2021,(50552) Qualified Nursing Staff,(id:2182419) Acute & General Medicine,PULSE HEALTHCARE LIMITED,id:13694477 , 439.63
Department of Health,Guys and St Thomas NHS Foundation Trust,08/01/2021,(50552) Qualified Nursing Staff,(id:2182419) Acute & General Medicine,MSI GROUP LTD,id:13611847  , 359.05
Department of Health,Guys and St Thomas NHS Foundation Trust,15/01/2021,(50522) Unqualified Nursing Staff,(id:2182419) Acute & General Medicine,GLOBE LOCUMS LTD,id:13629267  , 504.27
Department of Health,Guys and St Thomas NHS Foundation Trust,15/01/2021,(84500) Establishment,(id:2182419) Acute & General Medicine,CDP  PRINT MANAGEMENT,id:13614395    ,  15.50
Department of Health,Guys and St Thomas NHS Foundation Trust,15/01/2021,(84500) Establishment,(id:2182419) Acute & General Medicine,CDP  PRINT MANAGEMENT,id:13614401    ,  27.90
Department of Health,Guys and St Thomas NHS Foundation Trust,15/01/2021,(81100) Dressings,(id:2182419) Acute & General Medicine,NHS SUPPLY CHAIN (MAIDSTONE),id:13544798 , 140.48
Department of Health,Guys and St Thomas NHS Foundation Trust,15/01/2021,(84500) Establishment,(id:246421) Acute & General Medicine,CDP  PRINT MANAGEMENT,id:13614398,   7.20
Department of Health,Guys and St Thomas NHS Foundation Trust,28/01/2021,(81700) Lab Equipment Purchase,(id:42105) Acute & General Medicine,NHS SUPPLY CHAIN (MAIDSTONE),id:13578141,  18.12
Department of Health,Guys and St Thomas NHS Foundation Trust,28/01/2021,(82700) Uniforms & Clothing,(id:41860) Acute & General Medicine,NHS SUPPLY CHAIN (MAIDSTONE),id:13578141   ,  31.68
Department of Health,Guys and St Thomas NHS Foundation Trust,15/01/2021,(82000) Provisions & Kitchens,(id:41860) Acute & General Medicine,NHS SUPPLY CHAIN (MAIDSTONE),id:13544798 , 240.34
Department of Health,Guys and St Thomas NHS Foundation Trust,28/01/2021,(83400) Office Equipment,(id:41860) Acute & General Medicine,NHS SUPPLY CHAIN (MAIDSTONE),id:13589614 ,  93.11
Department of Health,Guys and St Thomas NHS Foundation Trust,15/01/2021,(82800) Bedding & Linen,(id:41860) Acute & General Medicine,NHS SUPPLY CHAIN (MAIDSTONE),id:13559981  , 252.13
Department of Health,Guys and St Thomas NHS Foundation Trust,15/01/2021,(81100) Dressings,(id:41860) Acute & General Medicine,NHS SUPPLY CHAIN (MAIDSTONE),id:13559981   , 427.92
Department of Health,Guys and St Thomas NHS Foundation Trust,15/01/2021,(50552) Qualified Nursing Staff,(id:41860) Acute & General Medicine,GLOBE LOCUMS LTD,id:13629423 , 350.08
Department of Health,Guys and St Thomas NHS Foundation Trust,08/01/2021,(50552) Qualified Nursing Staff,(id:41860) Acute & General Medicine,MSI GROUP LTD,id:13611900    , 678.88
Department of Health,Guys and St Thomas NHS Foundation Trust,15/01/2021,(50522) Unqualified Nursing Staff,(id:41860) Acute & General Medicine,MSI GROUP LTD,id:13629307  , 311.62
Department of Health,Guys and St Thomas NHS Foundation Trust,08/01/2021,(50522) Unqualified Nursing Staff,(id:41860) Acute & General Medicine,GLOBE LOCUMS LTD,id:13611886    , 260.15
Department of Health,Guys and St Thomas NHS Foundation Trust,08/01/2021,(81200) Medical Surgical Supplies & Equipment,(id:41860) Acute & General Medicine,ARJO UK LIMITED,id:13584980   , 669.60
Department of Health,Guys and St Thomas NHS Foundation Trust,15/01/2021,(81200) Medical Surgical Supplies & Equipment,(id:41860) Acute & General Medicine,NHS SUPPLY CHAIN (MAIDSTONE),id:13559981,1056.12
Department of Health,Guys and St Thomas NHS Foundation Trust,15/01/2021,(81225) Medical Surgical Supplies & Equipment,(id:41860) Acute & General Medicine,NHS SUPPLY CHAIN (MAIDSTONE),id:13544798,   7.97
Department of Health,Guys and St Thomas NHS Foundation Trust,15/01/2021,(82700) Uniforms & Clothing,(id:41859) Acute & General Medicine,NHS SUPPLY CHAIN (MAIDSTONE),id:13559981   ,  53.52
Department of Health,Guys and St Thomas NHS Foundation Trust,15/01/2021,(82700) Uniforms & Clothing,(id:41859) Acute & General Medicine,NHS SUPPLY CHAIN (MAIDSTONE),id:13544798   ,  31.68
Department of Health,Guys and St Thomas NHS Foundation Trust,15/01/2021,(83400) Office Equipment,(id:41859) Acute & General Medicine,NHS SUPPLY CHAIN (MAIDSTONE),id:13544798 , 156.47
Department of Health,Guys and St Thomas NHS Foundation Trust,15/01/2021,(82800) Bedding & Linen,(id:41859) Acute & General Medicine,NHS SUPPLY CHAIN (MAIDSTONE),id:13544798  , 153.46
Department of Health,Guys and St Thomas NHS Foundation Trust,28/01/2021,(81100) Dressings,(id:41859) Acute & General Medicine,NHS SUPPLY CHAIN (MAIDSTONE),id:13598214   , 323.44
Department of Health,Guys and St Thomas NHS Foundation Trust,15/01/2021,(84500) Establishment,(id:41859) Acute & General Medicine,CDP  PRINT MANAGEMENT,id:13614401 ,  18.60
Department of Health,Guys and St Thomas NHS Foundation Trust,28/01/2021,(50552) Qualified Nursing Staff,(id:41859) Acute & General Medicine,CARE PROVIDERS HEALTHCARE,id:13694631  , 679.88
Department of Health,Guys and St Thomas NHS Foundation Trust,08/01/2021,(50552) Qualified Nursing Staff,(id:41859) Acute & General Medicine,MSI GROUP LTD,id:13611950    , 368.06
Department of Health,Guys and St Thomas NHS Foundation Trust,08/01/2021,(50522) Unqualified Nursing Staff,(id:41859) Acute & General Medicine,MSI GROUP LTD,id:13611581  , 268.68
Department of Health,Guys and St Thomas NHS Foundation Trust,08/01/2021,(50522) Unqualified Nursing Staff,(id:41859) Acute & General Medicine,MSI GROUP LTD,id:13611628  , 284.23
Department of Health,Guys and St Thomas NHS Foundation Trust,28/01/2021,(81200) Medical Surgical Supplies & Equipment,(id:41859) Acute & General Medicine,NHS SUPPLY CHAIN (MAIDSTONE),id:13589614, 592.97
Department of Health,Guys and St Thomas NHS Foundation Trust,15/01/2021,(81225) Medical Surgical Supplies & Equipment,(id:41859) Acute & General Medicine,NHS SUPPLY CHAIN (MAIDSTONE),id:13544798,  31.51
Department of Health,Guys and St Thomas NHS Foundation Trust,15/01/2021,(81225) Medical Surgical Supplies & Equipment,(id:41859) Acute & General Medicine,NHS SUPPLY CHAIN (MAIDSTONE),id:13559981,  19.39
Department of Health,Guys and St Thomas NHS Foundation Trust,28/01/2021,(83400) Office Equipment,(id:41858) Acute & General Medicine,NHS SUPPLY CHAIN (MAIDSTONE),id:13589614 ,  76.30
Department of Health,Guys and St Thomas NHS Foundation Trust,15/01/2021,(83400) Office Equipment,(id:41858) Acute & General Medicine,NHS SUPPLY CHAIN (MAIDSTONE),id:13544798 , 183.45
Department of Health,Guys and St Thomas NHS Foundation Trust,28/01/2021,(81100) Dressings,(id:41858) Acute & General Medicine,NHS SUPPLY CHAIN (MAIDSTONE),id:13578141   ,  91.28
Department of Health,Guys and St Thomas NHS Foundation Trust,15/01/2021,(84500) Establishment,(id:41858) Acute & General Medicine,CDP  PRINT MANAGEMENT,id:13614396 ,  48.00
Department of Health,Guys and St Thomas NHS Foundation Trust,15/01/2021,(50522) Unqualified Nursing Staff,(id:41858) Acute & General Medicine,GLOBE LOCUMS LTD,id:13629321    , 202.70
Department of Health,Guys and St Thomas NHS Foundation Trust,08/01/2021,(50522) Unqualified Nursing Staff,(id:41858) Acute & General Medicine,MSI GROUP LTD,id:13611637  , 511.94
Department of Health,Guys and St Thomas NHS Foundation Trust,15/01/2021,(81200) Medical Surgical Supplies & Equipment,(id:41858) Acute & General Medicine,NHS SUPPLY CHAIN (MAIDSTONE),id:13559981,1166.47
Department of Health,Guys and St Thomas NHS Foundation Trust,15/01/2021,(84500) Establishment,(id:41854) Acute & General Medicine,CDP  PRINT MANAGEMENT,id:13614400 ,   3.10
Department of Health,Guys and St Thomas NHS Foundation Trust,15/01/2021,(50552) Qualified Nursing Staff,(id:41872) Acute & General Medicine,CONTINENTAL NURSE LTD,id:13629316 ,1780.13
Department of Health,Guys and St Thomas NHS Foundation Trust,08/01/2021,(50552) Qualified Nursing Staff,(id:41872) Acute & General Medicine,CONTINENTAL NURSE LTD,id:13611776 ,2563.97
Department of Health,Guys and St Thomas NHS Foundation Trust,15/01/2021,(84500) Establishment,(id:41869) Acute & General Medicine,CDP  PRINT MANAGEMENT,id:13614400 ,  43.40
Department of Health,Guys and St Thomas NHS Foundation Trust,15/01/2021,(84500) Establishment,(id:41869) Acute & General Medicine,CDP  PRINT MANAGEMENT,id:13614395 ,  15.50
Department of Health,Guys and St Thomas NHS Foundation Trust,15/01/2021,(83400) Office Equipment,(id:41869) Acute & General Medicine,NHS SUPPLY CHAIN (MAIDSTONE),id:13559981 ,1332.20
Department of Health,Guys and St Thomas NHS Foundation Trust,28/01/2021,(82800) Bedding & Linen,(id:41869) Acute & General Medicine,NHS SUPPLY CHAIN (MAIDSTONE),id:13578141  , 481.93
Department of Health,Guys and St Thomas NHS Foundation Trust,28/01/2021,(81255) Medical Surgical Supplies & Equipment,(id:41869) Acute & General Medicine,NHS SUPPLY CHAIN (MAIDSTONE),id:13589614,  27.60
Department of Health,Guys and St Thomas NHS Foundation Trust,15/01/2021,(81255) Medical Surgical Supplies & Equipment,(id:41869) Acute & General Medicine,PHILIPS HEALTHCARE,id:13616994, 505.68
Department of Health,Guys and St Thomas NHS Foundation Trust,20/01/2021,(86300) Healthcare from non-NHS bodies,(id:41869) Acute & General Medicine,SELDOC LTD,id:13501728,    23962.00
Department of Health,Guys and St Thomas NHS Foundation Trust,15/01/2021,(81275) Medical Surgical Supplies & Equipment,(id:41869) Acute & General Medicine,NHS SUPPLY CHAIN (MAIDSTONE),id:13544798, 589.13
Department of Health,Guys and St Thomas NHS Foundation Trust,28/01/2021,(81100) Dressings,(id:41868) Acute & General Medicine,NHS SUPPLY CHAIN (MAIDSTONE),id:13598214   ,  11.12
Department of Health,Guys and St Thomas NHS Foundation Trust,15/01/2021,(81200) Medical Surgical Supplies & Equipment,(id:41868) Acute & General Medicine,NHS SUPPLY CHAIN (MAIDSTONE),id:13559981, 398.85
Department of Health,Guys and St Thomas NHS Foundation Trust,28/01/2021,(82000) Provisions & Kitchens,(id:41868) Acute & General Medicine,NHS SUPPLY CHAIN (MAIDSTONE),id:13578141 ,  18.60
Department of Health,Guys and St Thomas NHS Foundation Trust,15/01/2021,(83400) Office Equipment,(id:41868) Acute & General Medicine,NHS SUPPLY CHAIN (MAIDSTONE),id:13559981 , 126.03
Department of Health,Guys and St Thomas NHS Foundation Trust,28/01/2021,(83400) Office Equipment,(id:41868) Acute & General Medicine,NHS SUPPLY CHAIN (MAIDSTONE),id:13589614 , 233.89
Department of Health,Guys and St Thomas NHS Foundation Trust,28/01/2021,(81225) Medical Surgical Supplies & Equipment,(id:41868) Acute & General Medicine,NHS SUPPLY CHAIN (MAIDSTONE),id:13589614, 287.52
Department of Health,Guys and St Thomas NHS Foundation Trust,15/01/2021,(83400) Office Equipment,(id:41882) Acute & General Medicine,NHS SUPPLY CHAIN (MAIDSTONE),id:13544798 , 190.52
Department of Health,Guys and St Thomas NHS Foundation Trust,15/01/2021,(84500) Establishment,(id:41882) Acute & General Medicine,CDP  PRINT MANAGEMENT,id:13614395 ,  32.40
Department of Health,Guys and St Thomas NHS Foundation Trust,28/01/2021,(81700) Lab Equipment Purchase,(id:41882) Acute & General Medicine,NHS SUPPLY CHAIN (MAIDSTONE),id:13589614,   3.10
Department of Health,Guys and St Thomas NHS Foundation Trust,28/01/2021,(81200) Medical Surgical Supplies & Equipment,(id:41882) Acute & General Medicine,NHS SUPPLY CHAIN (MAIDSTONE),id:13578141,  38.64
Department of Health,Guys and St Thomas NHS Foundation Trust,15/01/2021,(84500) Establishment,(id:41880) Acute & General Medicine,CDP  PRINT MANAGEMENT,id:13614398 ,  80.60
Department of Health,Guys and St Thomas NHS Foundation Trust,15/01/2021,(84500) Establishment,(id:41880) Acute & General Medicine,CDP  PRINT MANAGEMENT,id:13614399 ,  78.50
Department of Health,Guys and St Thomas NHS Foundation Trust,15/01/2021,(81100) Dressings,(id:41880) Acute & General Medicine,NHS SUPPLY CHAIN (MAIDSTONE),id:13559981   , 172.93
Department of Health,Guys and St Thomas NHS Foundation Trust,28/01/2021,(81100) Dressings,(id:41880) Acute & General Medicine,NHS SUPPLY CHAIN (MAIDSTONE),id:13598214   , 140.69
Department of Health,Guys and St Thomas NHS Foundation Trust,22/01/2021,(50522) Unqualified Nursing Staff,(id:41880) Acute & General Medicine,CARE PROVIDERS HEALTHCARE,id:13661382, 409.80
Department of Health,Guys and St Thomas NHS Foundation Trust,22/01/2021,(50522) Unqualified Nursing Staff,(id:41880) Acute & General Medicine,MSI GROUP LTD,id:13661474  , 255.97
Department of Health,Guys and St Thomas NHS Foundation Trust,22/01/2021,(50522) Unqualified Nursing Staff,(id:41880) Acute & General Medicine,MSI GROUP LTD,id:13661426  , 260.60
Department of Health,Guys and St Thomas NHS Foundation Trust,28/01/2021,(50522) Unqualified Nursing Staff,(id:41880) Acute & General Medicine,MSI GROUP LTD,id:13696994  ,-262.59
Department of Health,Guys and St Thomas NHS Foundation Trust,15/01/2021,(81255) Medical Surgical Supplies & Equipment,(id:41880) Acute & General Medicine,NHS SUPPLY CHAIN (MAIDSTONE),id:13544798,    .93
Department of Health,Guys and St Thomas NHS Foundation Trust,15/01/2021,(81100) Dressings,(id:41879) Acute & General Medicine,NHS SUPPLY CHAIN (MAIDSTONE),id:13559981   ,  50.46
Department of Health,Guys and St Thomas NHS Foundation Trust,28/01/2021,(81100) Dressings,(id:41879) Acute & General Medicine,NHS SUPPLY CHAIN (MAIDSTONE),id:13598214   ,  86.07
Department of Health,Guys and St Thomas NHS Foundation Trust,28/01/2021,(50522) Unqualified Nursing Staff,(id:41879) Acute & General Medicine,MSI GROUP LTD,id:13694475  , 538.44
Department of Health,Guys and St Thomas NHS Foundation Trust,08/01/2021,(50522) Unqualified Nursing Staff,(id:41879) Acute & General Medicine,CARE PROVIDERS HEALTHCARE,id:13613337,-947.40
Department of Health,Guys and St Thomas NHS Foundation Trust,08/01/2021,(83610) IT Costs,(id:41879) Acute & General Medicine,OFFICE DEPOT UK LTD,id:13576699   , 594.00
Department of Health,Guys and St Thomas NHS Foundation Trust,28/01/2021,(81200) Medical Surgical Supplies & Equipment,(id:41879) Acute & General Medicine,NHS SUPPLY CHAIN (MAIDSTONE),id:13578141, 889.00
Department of Health,Guys and St Thomas NHS Foundation Trust,15/01/2021,(81700) Lab Equipment Purchase,(id:41879) Acute & General Medicine,NHS SUPPLY CHAIN (MAIDSTONE),id:13544798,  15.91
Department of Health,Guys and St Thomas NHS Foundation Trust,15/01/2021,(83400) Office Equipment,(id:41878) Acute & General Medicine,NHS SUPPLY CHAIN (MAIDSTONE),id:13559981 ,  69.20
Department of Health,Guys and St Thomas NHS Foundation Trust,28/01/2021,(81100) Dressings,(id:41878) Acute & General Medicine,NHS SUPPLY CHAIN (MAIDSTONE),id:13598214   , 223.92
Department of Health,Guys and St Thomas NHS Foundation Trust,15/01/2021,(50522) Unqualified Nursing Staff,(id:41878) Acute & General Medicine,GLOBE LOCUMS LTD,id:13629321    , 202.70
Department of Health,Guys and St Thomas NHS Foundation Trust,08/01/2021,(50522) Unqualified Nursing Staff,(id:41878) Acute & General Medicine,MSI GROUP LTD,id:13611679  , 248.91
Department of Health,Guys and St Thomas NHS Foundation Trust,28/01/2021,(50522) Unqualified Nursing Staff,(id:41878) Acute & General Medicine,GLOBE LOCUMS LTD,id:13694364    , 203.79
Department of Health,Guys and St Thomas NHS Foundation Trust,08/01/2021,(83610) IT Costs,(id:41878) Acute & General Medicine,OFFICE DEPOT UK LTD,id:13612180   , 526.03
Department of Health,Guys and St Thomas NHS Foundation Trust,08/01/2021,(81200) Medical Surgical Supplies & Equipment,(id:41878) Acute & General Medicine,ARJO UK LIMITED,id:13607288   , 685.20
Department of Health,Guys and St Thomas NHS Foundation Trust,15/01/2021,(81200) Medical Surgical Supplies & Equipment,(id:41878) Acute & General Medicine,NHS SUPPLY CHAIN (MAIDSTONE),id:13544798,1027.50
Department of Health,Guys and St Thomas NHS Foundation Trust,28/01/2021,(81225) Medical Surgical Supplies & Equipment,(id:41878) Acute & General Medicine,NHS SUPPLY CHAIN (MAIDSTONE),id:13578141,   6.00
Department of Health,Guys and St Thomas NHS Foundation Trust,15/01/2021,(81225) Medical Surgical Supplies & Equipment,(id:41878) Acute & General Medicine,NHS SUPPLY CHAIN (MAIDSTONE),id:13559981,  12.00
Department of Health,Guys and St Thomas NHS Foundation Trust,15/01/2021,(81000) Surgical Appliances,(id:41876) Acute & General Medicine,TALAR MADE ORTHOTICS LTD,id:13624814  ,   6.00
Department of Health,Guys and St Thomas NHS Foundation Trust,22/01/2021,(50522) Unqualified Nursing Staff,(id:41881) Acute & General Medicine,MSI GROUP LTD,id:13661511  , 869.28
Department of Health,Guys and St Thomas NHS Foundation Trust,15/01/2021,(50522) Unqualified Nursing Staff,(id:41881) Acute & General Medicine,MSI GROUP LTD,id:13629361  , 274.38
Department of Health,Guys and St Thomas NHS Foundation Trust,15/01/2021,(81700) Lab Equipment Purchase,(id:41881) Acute & General Medicine,NHS SUPPLY CHAIN (MAIDSTONE),id:13559981,  66.42
Department of Health,Guys and St Thomas NHS Foundation Trust,28/01/2021,(81700) Lab Equipment Purchase,(id:41881) Acute & General Medicine,NHS SUPPLY CHAIN (MAIDSTONE),id:13578141,  52.46
Department of Health,Guys and St Thomas NHS Foundation Trust,08/01/2021,(81200) Medical Surgical Supplies & Equipment,(id:42037) Dental Services,HENRY SCHEIN,id:13613394, 646.27
Department of Health,Guys and St Thomas NHS Foundation Trust,08/01/2021,(81200) Medical Surgical Supplies & Equipment,(id:42037) Dental Services,3M UNITEK,id:13587518   , 534.24
Department of Health,Guys and St Thomas NHS Foundation Trust,15/01/2021,(84500) Establishment,(id:42037) Dental Services,CDP  PRINT MANAGEMENT,id:13614395,   3.10
Department of Health,Guys and St Thomas NHS Foundation Trust,15/01/2021,(84500) Establishment,(id:42007) Dental Services,CDP  PRINT MANAGEMENT,id:13614396,   6.20
Department of Health,Guys and St Thomas NHS Foundation Trust,15/01/2021,(84500) Establishment,(id:42007) Dental Services,CDP  PRINT MANAGEMENT,id:13614397,  34.10
Department of Health,Guys and St Thomas NHS Foundation Trust,28/01/2021,(83400) Office Equipment,(id:42007) Dental Services,NHS SUPPLY CHAIN (MAIDSTONE),id:13578141,  50.26
Department of Health,Guys and St Thomas NHS Foundation Trust,15/01/2021,(83400) Office Equipment,(id:42007) Dental Services,NHS SUPPLY CHAIN (MAIDSTONE),id:13544798,  86.52
Department of Health,Guys and St Thomas NHS Foundation Trust,28/01/2021,(81700) Lab Equipment Purchase,(id:42007) Dental Services,NHS SUPPLY CHAIN (MAIDSTONE),id:13598214    ,  16.69
Department of Health,Guys and St Thomas NHS Foundation Trust,15/01/2021,(81700) Lab Equipment Purchase,(id:42007) Dental Services,NHS SUPPLY CHAIN (MAIDSTONE),id:13559981    , 109.82
Department of Health,Guys and St Thomas NHS Foundation Trust,15/01/2021,(84500) Establishment,(id:42033) Dental Services,CDP  PRINT MANAGEMENT,id:13614399,   3.10
Department of Health,Guys and St Thomas NHS Foundation Trust,22/01/2021,(50470) Medical Training Grades,(id:42033) Dental Services,EAST KENT HOSPITALS UNIVERSITY NHS FOUNDATION TRUST,id:13587379,3086.39
Department of Health,Guys and St Thomas NHS Foundation Trust,15/01/2021,(84500) Establishment,(id:42028) Dental Services,CDP  PRINT MANAGEMENT,id:13614398,  12.40
Department of Health,Guys and St Thomas NHS Foundation Trust,15/01/2021,(84500) Establishment,(id:42017) Dental Services,CDP  PRINT MANAGEMENT,id:13614398,   3.10
Department of Health,Guys and St Thomas NHS Foundation Trust,28/01/2021,(81100) Dressings,(id:42014) Dental Services,NHS SUPPLY CHAIN (MAIDSTONE),id:13578141  ,  23.88
Department of Health,Guys and St Thomas NHS Foundation Trust,22/01/2021,(81400) Medical Surgical Supplies & Equipment,(id:42014) Dental Services,PLANMECA UK LTD (FORMERLY PLANDENT LTD),id:13645834   ,    10104.83
Department of Health,Guys and St Thomas NHS Foundation Trust,15/01/2021,(84500) Establishment,(id:42044) Dental Services,CDP  PRINT MANAGEMENT,id:13614399,   6.20
Department of Health,Guys and St Thomas NHS Foundation Trust,28/01/2021,(81200) Medical Surgical Supplies & Equipment,(id:1634433) Dental Services,NHS SUPPLY CHAIN (MAIDSTONE),id:13578141  ,  25.21
Department of Health,Guys and St Thomas NHS Foundation Trust,15/01/2021,(81200) Medical Surgical Supplies & Equipment,(id:1634433) Dental Services,NHS SUPPLY CHAIN (MAIDSTONE),id:13544798  ,1333.32
Department of Health,Guys and St Thomas NHS Foundation Trust,15/01/2021,(81200) Medical Surgical Supplies & Equipment,(id:1634433) Dental Services,NHS SUPPLY CHAIN (MAIDSTONE),id:13559981  , 512.06
Department of Health,Guys and St Thomas NHS Foundation Trust,08/01/2021,(81200) Medical Surgical Supplies & Equipment,(id:1634433) Dental Services,HENRY SCHEIN,id:13613354   , 576.02
Department of Health,Guys and St Thomas NHS Foundation Trust,15/01/2021,(82800) Bedding & Linen,(id:1634433) Dental Services,NHS SUPPLY CHAIN (MAIDSTONE),id:13544798    , 234.00
Department of Health,Guys and St Thomas NHS Foundation Trust,15/01/2021,(83400) Office Equipment,(id:1634433) Dental Services,NHS SUPPLY CHAIN (MAIDSTONE),id:13544798   , 121.73
Department of Health,Guys and St Thomas NHS Foundation Trust,28/01/2021,(83400) Office Equipment,(id:1634432) Dental Services,NHS SUPPLY CHAIN (MAIDSTONE),id:13578141   ,  60.80
Department of Health,Guys and St Thomas NHS Foundation Trust,15/01/2021,(82800) Bedding & Linen,(id:1634432) Dental Services,NHS SUPPLY CHAIN (MAIDSTONE),id:13559981    ,  70.24
Department of Health,Guys and St Thomas NHS Foundation Trust,08/01/2021,(81200) Medical Surgical Supplies & Equipment,(id:1634432) Dental Services,HENRY SCHEIN,id:13613855   , 700.02
Department of Health,Guys and St Thomas NHS Foundation Trust,15/01/2021,(82600) Uniforms & Clothing,(id:1634432) Dental Services,NHS SUPPLY CHAIN (MAIDSTONE),id:13544798,  76.80
Department of Health,Guys and St Thomas NHS Foundation Trust,08/01/2021,(81200) Medical Surgical Supplies & Equipment,(id:1650420) Dental Services,DAVIS SCHOTTLANDER & DAVIS LTD,id:13608914, 791.62
Department of Health,Guys and St Thomas NHS Foundation Trust,22/01/2021,(81700) Lab Equipment Purchase,(id:641456) Specialist Ambulatory Services,NEW ENGLAND BIOLABS (UK) LTD,id:13641934   , 754.56
Department of Health,Guys and St Thomas NHS Foundation Trust,22/01/2021,(81700) Lab Equipment Purchase,(id:641456) Specialist Ambulatory Services,NEW ENGLAND BIOLABS (UK) LTD,id:13659214   ,5045.76
Department of Health,Guys and St Thomas NHS Foundation Trust,08/01/2021,(89440) Research and Development,(id:1852419) Specialist Ambulatory Services,UEA CONSULTING LTD(UNIVERSITY OF EAST ANGLIA),id:13584894   ,    13796.74
Department of Health,Guys and St Thomas NHS Foundation Trust,15/01/2021,(81200) Medical Surgical Supplies & Equipment,(id:3608419) Specialist Ambulatory Services,NHS SUPPLY CHAIN (MAIDSTONE),id:13559981  ,  12.13
Department of Health,Guys and St Thomas NHS Foundation Trust,15/01/2021,(83400) Office Equipment,(id:42091) Specialist Ambulatory Services,NHS SUPPLY CHAIN (MAIDSTONE),id:13544798, 365.86
Department of Health,Guys and St Thomas NHS Foundation Trust,15/01/2021,(84500) Establishment,(id:42091) Specialist Ambulatory Services,OFFICE DEPOT UK LTD,id:13484782  , 880.80
Department of Health,Guys and St Thomas NHS Foundation Trust,22/01/2021,(89595) Non-Healthcare from Foundation Trusts,(id:42065) Specialist Ambulatory Services,ST GEORGE'S UNIVERSITY HOSPITALS NHS FOUNDATION TRUST,id:13374935    ,1447.58
Department of Health,Guys and St Thomas NHS Foundation Trust,28/01/2021,(89595) Non-Healthcare from Foundation Trusts,(id:42065) Specialist Ambulatory Services,UNIVERSITY HOSPITAL SOUTHAMPTON NHS FOUNDATION TRUST,id:13582235,9648.39
Department of Health,Guys and St Thomas NHS Foundation Trust,15/01/2021,(82800) Bedding & Linen,(id:42097) Specialist Ambulatory Services,NHS SUPPLY CHAIN (MAIDSTONE),id:13559981 ,  40.33
Department of Health,Guys and St Thomas NHS Foundation Trust,28/01/2021,(83400) Office Equipment,(id:42097) Specialist Ambulatory Services,NHS SUPPLY CHAIN (MAIDSTONE),id:13578141,  25.24
Department of Health,Guys and St Thomas NHS Foundation Trust,28/01/2021,(83400) Office Equipment,(id:42097) Specialist Ambulatory Services,NHS SUPPLY CHAIN (MAIDSTONE),id:13598214,  28.96
Department of Health,Guys and St Thomas NHS Foundation Trust,28/01/2021,(81200) Medical Surgical Supplies & Equipment,(id:42097) Specialist Ambulatory Services,NHS SUPPLY CHAIN (MAIDSTONE),id:13578141    , 175.90
Department of Health,Guys and St Thomas NHS Foundation Trust,28/01/2021,(82800) Bedding & Linen,(id:42079) Specialist Ambulatory Services,NHS SUPPLY CHAIN (MAIDSTONE),id:13578141 ,   4.49
Department of Health,Guys and St Thomas NHS Foundation Trust,28/01/2021,(82800) Bedding & Linen,(id:42079) Specialist Ambulatory Services,NHS SUPPLY CHAIN (MAIDSTONE),id:13598214 ,  70.23
Department of Health,Guys and St Thomas NHS Foundation Trust,15/01/2021,(82800) Bedding & Linen,(id:42079) Specialist Ambulatory Services,NHS SUPPLY CHAIN (MAIDSTONE),id:13559981 ,  26.79
Department of Health,Guys and St Thomas NHS Foundation Trust,28/01/2021,(80010) Drug Costs,(id:42079) Specialist Ambulatory Services,THERAKOS (UK) LIMITED,id:13527554   ,    15724.80
Department of Health,Guys and St Thomas NHS Foundation Trust,15/01/2021,(81700) Lab Equipment Purchase,(id:42079) Specialist Ambulatory Services,NHS SUPPLY CHAIN (MAIDSTONE),id:13559981    ,  10.86
Department of Health,Guys and St Thomas NHS Foundation Trust,28/01/2021,(81275) Medical Surgical Supplies & Equipment,(id:42079) Specialist Ambulatory Services,THERAKOS (UK) LIMITED,id:13647874 ,-760.80
Department of Health,Guys and St Thomas NHS Foundation Trust,28/01/2021,(81275) Medical Surgical Supplies & Equipment,(id:42079) Specialist Ambulatory Services,THERAKOS (UK) LIMITED,id:13662494 ,-760.80
Department of Health,Guys and St Thomas NHS Foundation Trust,28/01/2021,(81275) Medical Surgical Supplies & Equipment,(id:42079) Specialist Ambulatory Services,THERAKOS (UK) LIMITED,id:13558842 ,-760.80
Department of Health,Guys and St Thomas NHS Foundation Trust,28/01/2021,(81275) Medical Surgical Supplies & Equipment,(id:42079) Specialist Ambulatory Services,THERAKOS (UK) LIMITED,id:13662574 ,-760.80
Department of Health,Guys and St Thomas NHS Foundation Trust,28/01/2021,(81275) Medical Surgical Supplies & Equipment,(id:42079) Specialist Ambulatory Services,THERAKOS (UK) LIMITED,id:13662114 ,-760.80
Department of Health,Guys and St Thomas NHS Foundation Trust,28/01/2021,(81275) Medical Surgical Supplies & Equipment,(id:42079) Specialist Ambulatory Services,THERAKOS (UK) LIMITED,id:13662134 ,-760.80
Department of Health,Guys and St Thomas NHS Foundation Trust,28/01/2021,(81275) Medical Surgical Supplies & Equipment,(id:42079) Specialist Ambulatory Services,THERAKOS (UK) LIMITED,id:13661336 ,-760.80
Department of Health,Guys and St Thomas NHS Foundation Trust,28/01/2021,(81275) Medical Surgical Supplies & Equipment,(id:42079) Specialist Ambulatory Services,THERAKOS (UK) LIMITED,id:13661335 ,-760.80
Department of Health,Guys and St Thomas NHS Foundation Trust,15/01/2021,(83400) Office Equipment,(id:42079) Specialist Ambulatory Services,NHS SUPPLY CHAIN (MAIDSTONE),id:13559981,  98.89
Department of Health,Guys and St Thomas NHS Foundation Trust,08/01/2021,(50552) Qualified Nursing Staff,(id:42079) Specialist Ambulatory Services,CONTINENTAL NURSE LTD,id:13611775,2010.39
Department of Health,Guys and St Thomas NHS Foundation Trust,08/01/2021,(81000) Surgical Appliances,(id:42066) Specialist Ambulatory Services,MEDI UK LTD,id:13588420    ,  52.03
Department of Health,Guys and St Thomas NHS Foundation Trust,15/01/2021,(81200) Medical Surgical Supplies & Equipment,(id:391417) Specialist Ambulatory Services,NHS SUPPLY CHAIN (MAIDSTONE),id:13559981   ,  14.70
Department of Health,Guys and St Thomas NHS Foundation Trust,28/01/2021,(81700) Lab Equipment Purchase,(id:391417) Specialist Ambulatory Services,NHS SUPPLY CHAIN (MAIDSTONE),id:13578141   ,   8.07
Department of Health,Guys and St Thomas NHS Foundation Trust,28/01/2021,(82800) Bedding & Linen,(id:391417) Specialist Ambulatory Services,NHS SUPPLY CHAIN (MAIDSTONE),id:13598214,  46.82
Department of Health,Guys and St Thomas NHS Foundation Trust,15/01/2021,(82800) Bedding & Linen,(id:391417) Specialist Ambulatory Services,NHS SUPPLY CHAIN (MAIDSTONE),id:13544798,  23.41
Department of Health,Guys and St Thomas NHS Foundation Trust,28/01/2021,(81100) Dressings,(id:391417) Specialist Ambulatory Services,NHS SUPPLY CHAIN (MAIDSTONE),id:13589614 ,  88.04
Department of Health,Guys and St Thomas NHS Foundation Trust,28/01/2021,(81200) Medical Surgical Supplies & Equipment,(id:42064) Specialist Ambulatory Services,NHS SUPPLY CHAIN (MAIDSTONE),id:13589614    ,  28.99
Department of Health,Guys and St Thomas NHS Foundation Trust,28/01/2021,(81700) Lab Equipment Purchase,(id:42064) Specialist Ambulatory Services,NHS SUPPLY CHAIN (MAIDSTONE),id:13589614    , 584.00
Department of Health,Guys and St Thomas NHS Foundation Trust,15/01/2021,(83400) Office Equipment,(id:590565) Specialist Ambulatory Services,NHS SUPPLY CHAIN (MAIDSTONE),id:13544798    ,   9.36
Department of Health,Guys and St Thomas NHS Foundation Trust,15/01/2021,(81225) Medical Surgical Supplies & Equipment,(id:590565) Specialist Ambulatory Services,NHS SUPPLY CHAIN (MAIDSTONE),id:13559981   , 156.60
Department of Health,Guys and St Thomas NHS Foundation Trust,15/01/2021,(84500) Establishment,(id:42061) Specialist Ambulatory Services,CDP  PRINT MANAGEMENT,id:13614394,   3.60
Department of Health,Guys and St Thomas NHS Foundation Trust,28/01/2021,(84656) Establishment,(id:42057) Specialist Ambulatory Services,DICT8 LIMITED,id:13658255   ,2039.88
Department of Health,Guys and St Thomas NHS Foundation Trust,28/01/2021,(83400) Office Equipment,(id:42056) Specialist Ambulatory Services,NHS SUPPLY CHAIN (MAIDSTONE),id:13578141,  40.98
Department of Health,Guys and St Thomas NHS Foundation Trust,15/01/2021,(83400) Office Equipment,(id:42055) Specialist Ambulatory Services,WAREHOUSE EXPRESS T/A WEX PHOTOGRAPHIC,id:13557232,1350.72
Department of Health,Guys and St Thomas NHS Foundation Trust,15/01/2021,(84500) Establishment,(id:42050) Specialist Ambulatory Services,CDP  PRINT MANAGEMENT,id:13614396,   9.30
Department of Health,Guys and St Thomas NHS Foundation Trust,22/01/2021,(81200) Medical Surgical Supplies & Equipment,(id:42050) Specialist Ambulatory Services,WILLIAMS MEDICAL SUPPLIES PLC,id:13641455   , 501.84
Department of Health,Guys and St Thomas NHS Foundation Trust,28/01/2021,(81200) Medical Surgical Supplies & Equipment,(id:42050) Specialist Ambulatory Services,NHS SUPPLY CHAIN (MAIDSTONE),id:13578141    , 742.92
Department of Health,Guys and St Thomas NHS Foundation Trust,28/01/2021,(81100) Dressings,(id:42050) Specialist Ambulatory Services,NHS SUPPLY CHAIN (MAIDSTONE),id:13589614  ,  87.14
Department of Health,Guys and St Thomas NHS Foundation Trust,15/01/2021,(89270) Establishment,(id:42050) Specialist Ambulatory Services,MONTE FIELDS,id:13626794    , 780.00
Department of Health,Guys and St Thomas NHS Foundation Trust,15/01/2021,(82000) Provisions & Kitchens,(id:42050) Specialist Ambulatory Services,NHS SUPPLY CHAIN (MAIDSTONE),id:13559981,  76.30
Department of Health,Guys and St Thomas NHS Foundation Trust,08/01/2021,(84400) Transport,(id:4622421) Pharmacy,LLOYDS PHARMACY LTD,id:13565595 ,    10264.74
Department of Health,Guys and St Thomas NHS Foundation Trust,15/01/2021,(84400) Transport,(id:4622421) Pharmacy,LLOYDS PHARMACY LTD,id:13349814 ,8294.63
Department of Health,Guys and St Thomas NHS Foundation Trust,28/01/2021,(81200) Medical Surgical Supplies & Equipment,(id:581409) Pharmacy,VALIDAIR (EURO) LTD,id:13513414    ,8285.40
Department of Health,Guys and St Thomas NHS Foundation Trust,28/01/2021,(81275) Medical Surgical Supplies & Equipment,(id:581409) Pharmacy,CHERWELL LABORATORIES LTD,id:13678974   ,5491.38
Department of Health,Guys and St Thomas NHS Foundation Trust,15/01/2021,(81275) Medical Surgical Supplies & Equipment,(id:581409) Pharmacy,CHERWELL LABORATORIES LTD,id:13614255   ,1506.60
Department of Health,Guys and St Thomas NHS Foundation Trust,28/01/2021,(81400) Medical Surgical Supplies & Equipment,(id:581409) Pharmacy,VALIDAIR (EURO) LTD,id:13686437    ,1512.50
Department of Health,Guys and St Thomas NHS Foundation Trust,08/01/2021,(81200) Medical Surgical Supplies & Equipment,(id:42159) Pharmacy,DENNY BROS LTD,id:13583989,1713.32
Department of Health,Guys and St Thomas NHS Foundation Trust,15/01/2021,(84400) Transport,(id:42159) Pharmacy,POLAR SPEED DISTRIBUTION LTD,id:13565893    ,1067.21
Department of Health,Guys and St Thomas NHS Foundation Trust,15/01/2021,(84400) Transport,(id:42159) Pharmacy,POLAR SPEED DISTRIBUTION LTD,id:13617417    ,1215.79
Department of Health,Guys and St Thomas NHS Foundation Trust,21/01/2021,(53682) Pharmacists,(id:42159) Pharmacy,PRICEWATERHOUSECOOPERS LLP,id:13658775    ,4225.09
Department of Health,Guys and St Thomas NHS Foundation Trust,05/01/2021,(53682) Pharmacists,(id:42159) Pharmacy,PRICEWATERHOUSECOOPERS LLP,id:13601079    ,1213.47
Department of Health,Guys and St Thomas NHS Foundation Trust,28/01/2021,(83400) Office Equipment,(id:42159) Pharmacy,NHS SUPPLY CHAIN (MAIDSTONE),id:13589614  ,  70.70
Department of Health,Guys and St Thomas NHS Foundation Trust,15/01/2021,(81700) Lab Equipment Purchase,(id:42159) Pharmacy,NHS SUPPLY CHAIN (MAIDSTONE),id:13544798 ,   8.38
Department of Health,Guys and St Thomas NHS Foundation Trust,05/01/2021,(53672) Pharmacists,(id:42160) Pharmacy,PRICEWATERHOUSECOOPERS LLP,id:13601079    ,3135.69
Department of Health,Guys and St Thomas NHS Foundation Trust,15/01/2021,(82800) Bedding & Linen,(id:42160) Pharmacy,NHS SUPPLY CHAIN (MAIDSTONE),id:13559981   ,  93.65
Department of Health,Guys and St Thomas NHS Foundation Trust,28/01/2021,(83400) Office Equipment,(id:42160) Pharmacy,NHS SUPPLY CHAIN (MAIDSTONE),id:13578141  ,  57.92
Department of Health,Guys and St Thomas NHS Foundation Trust,28/01/2021,(81200) Medical Surgical Supplies & Equipment,(id:3695419) Medical Specialties,NHS SUPPLY CHAIN (MAIDSTONE),id:13589614   ,  34.56
Department of Health,Guys and St Thomas NHS Foundation Trust,28/01/2021,(82800) Bedding & Linen,(id:478416) Medical Specialties,NHS SUPPLY CHAIN (MAIDSTONE),id:13578141 ,  70.24
Department of Health,Guys and St Thomas NHS Foundation Trust,15/01/2021,(84500) Establishment,(id:42171) Medical Specialties,CDP  PRINT MANAGEMENT,id:13614395 ,   3.10
Department of Health,Guys and St Thomas NHS Foundation Trust,08/01/2021,(81000) Surgical Appliances,(id:42171) Medical Specialties,TALAR MADE ORTHOTICS LTD,id:13589075  , 504.00
Department of Health,Guys and St Thomas NHS Foundation Trust,15/01/2021,(81000) Surgical Appliances,(id:42171) Medical Specialties,TALAR MADE ORTHOTICS LTD,id:13624794  , 252.00
Department of Health,Guys and St Thomas NHS Foundation Trust,15/01/2021,(84500) Establishment,(id:42170) Medical Specialties,CDP  PRINT MANAGEMENT,id:13614398 ,   3.10
Department of Health,Guys and St Thomas NHS Foundation Trust,28/01/2021,(81100) Dressings,(id:42217) Medical Specialties,NHS SUPPLY CHAIN (MAIDSTONE),id:13578141   , 696.75
Department of Health,Guys and St Thomas NHS Foundation Trust,22/01/2021,(83630) IT Costs,(id:42224) Medical Specialties,DIGITAL HEALTCARE LIMITED,id:13600555  ,4800.00
Department of Health,Guys and St Thomas NHS Foundation Trust,15/01/2021,(84500) Establishment,(id:42223) Medical Specialties,CDP  PRINT MANAGEMENT,id:13614399 ,  18.00
Department of Health,Guys and St Thomas NHS Foundation Trust,28/01/2021,(81200) Medical Surgical Supplies & Equipment,(id:42223) Medical Specialties,NHS SUPPLY CHAIN (MAIDSTONE),id:13589614, 679.03
Department of Health,Guys and St Thomas NHS Foundation Trust,28/01/2021,(81200) Medical Surgical Supplies & Equipment,(id:42223) Medical Specialties,DORC LTD,id:13693174, 744.00
Department of Health,Guys and St Thomas NHS Foundation Trust,15/01/2021,(81200) Medical Surgical Supplies & Equipment,(id:42223) Medical Specialties,MAINLINE INSTRUMENTS LTD,id:13634076    , 972.00
Department of Health,Guys and St Thomas NHS Foundation Trust,15/01/2021,(82700) Uniforms & Clothing,(id:42223) Medical Specialties,NHS SUPPLY CHAIN (MAIDSTONE),id:13559981   , 264.84
Department of Health,Guys and St Thomas NHS Foundation Trust,15/01/2021,(82800) Bedding & Linen,(id:42223) Medical Specialties,NHS SUPPLY CHAIN (MAIDSTONE),id:13559981  , 280.82
Department of Health,Guys and St Thomas NHS Foundation Trust,28/01/2021,(81200) Medical Surgical Supplies & Equipment,(id:42222) Medical Specialties,DAYBREAK MEDICAL LTD,id:13682174   ,2307.36
Department of Health,Guys and St Thomas NHS Foundation Trust,15/01/2021,(83400) Office Equipment,(id:42221) Medical Specialties,NHS SUPPLY CHAIN (MAIDSTONE),id:13559981 , 201.07
Department of Health,Guys and St Thomas NHS Foundation Trust,28/01/2021,(81200) Medical Surgical Supplies & Equipment,(id:42221) Medical Specialties,ALCON EYE CARE UK LIMITED,id:13622154   ,5874.00
Department of Health,Guys and St Thomas NHS Foundation Trust,15/01/2021,(81200) Medical Surgical Supplies & Equipment,(id:42221) Medical Specialties,CORE SURGICAL LTD,id:13628795 ,1578.00
Department of Health,Guys and St Thomas NHS Foundation Trust,22/01/2021,(81200) Medical Surgical Supplies & Equipment,(id:42221) Medical Specialties,ALCON EYE CARE UK LIMITED,id:13649036   , 882.00
Department of Health,Guys and St Thomas NHS Foundation Trust,22/01/2021,(81225) Medical Surgical Supplies & Equipment,(id:42221) Medical Specialties,CARL ZEISS LTD,id:13667394    ,-600.00
Department of Health,Guys and St Thomas NHS Foundation Trust,15/01/2021,(82600) Uniforms & Clothing,(id:42221) Medical Specialties,NHS SUPPLY CHAIN (MAIDSTONE),id:13544798   ,  36.00
Department of Health,Guys and St Thomas NHS Foundation Trust,08/01/2021,(82600) Uniforms & Clothing,(id:42221) Medical Specialties,LITECHNICA LTD,id:13605581  ,1909.80
Department of Health,Guys and St Thomas NHS Foundation Trust,15/01/2021,(84500) Establishment,(id:42220) Medical Specialties,CDP  PRINT MANAGEMENT,id:13614395 ,  28.56
Department of Health,Guys and St Thomas NHS Foundation Trust,08/01/2021,(84500) Establishment,(id:42219) Medical Specialties,OFFICE DEPOT UK LTD,id:13546136   ,  55.59
Department of Health,Guys and St Thomas NHS Foundation Trust,28/01/2021,(83400) Office Equipment,(id:42213) Medical Specialties,NHS SUPPLY CHAIN (MAIDSTONE),id:13589614 ,   1.01
Department of Health,Guys and St Thomas NHS Foundation Trust,28/01/2021,(81200) Medical Surgical Supplies & Equipment,(id:42213) Medical Specialties,NHS SUPPLY CHAIN (MAIDSTONE),id:13578141,  99.48
Department of Health,Guys and St Thomas NHS Foundation Trust,15/01/2021,(81000) Surgical Appliances,(id:42213) Medical Specialties,TALAR MADE ORTHOTICS LTD,id:13624774  ,  93.00
Department of Health,Guys and St Thomas NHS Foundation Trust,15/01/2021,(81700) Lab Equipment Purchase,(id:42213) Medical Specialties,NHS SUPPLY CHAIN (MAIDSTONE),id:13544798,  15.79
Department of Health,Guys and St Thomas NHS Foundation Trust,15/01/2021,(81200) Medical Surgical Supplies & Equipment,(id:42209) Medical Specialties,MEDTRONIC LTD,id:13608393, 130.27
Department of Health,Guys and St Thomas NHS Foundation Trust,08/01/2021,(81000) Surgical Appliances,(id:42209) Medical Specialties,TALAR MADE ORTHOTICS LTD,id:13588471  , 114.00
Department of Health,Guys and St Thomas NHS Foundation Trust,28/01/2021,(82800) Bedding & Linen,(id:42208) Medical Specialties,NHS SUPPLY CHAIN (MAIDSTONE),id:13578141  ,   4.49
Department of Health,Guys and St Thomas NHS Foundation Trust,08/01/2021,(81200) Medical Surgical Supplies & Equipment,(id:42208) Medical Specialties,MEDTRONIC LTD,id:13609094,1643.04
Department of Health,Guys and St Thomas NHS Foundation Trust,08/01/2021,(81200) Medical Surgical Supplies & Equipment,(id:42208) Medical Specialties,DEXCOM INTERNATIONAL LTD,id:13589115    , 793.50
Department of Health,Guys and St Thomas NHS Foundation Trust,08/01/2021,(81200) Medical Surgical Supplies & Equipment,(id:42208) Medical Specialties,MEDTRONIC LTD,id:13545277,1190.64
Department of Health,Guys and St Thomas NHS Foundation Trust,08/01/2021,(81200) Medical Surgical Supplies & Equipment,(id:42208) Medical Specialties,MEDTRONIC LTD,id:13570074, 503.11
Department of Health,Guys and St Thomas NHS Foundation Trust,08/01/2021,(81200) Medical Surgical Supplies & Equipment,(id:42208) Medical Specialties,INSULET INTERNATIONAL LTD,id:13566586   , 712.08
Department of Health,Guys and St Thomas NHS Foundation Trust,08/01/2021,(81200) Medical Surgical Supplies & Equipment,(id:42208) Medical Specialties,INSULET INTERNATIONAL LTD,id:13553834   , 712.08
Department of Health,Guys and St Thomas NHS Foundation Trust,08/01/2021,(81200) Medical Surgical Supplies & Equipment,(id:42208) Medical Specialties,INSULET INTERNATIONAL LTD,id:13566474   , 712.08
Department of Health,Guys and St Thomas NHS Foundation Trust,08/01/2021,(81200) Medical Surgical Supplies & Equipment,(id:42208) Medical Specialties,INSULET INTERNATIONAL LTD,id:13566580   , 712.08
Department of Health,Guys and St Thomas NHS Foundation Trust,08/01/2021,(81200) Medical Surgical Supplies & Equipment,(id:42208) Medical Specialties,INSULET INTERNATIONAL LTD,id:13563569   , 712.08
Department of Health,Guys and St Thomas NHS Foundation Trust,08/01/2021,(81200) Medical Surgical Supplies & Equipment,(id:42208) Medical Specialties,INSULET INTERNATIONAL LTD,id:13563382   , 712.08
Department of Health,Guys and St Thomas NHS Foundation Trust,15/01/2021,(81200) Medical Surgical Supplies & Equipment,(id:42208) Medical Specialties,MEDTRONIC LTD,id:13593858, 585.29
Department of Health,Guys and St Thomas NHS Foundation Trust,15/01/2021,(81200) Medical Surgical Supplies & Equipment,(id:42208) Medical Specialties,MEDTRONIC LTD,id:13597052, 567.00
Department of Health,Guys and St Thomas NHS Foundation Trust,15/01/2021,(81200) Medical Surgical Supplies & Equipment,(id:42208) Medical Specialties,MEDTRONIC LTD,id:13613857, 572.40
Department of Health,Guys and St Thomas NHS Foundation Trust,15/01/2021,(81200) Medical Surgical Supplies & Equipment,(id:42208) Medical Specialties,MEDTRONIC LTD,id:13591754, 554.68
Department of Health,Guys and St Thomas NHS Foundation Trust,15/01/2021,(81200) Medical Surgical Supplies & Equipment,(id:42208) Medical Specialties,MEDTRONIC LTD,id:13594316, 551.28
Department of Health,Guys and St Thomas NHS Foundation Trust,15/01/2021,(81200) Medical Surgical Supplies & Equipment,(id:42208) Medical Specialties,INSULET INTERNATIONAL LTD,id:13622320   , 712.08
Department of Health,Guys and St Thomas NHS Foundation Trust,15/01/2021,(81200) Medical Surgical Supplies & Equipment,(id:42208) Medical Specialties,INSULET INTERNATIONAL LTD,id:13621855   , 712.08
Department of Health,Guys and St Thomas NHS Foundation Trust,15/01/2021,(81200) Medical Surgical Supplies & Equipment,(id:42208) Medical Specialties,INSULET INTERNATIONAL LTD,id:13621777   , 712.08
Department of Health,Guys and St Thomas NHS Foundation Trust,22/01/2021,(81200) Medical Surgical Supplies & Equipment,(id:42208) Medical Specialties,DEXCOM INTERNATIONAL LTD,id:13641875    , 793.50
Department of Health,Guys and St Thomas NHS Foundation Trust,22/01/2021,(81200) Medical Surgical Supplies & Equipment,(id:42208) Medical Specialties,DEXCOM INTERNATIONAL LTD,id:13654614    , 793.50
Department of Health,Guys and St Thomas NHS Foundation Trust,22/01/2021,(81200) Medical Surgical Supplies & Equipment,(id:42208) Medical Specialties,DEXCOM INTERNATIONAL LTD,id:13627538    , 793.50
Department of Health,Guys and St Thomas NHS Foundation Trust,22/01/2021,(81200) Medical Surgical Supplies & Equipment,(id:42208) Medical Specialties,DEXCOM INTERNATIONAL LTD,id:13654397    , 793.50
Department of Health,Guys and St Thomas NHS Foundation Trust,22/01/2021,(81200) Medical Surgical Supplies & Equipment,(id:42208) Medical Specialties,MEDTRONIC LTD,id:13581814,2913.60
Department of Health,Guys and St Thomas NHS Foundation Trust,08/01/2021,(81200) Medical Surgical Supplies & Equipment,(id:42208) Medical Specialties,MEDTRONIC LTD,id:13593894,3240.00
Department of Health,Guys and St Thomas NHS Foundation Trust,28/01/2021,(81200) Medical Surgical Supplies & Equipment,(id:42208) Medical Specialties,DEXCOM INTERNATIONAL LTD,id:13697935    , 793.50
Department of Health,Guys and St Thomas NHS Foundation Trust,28/01/2021,(81200) Medical Surgical Supplies & Equipment,(id:42208) Medical Specialties,DEXCOM INTERNATIONAL LTD,id:13697794    , 793.50
Department of Health,Guys and St Thomas NHS Foundation Trust,28/01/2021,(81200) Medical Surgical Supplies & Equipment,(id:42208) Medical Specialties,MEDTRONIC LTD,id:13633501, 523.92
Department of Health,Guys and St Thomas NHS Foundation Trust,28/01/2021,(81200) Medical Surgical Supplies & Equipment,(id:42208) Medical Specialties,DEXCOM INTERNATIONAL LTD,id:13697874    , 600.00
Department of Health,Guys and St Thomas NHS Foundation Trust,28/01/2021,(81200) Medical Surgical Supplies & Equipment,(id:42208) Medical Specialties,AIR LIQUIDE (HOMECARE) LTD,id:13683195  ,3642.00
Department of Health,Guys and St Thomas NHS Foundation Trust,28/01/2021,(81200) Medical Surgical Supplies & Equipment,(id:42208) Medical Specialties,ROCHE DIABETES CARE LIMITED,id:13648234 ,2994.00
Department of Health,Guys and St Thomas NHS Foundation Trust,15/01/2021,(89595) Non-Healthcare from Foundation Trusts,(id:42202) Medical Specialties,MANCHESTER UNIVERSITY NHS FOUNDATION TRUST,id:12736803 , 992.00
Department of Health,Guys and St Thomas NHS Foundation Trust,28/01/2021,(89595) Non-Healthcare from Foundation Trusts,(id:42202) Medical Specialties,MOORFIELDS EYE HOSPITAL NHS FOUNDATION TRUST,id:13466522    ,1011.50
Department of Health,Guys and St Thomas NHS Foundation Trust,28/01/2021,(89595) Non-Healthcare from Foundation Trusts,(id:42202) Medical Specialties,UNIVERSITY COLLEGE LONDON HOSPITALS NHS FOUNDATION TRUST,id:13659245  ,1585.41
Department of Health,Guys and St Thomas NHS Foundation Trust,15/01/2021,(84500) Establishment,(id:42199) Medical Specialties,CDP  PRINT MANAGEMENT,id:13614399 ,   3.10
Department of Health,Guys and St Thomas NHS Foundation Trust,08/01/2021,(81000) Surgical Appliances,(id:42199) Medical Specialties,TALAR MADE ORTHOTICS LTD,id:13588471  ,  14.40
Department of Health,Guys and St Thomas NHS Foundation Trust,15/01/2021,(81200) Medical Surgical Supplies & Equipment,(id:302405) Medical Specialties,NHS SUPPLY CHAIN (MAIDSTONE),id:13544798    ,  43.32
Department of Health,Guys and St Thomas NHS Foundation Trust,15/01/2021,(83400) Office Equipment,(id:42205) Medical Specialties,NHS SUPPLY CHAIN (MAIDSTONE),id:13544798 ,  18.84
Department of Health,Guys and St Thomas NHS Foundation Trust,22/01/2021,(89120) Other - Legal fees,(id:42190) Medical Specialties,BEACHCROFT LLP OFFICE ACCOUNT,id:13658534   ,2400.00
Department of Health,Guys and St Thomas NHS Foundation Trust,15/01/2021,(84500) Establishment,(id:41937) Medical Specialties,CDP  PRINT MANAGEMENT,id:13614394 ,   9.80
Department of Health,Guys and St Thomas NHS Foundation Trust,15/01/2021,(83400) Office Equipment,(id:41937) Medical Specialties,NHS SUPPLY CHAIN (MAIDSTONE),id:13544798 , 218.23
Department of Health,Guys and St Thomas NHS Foundation Trust,08/01/2021,(83400) Office Equipment,(id:41937) Medical Specialties,DICT8 LIMITED,id:13581399 ,1459.68
Department of Health,Guys and St Thomas NHS Foundation Trust,08/01/2021,(81200) Medical Surgical Supplies & Equipment,(id:41937) Medical Specialties,MEDTRONIC LTD,id:13561655,    18055.20
Department of Health,Guys and St Thomas NHS Foundation Trust,28/01/2021,(81200) Medical Surgical Supplies & Equipment,(id:41937) Medical Specialties,BXTACCELYON LIMITED,id:13650674    ,1254.00
Department of Health,Guys and St Thomas NHS Foundation Trust,15/01/2021,(81200) Medical Surgical Supplies & Equipment,(id:41937) Medical Specialties,MEDTRONIC LTD,id:13615574, 906.00
Department of Health,Guys and St Thomas NHS Foundation Trust,22/01/2021,(81200) Medical Surgical Supplies & Equipment,(id:41937) Medical Specialties,BOSTON SCIENTIFIC LTD,id:13665943  ,    14490.00
Department of Health,Guys and St Thomas NHS Foundation Trust,22/01/2021,(81500) X Ray Equipment Purchase,(id:41937) Medical Specialties,OPTIMUS MEDICAL LTD,id:13640054  , 303.00
Department of Health,Guys and St Thomas NHS Foundation Trust,15/01/2021,(82700) Uniforms & Clothing,(id:41937) Medical Specialties,NHS SUPPLY CHAIN (MAIDSTONE),id:13559981   , 105.94
Department of Health,Guys and St Thomas NHS Foundation Trust,15/01/2021,(84500) Establishment,(id:590533) Therapies and Rehabilitation,CDP  PRINT MANAGEMENT,id:13614401 ,   3.60
Department of Health,Guys and St Thomas NHS Foundation Trust,15/01/2021,(84500) Establishment,(id:42232) Therapies and Rehabilitation,CDP  PRINT MANAGEMENT,id:13614399  ,  79.20
Department of Health,Guys and St Thomas NHS Foundation Trust,28/01/2021,(81200) Medical Surgical Supplies & Equipment,(id:42232) Therapies and Rehabilitation,NHS SUPPLY CHAIN (MAIDSTONE),id:13578141 , 185.66
Department of Health,Guys and St Thomas NHS Foundation Trust,05/01/2021,(51862) Physiotherapists,(id:42232) Therapies and Rehabilitation,PRICEWATERHOUSECOOPERS LLP,id:13601079    ,4241.91
Department of Health,Guys and St Thomas NHS Foundation Trust,14/01/2021,(51862) Physiotherapists,(id:42232) Therapies and Rehabilitation,PRICEWATERHOUSECOOPERS LLP,id:13628959    ,5767.19
Department of Health,Guys and St Thomas NHS Foundation Trust,15/01/2021,(84500) Establishment,(id:42240) Therapies and Rehabilitation,CDP  PRINT MANAGEMENT,id:13614395  ,  18.00
Department of Health,Guys and St Thomas NHS Foundation Trust,28/01/2021,(82800) Bedding & Linen,(id:42240) Therapies and Rehabilitation,NHS SUPPLY CHAIN (MAIDSTONE),id:13589614   ,  93.65
Department of Health,Guys and St Thomas NHS Foundation Trust,27/01/2021,(51472) Occupational Therapists,(id:42240) Therapies and Rehabilitation,PRICEWATERHOUSECOOPERS LLP,id:13693838  ,2723.22
Department of Health,Guys and St Thomas NHS Foundation Trust,22/01/2021,(81400) Medical Surgical Supplies & Equipment,(id:590566) Therapies and Rehabilitation,DESOUTTER MEDICAL LTD,id:13649454  ,1106.80
Department of Health,Guys and St Thomas NHS Foundation Trust,28/01/2021,(83400) Office Equipment,(id:590530) Therapies and Rehabilitation,NHS SUPPLY CHAIN (MAIDSTONE),id:13578141 ,  76.46
Department of Health,Guys and St Thomas NHS Foundation Trust,28/01/2021,(81100) Dressings,(id:590530) Therapies and Rehabilitation,NHS SUPPLY CHAIN (MAIDSTONE),id:13589614   , 170.30
Department of Health,Guys and St Thomas NHS Foundation Trust,28/01/2021,(81200) Medical Surgical Supplies & Equipment,(id:590490) Therapies and Rehabilitation,NHS SUPPLY CHAIN (MAIDSTONE),id:13589614, 107.64
Department of Health,Guys and St Thomas NHS Foundation Trust,28/01/2021,(81100) Dressings,(id:590490) Therapies and Rehabilitation,NHS SUPPLY CHAIN (MAIDSTONE),id:13589614   , 290.24
Department of Health,Guys and St Thomas NHS Foundation Trust,27/01/2021,(53062) Speech Therapists,(id:42248) Therapies and Rehabilitation,PRICEWATERHOUSECOOPERS LLP,id:13693838   ,1188.02
Department of Health,Guys and St Thomas NHS Foundation Trust,15/01/2021,(84500) Establishment,(id:42247) Therapies and Rehabilitation,CDP  PRINT MANAGEMENT,id:13614401  ,   3.60
Department of Health,Guys and St Thomas NHS Foundation Trust,28/01/2021,(81200) Medical Surgical Supplies & Equipment,(id:590498) Therapies and Rehabilitation,NHS SUPPLY CHAIN (MAIDSTONE),id:13578141,  45.18
Department of Health,Guys and St Thomas NHS Foundation Trust,28/01/2021,(82800) Bedding & Linen,(id:590496) Therapies and Rehabilitation,NHS SUPPLY CHAIN (MAIDSTONE),id:13578141  ,  23.41
Department of Health,Guys and St Thomas NHS Foundation Trust,28/01/2021,(82800) Bedding & Linen,(id:1042419) Therapies and Rehabilitation,NHS SUPPLY CHAIN (MAIDSTONE),id:13589614 ,  93.65
Department of Health,Guys and St Thomas NHS Foundation Trust,15/01/2021,(82000) Provisions & Kitchens,(id:1042419) Therapies and Rehabilitation,NHS SUPPLY CHAIN (MAIDSTONE),id:13559981,  23.43
Department of Health,Guys and St Thomas NHS Foundation Trust,15/01/2021,(84500) Establishment,(id:1042419) Therapies and Rehabilitation,CDP  PRINT MANAGEMENT,id:13614395,  18.00
Department of Health,Guys and St Thomas NHS Foundation Trust,08/01/2021,(83400) Office Equipment,(id:1042419) Therapies and Rehabilitation,ASSIST SECURITY LIMITED,id:13587900,1440.00
Department of Health,Guys and St Thomas NHS Foundation Trust,15/01/2021,(83400) Office Equipment,(id:1042419) Therapies and Rehabilitation,NHS SUPPLY CHAIN (MAIDSTONE),id:13544798, 472.44
Department of Health,Guys and St Thomas NHS Foundation Trust,08/01/2021,(50200) Consultants,(id:42368) Clinical Imaging & Med Physics,KINGS COLLEGE LONDON:03529700,id:13416374    ,4395.42
Department of Health,Guys and St Thomas NHS Foundation Trust,08/01/2021,(50203) Consultants,(id:42368) Clinical Imaging & Med Physics,KINGS COLLEGE LONDON:03529700,id:13348710    ,9124.99
Department of Health,Guys and St Thomas NHS Foundation Trust,14/01/2021,(50202) Consultants,(id:42368) Clinical Imaging & Med Physics,PRICEWATERHOUSECOOPERS LLP,id:13628959  , 881.41
Department of Health,Guys and St Thomas NHS Foundation Trust,21/01/2021,(50202) Consultants,(id:42368) Clinical Imaging & Med Physics,PRICEWATERHOUSECOOPERS LLP,id:13658775  ,1090.35
Department of Health,Guys and St Thomas NHS Foundation Trust,28/01/2021,(82000) Provisions & Kitchens,(id:42367) Clinical Imaging & Med Physics,NHS SUPPLY CHAIN (MAIDSTONE),id:13589614,  52.90
Department of Health,Guys and St Thomas NHS Foundation Trust,15/01/2021,(84500) Establishment,(id:42367) Clinical Imaging & Med Physics,CDP  PRINT MANAGEMENT,id:13614397, 153.80
Department of Health,Guys and St Thomas NHS Foundation Trust,15/01/2021,(84500) Establishment,(id:42367) Clinical Imaging & Med Physics,CDP  PRINT MANAGEMENT,id:13614400,  36.00
Department of Health,Guys and St Thomas NHS Foundation Trust,28/01/2021,(83400) Office Equipment,(id:42367) Clinical Imaging & Med Physics,NHS SUPPLY CHAIN (MAIDSTONE),id:13589614, 310.13
Department of Health,Guys and St Thomas NHS Foundation Trust,15/01/2021,(82800) Bedding & Linen,(id:42367) Clinical Imaging & Med Physics,NHS SUPPLY CHAIN (MAIDSTONE),id:13559981 , 433.27
Department of Health,Guys and St Thomas NHS Foundation Trust,28/01/2021,(81100) Dressings,(id:42367) Clinical Imaging & Med Physics,NHS SUPPLY CHAIN (MAIDSTONE),id:13578141  , 201.42
Department of Health,Guys and St Thomas NHS Foundation Trust,28/01/2021,(81240) Medical Surgical Supplies & Equipment,(id:42367) Clinical Imaging & Med Physics,NHS SUPPLY CHAIN (MAIDSTONE),id:13598214    , 624.00
Department of Health,Guys and St Thomas NHS Foundation Trust,28/01/2021,(82700) Uniforms & Clothing,(id:42367) Clinical Imaging & Med Physics,NHS SUPPLY CHAIN (MAIDSTONE),id:13589614  , 529.68
Department of Health,Guys and St Thomas NHS Foundation Trust,08/01/2021,(81200) Medical Surgical Supplies & Equipment,(id:42367) Clinical Imaging & Med Physics,BOSTON SCIENTIFIC LTD,id:13583421 , 414.00
Department of Health,Guys and St Thomas NHS Foundation Trust,08/01/2021,(81200) Medical Surgical Supplies & Equipment,(id:42367) Clinical Imaging & Med Physics,MACROMED (UK) LTD,id:13488514,2310.00
Department of Health,Guys and St Thomas NHS Foundation Trust,08/01/2021,(81200) Medical Surgical Supplies & Equipment,(id:42367) Clinical Imaging & Med Physics,COOK UK LTD,id:13582642 ,2502.00
Department of Health,Guys and St Thomas NHS Foundation Trust,08/01/2021,(81200) Medical Surgical Supplies & Equipment,(id:42367) Clinical Imaging & Med Physics,ONCOLOGY IMAGING SYSTEMS LTD,id:13606581    , 729.60
Department of Health,Guys and St Thomas NHS Foundation Trust,08/01/2021,(81200) Medical Surgical Supplies & Equipment,(id:42367) Clinical Imaging & Med Physics,COOK UK LTD,id:13541005 ,1208.40
Department of Health,Guys and St Thomas NHS Foundation Trust,08/01/2021,(81200) Medical Surgical Supplies & Equipment,(id:42367) Clinical Imaging & Med Physics,TERUMO UK LTD,id:13571530    ,1080.00
Department of Health,Guys and St Thomas NHS Foundation Trust,08/01/2021,(81200) Medical Surgical Supplies & Equipment,(id:42367) Clinical Imaging & Med Physics,BARD LTD,id:13558820    ,1192.80
Department of Health,Guys and St Thomas NHS Foundation Trust,08/01/2021,(81200) Medical Surgical Supplies & Equipment,(id:42367) Clinical Imaging & Med Physics,MEDTRONIC LTD,id:13610274    ,1260.00
Department of Health,Guys and St Thomas NHS Foundation Trust,08/01/2021,(81200) Medical Surgical Supplies & Equipment,(id:42367) Clinical Imaging & Med Physics,MACROMED (UK) LTD,id:13594614,1350.00
Department of Health,Guys and St Thomas NHS Foundation Trust,08/01/2021,(81200) Medical Surgical Supplies & Equipment,(id:42367) Clinical Imaging & Med Physics,CARDINAL HEALTH UK 432 LIMITED,id:13609655  ,1416.00
Department of Health,Guys and St Thomas NHS Foundation Trust,08/01/2021,(81200) Medical Surgical Supplies & Equipment,(id:42367) Clinical Imaging & Med Physics,BOSTON SCIENTIFIC LTD,id:13558008 , 338.40
Department of Health,Guys and St Thomas NHS Foundation Trust,15/01/2021,(81200) Medical Surgical Supplies & Equipment,(id:42367) Clinical Imaging & Med Physics,BOSTON SCIENTIFIC LTD,id:13596967 , 684.00
Department of Health,Guys and St Thomas NHS Foundation Trust,28/01/2021,(81200) Medical Surgical Supplies & Equipment,(id:42367) Clinical Imaging & Med Physics,BOSTON SCIENTIFIC LTD,id:13615257 , 612.00
Department of Health,Guys and St Thomas NHS Foundation Trust,28/01/2021,(81200) Medical Surgical Supplies & Equipment,(id:42367) Clinical Imaging & Med Physics,VOLCANO EUROPE BVBA/SPRL,id:13350378   ,1680.00
Department of Health,Guys and St Thomas NHS Foundation Trust,22/01/2021,(81200) Medical Surgical Supplies & Equipment,(id:42367) Clinical Imaging & Med Physics,VOLCANO EUROPE BVBA/SPRL,id:13657934   ,1374.00
Department of Health,Guys and St Thomas NHS Foundation Trust,22/01/2021,(81200) Medical Surgical Supplies & Equipment,(id:42367) Clinical Imaging & Med Physics,MEDTRONIC LTD,id:13605808    , 840.00
Department of Health,Guys and St Thomas NHS Foundation Trust,22/01/2021,(81200) Medical Surgical Supplies & Equipment,(id:42367) Clinical Imaging & Med Physics,MEDTRONIC LTD,id:13605810    , 840.00
Department of Health,Guys and St Thomas NHS Foundation Trust,22/01/2021,(81200) Medical Surgical Supplies & Equipment,(id:42367) Clinical Imaging & Med Physics,BOSTON SCIENTIFIC LTD,id:13602490 , 510.00
Department of Health,Guys and St Thomas NHS Foundation Trust,08/01/2021,(81235) Medical Surgical Supplies & Equipment,(id:42367) Clinical Imaging & Med Physics,BOSTON SCIENTIFIC LTD,id:13558202 , 894.00
Department of Health,Guys and St Thomas NHS Foundation Trust,08/01/2021,(81230) Medical Surgical Supplies & Equipment,(id:42367) Clinical Imaging & Med Physics,COOK UK LTD,id:13576826 , 258.00
Department of Health,Guys and St Thomas NHS Foundation Trust,08/01/2021,(81230) Medical Surgical Supplies & Equipment,(id:42367) Clinical Imaging & Med Physics,COOK UK LTD,id:13585551 , 264.00
Department of Health,Guys and St Thomas NHS Foundation Trust,08/01/2021,(81230) Medical Surgical Supplies & Equipment,(id:42367) Clinical Imaging & Med Physics,COOK UK LTD,id:13583474 ,  90.00
Department of Health,Guys and St Thomas NHS Foundation Trust,22/01/2021,(81230) Medical Surgical Supplies & Equipment,(id:42367) Clinical Imaging & Med Physics,CARDINAL HEALTH UK 432 LIMITED,id:13608479  , 175.80
Department of Health,Guys and St Thomas NHS Foundation Trust,28/01/2021,(81230) Medical Surgical Supplies & Equipment,(id:42367) Clinical Imaging & Med Physics,NHS SUPPLY CHAIN (MAIDSTONE),id:13578141    , 166.14
Department of Health,Guys and St Thomas NHS Foundation Trust,15/01/2021,(81500) X Ray Equipment Purchase,(id:42367) Clinical Imaging & Med Physics,BAYER PLC,id:13628200 ,3360.00
Department of Health,Guys and St Thomas NHS Foundation Trust,22/01/2021,(89000) Other - Training courses and conferences,(id:42367) Clinical Imaging & Med Physics,ELSEVIER,id:13534654 ,9143.00
Department of Health,Guys and St Thomas NHS Foundation Trust,15/01/2021,(82600) Uniforms & Clothing,(id:42366) Clinical Imaging & Med Physics,NHS SUPPLY CHAIN (MAIDSTONE),id:13559981  , 400.63
Department of Health,Guys and St Thomas NHS Foundation Trust,28/01/2021,(82800) Bedding & Linen,(id:42366) Clinical Imaging & Med Physics,NHS SUPPLY CHAIN (MAIDSTONE),id:13578141 , 251.91
Department of Health,Guys and St Thomas NHS Foundation Trust,28/01/2021,(81100) Dressings,(id:42366) Clinical Imaging & Med Physics,NHS SUPPLY CHAIN (MAIDSTONE),id:13589614  ,  58.60
Department of Health,Guys and St Thomas NHS Foundation Trust,22/01/2021,(81200) Medical Surgical Supplies & Equipment,(id:42366) Clinical Imaging & Med Physics,UK MEDICAL LTD,id:13661715   , 784.86
Department of Health,Guys and St Thomas NHS Foundation Trust,28/01/2021,(81500) X Ray Equipment Purchase,(id:42366) Clinical Imaging & Med Physics,BAYER PLC,id:13641254 ,2520.00
Department of Health,Guys and St Thomas NHS Foundation Trust,15/01/2021,(81500) X Ray Equipment Purchase,(id:42366) Clinical Imaging & Med Physics,BAYER PLC,id:13628655 ,2131.20
Department of Health,Guys and St Thomas NHS Foundation Trust,28/01/2021,(81200) Medical Surgical Supplies & Equipment,(id:4187419) Clinical Imaging & Med Physics,ADVANCED ACCELERATOR APPLICATIONS (UK & IRELAND) LTD,id:13685975   ,    16690.50
Department of Health,Guys and St Thomas NHS Foundation Trust,15/01/2021,(83400) Office Equipment,(id:42372) Clinical Imaging & Med Physics,BAYER PLC,id:13622085    ,2112.00
Department of Health,Guys and St Thomas NHS Foundation Trust,08/01/2021,(50203) Consultants,(id:42372) Clinical Imaging & Med Physics,KINGS COLLEGE LONDON:03529700,id:13348710    ,6442.85
Department of Health,Guys and St Thomas NHS Foundation Trust,15/01/2021,(84500) Establishment,(id:42372) Clinical Imaging & Med Physics,CDP  PRINT MANAGEMENT,id:13614399,   3.10
Department of Health,Guys and St Thomas NHS Foundation Trust,15/01/2021,(84500) Establishment,(id:42372) Clinical Imaging & Med Physics,CDP  PRINT MANAGEMENT,id:13614394,   6.20
Department of Health,Guys and St Thomas NHS Foundation Trust,28/01/2021,(82800) Bedding & Linen,(id:42372) Clinical Imaging & Med Physics,NHS SUPPLY CHAIN (MAIDSTONE),id:13589614 ,  60.35
Department of Health,Guys and St Thomas NHS Foundation Trust,27/01/2021,(52062) Radiographers,(id:42372) Clinical Imaging & Med Physics,PRICEWATERHOUSECOOPERS LLP,id:13693838,2305.25
Department of Health,Guys and St Thomas NHS Foundation Trust,28/01/2021,(81700) Lab Equipment Purchase,(id:42372) Clinical Imaging & Med Physics,NHS SUPPLY CHAIN (MAIDSTONE),id:13598214    ,   7.74
Department of Health,Guys and St Thomas NHS Foundation Trust,15/01/2021,(81700) Lab Equipment Purchase,(id:42372) Clinical Imaging & Med Physics,NHS SUPPLY CHAIN (MAIDSTONE),id:13544798    ,   9.19
Department of Health,Guys and St Thomas NHS Foundation Trust,15/01/2021,(81200) Medical Surgical Supplies & Equipment,(id:42372) Clinical Imaging & Med Physics,NHS SUPPLY CHAIN (MAIDSTONE),id:13544798    ,1847.09
Department of Health,Guys and St Thomas NHS Foundation Trust,28/01/2021,(81200) Medical Surgical Supplies & Equipment,(id:42372) Clinical Imaging & Med Physics,NHS SUPPLY CHAIN (MAIDSTONE),id:13589614    , 721.40
Department of Health,Guys and St Thomas NHS Foundation Trust,28/01/2021,(81275) Medical Surgical Supplies & Equipment,(id:42372) Clinical Imaging & Med Physics,GE HEALTHCARE UK LTD:00475800,id:13686314   , 630.00
Department of Health,Guys and St Thomas NHS Foundation Trust,28/01/2021,(81500) X Ray Equipment Purchase,(id:42372) Clinical Imaging & Med Physics,CHARLES RIVER MICROBIAL SOLUTIONS INTERNATIONAL LIMITED,id:13681395,8058.00
Department of Health,Guys and St Thomas NHS Foundation Trust,08/01/2021,(50200) Consultants,(id:42372) Clinical Imaging & Med Physics,KINGS COLLEGE LONDON:03529700,id:13204256    , 839.92
Department of Health,Guys and St Thomas NHS Foundation Trust,28/01/2021,(81400) Medical Surgical Supplies & Equipment,(id:42379) Clinical Imaging & Med Physics,KCI MEDICAL LTD,id:13647120  , 584.71
Department of Health,Guys and St Thomas NHS Foundation Trust,08/01/2021,(81400) Medical Surgical Supplies & Equipment,(id:42379) Clinical Imaging & Med Physics,TENACORE UK LTD,id:13554489  ,1390.00
Department of Health,Guys and St Thomas NHS Foundation Trust,28/01/2021,(81200) Medical Surgical Supplies & Equipment,(id:42379) Clinical Imaging & Med Physics,TENACORE UK LTD,id:13659261  ,2634.00
Department of Health,Guys and St Thomas NHS Foundation Trust,28/01/2021,(81200) Medical Surgical Supplies & Equipment,(id:42379) Clinical Imaging & Med Physics,SEAWARD ELECTRONICS LTD,id:13653296    , 108.00
Department of Health,Guys and St Thomas NHS Foundation Trust,22/01/2021,(81200) Medical Surgical Supplies & Equipment,(id:42379) Clinical Imaging & Med Physics,THERAPY EQUIPMENT LTD,id:13588468 ,  21.00
Department of Health,Guys and St Thomas NHS Foundation Trust,22/01/2021,(81200) Medical Surgical Supplies & Equipment,(id:42379) Clinical Imaging & Med Physics,PLINTH MEDICAL LTD,id:13645974    ,1230.00
Department of Health,Guys and St Thomas NHS Foundation Trust,21/01/2021,(52062) Radiographers,(id:42377) Clinical Imaging & Med Physics,PRICEWATERHOUSECOOPERS LLP,id:13658775,1263.82
Department of Health,Guys and St Thomas NHS Foundation Trust,05/01/2021,(52062) Radiographers,(id:42377) Clinical Imaging & Med Physics,PRICEWATERHOUSECOOPERS LLP,id:13601079,1778.94
Department of Health,Guys and St Thomas NHS Foundation Trust,27/01/2021,(52062) Radiographers,(id:42377) Clinical Imaging & Med Physics,PRICEWATERHOUSECOOPERS LLP,id:13693838,1266.90
Department of Health,Guys and St Thomas NHS Foundation Trust,28/01/2021,(81200) Medical Surgical Supplies & Equipment,(id:42376) Clinical Imaging & Med Physics,HEALTH & SAFETY EXECUTIVE,id:13693894  , 800.70
Department of Health,Guys and St Thomas NHS Foundation Trust,22/01/2021,(89120) Other - Legal fees,(id:42375) Clinical Imaging & Med Physics,BEACHCROFT LLP OFFICE ACCOUNT,id:13658394  ,8605.65
Department of Health,Guys and St Thomas NHS Foundation Trust,08/01/2021,(81250) Medical Surgical Supplies & Equipment,(id:1348419) Clinical Imaging & Med Physics,AQUILANT LTD,id:13544898   ,4824.00
Department of Health,Guys and St Thomas NHS Foundation Trust,28/01/2021,(81200) Medical Surgical Supplies & Equipment,(id:1348419) Clinical Imaging & Med Physics,MACROMED (UK) LTD,id:13687834   ,6030.00
Department of Health,Guys and St Thomas NHS Foundation Trust,08/01/2021,(81200) Medical Surgical Supplies & Equipment,(id:1348419) Clinical Imaging & Med Physics,COOK UK LTD,id:13569505    ,2520.00
Department of Health,Guys and St Thomas NHS Foundation Trust,08/01/2021,(81500) X Ray Equipment Purchase,(id:1348419) Clinical Imaging & Med Physics,MEDTRONIC LTD,id:13594175, 900.00
Department of Health,Guys and St Thomas NHS Foundation Trust,15/01/2021,(84500) Establishment,(id:42256) Integrated Local Services,CDP  PRINT MANAGEMENT,id:13614396,  24.80
Department of Health,Guys and St Thomas NHS Foundation Trust,28/01/2021,(89000) Other - Training courses and conferences,(id:42255) Integrated Local Services,MANCHESTER UNIVERSITY NHS FOUNDATION TRUST,id:13669714  ,1400.00
Department of Health,Guys and St Thomas NHS Foundation Trust,15/01/2021,(84500) Establishment,(id:590587) Integrated Local Services,CDP  PRINT MANAGEMENT,id:13614400    ,  65.10
Department of Health,Guys and St Thomas NHS Foundation Trust,15/01/2021,(84500) Establishment,(id:590427) Integrated Local Services,CDP  PRINT MANAGEMENT,id:13614398    ,   3.10
Department of Health,Guys and St Thomas NHS Foundation Trust,15/01/2021,(84500) Establishment,(id:590601) Integrated Local Services,CDP  PRINT MANAGEMENT,id:13614398    ,  20.10
Department of Health,Guys and St Thomas NHS Foundation Trust,28/01/2021,(81700) Lab Equipment Purchase,(id:590563) Integrated Local Services,NHS SUPPLY CHAIN (MAIDSTONE),id:13598214   ,  16.20
Department of Health,Guys and St Thomas NHS Foundation Trust,15/01/2021,(84500) Establishment,(id:590563) Integrated Local Services,CDP  PRINT MANAGEMENT,id:13614400    ,  15.50
Department of Health,Guys and St Thomas NHS Foundation Trust,08/01/2021,(50562) Qualified Nursing Staff,(id:590563) Integrated Local Services,CONTINENTAL NURSE LTD,id:13611773    ,2393.56
Department of Health,Guys and St Thomas NHS Foundation Trust,15/01/2021,(84500) Establishment,(id:839420) Integrated Local Services,CDP  PRINT MANAGEMENT,id:13614394    ,   3.60
Department of Health,Guys and St Thomas NHS Foundation Trust,21/01/2021,(53072) Speech Therapists,(id:590495) Integrated Local Services,PRICEWATERHOUSECOOPERS LLP,id:13658775,  12.52
Department of Health,Guys and St Thomas NHS Foundation Trust,26/01/2021,(82600) Uniforms & Clothing,(id:590494) Integrated Local Services,GSTT PROCUREMENT CARD,id:13687619   ,  37.89
Department of Health,Guys and St Thomas NHS Foundation Trust,14/01/2021,(51862) Physiotherapists,(id:1885422) Integrated Local Services,PRICEWATERHOUSECOOPERS LLP,id:13628959,1563.13
Department of Health,Guys and St Thomas NHS Foundation Trust,28/01/2021,(81100) Dressings,(id:1885424) Integrated Local Services,NHS SUPPLY CHAIN (MAIDSTONE),id:13578141, 471.99
Department of Health,Guys and St Thomas NHS Foundation Trust,15/01/2021,(50562) Qualified Nursing Staff,(id:1885424) Integrated Local Services,MSI GROUP LTD,id:13629253 ,1330.07
Department of Health,Guys and St Thomas NHS Foundation Trust,08/01/2021,(50562) Qualified Nursing Staff,(id:1885424) Integrated Local Services,MSI GROUP LTD,id:13611577 , 740.92
Department of Health,Guys and St Thomas NHS Foundation Trust,05/01/2021,(51872) Physiotherapists,(id:1371419) Integrated Local Services,PRICEWATERHOUSECOOPERS LLP,id:13601079,1227.36
Department of Health,Guys and St Thomas NHS Foundation Trust,22/01/2021,(50562) Qualified Nursing Staff,(id:699422) Integrated Local Services,MSI GROUP LTD,id:13661630  ,1073.64
Department of Health,Guys and St Thomas NHS Foundation Trust,15/01/2021,(50572) Qualified Nursing Staff,(id:699422) Integrated Local Services,MSI GROUP LTD,id:13629408  ,1303.75
Department of Health,Guys and St Thomas NHS Foundation Trust,08/01/2021,(50572) Qualified Nursing Staff,(id:699422) Integrated Local Services,MSI GROUP LTD,id:13611630  ,1311.94
Department of Health,Guys and St Thomas NHS Foundation Trust,08/01/2021,(50572) Qualified Nursing Staff,(id:699422) Integrated Local Services,MSI GROUP LTD,id:13563615  ,1351.19
Department of Health,Guys and St Thomas NHS Foundation Trust,05/01/2021,(51832) Physiotherapists,(id:699422) Integrated Local Services,PRICEWATERHOUSECOOPERS LLP,id:13601079 ,7002.52
Department of Health,Guys and St Thomas NHS Foundation Trust,15/01/2021,(84500) Establishment,(id:590492) Integrated Local Services,CDP  PRINT MANAGEMENT,id:13614396    ,  27.90
Department of Health,Guys and St Thomas NHS Foundation Trust,05/01/2021,(53072) Speech Therapists,(id:1888419) Integrated Local Services,PRICEWATERHOUSECOOPERS LLP,id:13601079    ,1133.90
Department of Health,Guys and St Thomas NHS Foundation Trust,28/01/2021,(82800) Bedding & Linen,(id:590504) Integrated Local Services,NHS SUPPLY CHAIN (MAIDSTONE),id:13578141, 103.68
Department of Health,Guys and St Thomas NHS Foundation Trust,27/01/2021,(51862) Physiotherapists,(id:590504) Integrated Local Services,PRICEWATERHOUSECOOPERS LLP,id:13693838 ,4899.24
Department of Health,Guys and St Thomas NHS Foundation Trust,14/01/2021,(51872) Physiotherapists,(id:684419) Integrated Local Services,PRICEWATERHOUSECOOPERS LLP,id:13628959 ,1449.64
Department of Health,Guys and St Thomas NHS Foundation Trust,15/01/2021,(84500) Establishment,(id:590503) Integrated Local Services,CDP  PRINT MANAGEMENT,id:13614400    ,   6.20
Department of Health,Guys and St Thomas NHS Foundation Trust,28/01/2021,(81200) Medical Surgical Supplies & Equipment,(id:590522) Integrated Local Services,NHS SUPPLY CHAIN (MAIDSTONE),id:13589614   , 251.54
Department of Health,Guys and St Thomas NHS Foundation Trust,28/01/2021,(83400) Office Equipment,(id:590522) Integrated Local Services,NHS SUPPLY CHAIN (MAIDSTONE),id:13578141    , 180.00
Department of Health,Guys and St Thomas NHS Foundation Trust,15/01/2021,(84500) Establishment,(id:590522) Integrated Local Services,CDP  PRINT MANAGEMENT,id:13614394    ,   6.20
Department of Health,Guys and St Thomas NHS Foundation Trust,15/01/2021,(84500) Establishment,(id:590522) Integrated Local Services,CDP  PRINT MANAGEMENT,id:13614400    ,  12.40
Department of Health,Guys and St Thomas NHS Foundation Trust,15/01/2021,(81700) Lab Equipment Purchase,(id:590522) Integrated Local Services,NHS SUPPLY CHAIN (MAIDSTONE),id:13544798   ,  46.44
Department of Health,Guys and St Thomas NHS Foundation Trust,15/01/2021,(81700) Lab Equipment Purchase,(id:590522) Integrated Local Services,NHS SUPPLY CHAIN (MAIDSTONE),id:13559981   ,1296.00
Department of Health,Guys and St Thomas NHS Foundation Trust,28/01/2021,(81230) Medical Surgical Supplies & Equipment,(id:590522) Integrated Local Services,NHS SUPPLY CHAIN (MAIDSTONE),id:13578141   , 281.82
Department of Health,Guys and St Thomas NHS Foundation Trust,15/01/2021,(82000) Provisions & Kitchens,(id:590521) Integrated Local Services,NHS SUPPLY CHAIN (MAIDSTONE),id:13559981    ,  55.30
Department of Health,Guys and St Thomas NHS Foundation Trust,15/01/2021,(81200) Medical Surgical Supplies & Equipment,(id:590521) Integrated Local Services,NHS SUPPLY CHAIN (MAIDSTONE),id:13559981   ,1303.97
Department of Health,Guys and St Thomas NHS Foundation Trust,15/01/2021,(81100) Dressings,(id:590521) Integrated Local Services,NHS SUPPLY CHAIN (MAIDSTONE),id:13559981 ,  12.60
Department of Health,Guys and St Thomas NHS Foundation Trust,28/01/2021,(81200) Medical Surgical Supplies & Equipment,(id:590520) Integrated Local Services,NHS SUPPLY CHAIN (MAIDSTONE),id:13578141   , 104.87
Department of Health,Guys and St Thomas NHS Foundation Trust,15/01/2021,(81200) Medical Surgical Supplies & Equipment,(id:590520) Integrated Local Services,NHS SUPPLY CHAIN (MAIDSTONE),id:13559981   , 325.08
Department of Health,Guys and St Thomas NHS Foundation Trust,15/01/2021,(82800) Bedding & Linen,(id:590520) Integrated Local Services,NHS SUPPLY CHAIN (MAIDSTONE),id:13559981, 314.09
Department of Health,Guys and St Thomas NHS Foundation Trust,15/01/2021,(50552) Qualified Nursing Staff,(id:590520) Integrated Local Services,CARE PROVIDERS HEALTHCARE,id:13635037, 795.00
Department of Health,Guys and St Thomas NHS Foundation Trust,08/01/2021,(50552) Qualified Nursing Staff,(id:590520) Integrated Local Services,YOUR WORLD RECRUITMENT LIMITED(YOUR WORLD HEALTHCARE),id:13611705  , 987.75
Department of Health,Guys and St Thomas NHS Foundation Trust,15/01/2021,(82000) Provisions & Kitchens,(id:590520) Integrated Local Services,NHS SUPPLY CHAIN (MAIDSTONE),id:13559981    ,   9.66
Department of Health,Guys and St Thomas NHS Foundation Trust,28/01/2021,(81100) Dressings,(id:590473) Integrated Local Services,NHS SUPPLY CHAIN (MAIDSTONE),id:13578141 ,  76.51
Department of Health,Guys and St Thomas NHS Foundation Trust,28/01/2021,(82000) Provisions & Kitchens,(id:590473) Integrated Local Services,NHS SUPPLY CHAIN (MAIDSTONE),id:13589614    ,  64.51
Department of Health,Guys and St Thomas NHS Foundation Trust,15/01/2021,(81200) Medical Surgical Supplies & Equipment,(id:590471) Integrated Local Services,NHS SUPPLY CHAIN (MAIDSTONE),id:13559981   , 129.34
Department of Health,Guys and St Thomas NHS Foundation Trust,15/01/2021,(82800) Bedding & Linen,(id:590463) Integrated Local Services,NHS SUPPLY CHAIN (MAIDSTONE),id:13544798,  25.20
Department of Health,Guys and St Thomas NHS Foundation Trust,28/01/2021,(82000) Provisions & Kitchens,(id:590463) Integrated Local Services,NHS SUPPLY CHAIN (MAIDSTONE),id:13578141    ,  33.86
Department of Health,Guys and St Thomas NHS Foundation Trust,28/01/2021,(81100) Dressings,(id:590463) Integrated Local Services,NHS SUPPLY CHAIN (MAIDSTONE),id:13589614 , 102.50
Department of Health,Guys and St Thomas NHS Foundation Trust,15/01/2021,(81255) Medical Surgical Supplies & Equipment,(id:590463) Integrated Local Services,NHS SUPPLY CHAIN (MAIDSTONE),id:13544798   ,  47.81
Department of Health,Guys and St Thomas NHS Foundation Trust,28/01/2021,(82000) Provisions & Kitchens,(id:590527) Integrated Local Services,NHS SUPPLY CHAIN (MAIDSTONE),id:13578141    ,  67.12
Department of Health,Guys and St Thomas NHS Foundation Trust,28/01/2021,(81100) Dressings,(id:590527) Integrated Local Services,NHS SUPPLY CHAIN (MAIDSTONE),id:13598214 , 204.94
Department of Health,Guys and St Thomas NHS Foundation Trust,22/01/2021,(89270) Establishment,(id:590527) Integrated Local Services,ASSIST SECURITY LIMITED,id:13563754  ,1620.00
Department of Health,Guys and St Thomas NHS Foundation Trust,22/01/2021,(89270) Establishment,(id:590527) Integrated Local Services,ASSIST SECURITY LIMITED,id:13489754  ,1620.00
Department of Health,Guys and St Thomas NHS Foundation Trust,15/01/2021,(84500) Establishment,(id:590526) Integrated Local Services,CDP  PRINT MANAGEMENT,id:13614400    ,  40.20
Department of Health,Guys and St Thomas NHS Foundation Trust,15/01/2021,(84500) Establishment,(id:590526) Integrated Local Services,CDP  PRINT MANAGEMENT,id:13614397    ,   3.60
Department of Health,Guys and St Thomas NHS Foundation Trust,15/01/2021,(83400) Office Equipment,(id:590526) Integrated Local Services,NHS SUPPLY CHAIN (MAIDSTONE),id:13544798    ,  32.98
Department of Health,Guys and St Thomas NHS Foundation Trust,15/01/2021,(84500) Establishment,(id:1379420) Integrated Local Services,CDP  PRINT MANAGEMENT,id:13614400   ,  21.60
Department of Health,Guys and St Thomas NHS Foundation Trust,15/01/2021,(82000) Provisions & Kitchens,(id:903421) Integrated Local Services,NHS SUPPLY CHAIN (MAIDSTONE),id:13544798    ,   7.80
Department of Health,Guys and St Thomas NHS Foundation Trust,21/01/2021,(51872) Physiotherapists,(id:903421) Integrated Local Services,PRICEWATERHOUSECOOPERS LLP,id:13658775 ,1334.07
Department of Health,Guys and St Thomas NHS Foundation Trust,22/01/2021,(50552) Qualified Nursing Staff,(id:4263421) Integrated Local Services,MSI GROUP LTD,id:13661629 , 581.63
Department of Health,Guys and St Thomas NHS Foundation Trust,08/01/2021,(50552) Qualified Nursing Staff,(id:4263421) Integrated Local Services,MSI GROUP LTD,id:13611845 , 581.62
Department of Health,Guys and St Thomas NHS Foundation Trust,28/01/2021,(82700) Uniforms & Clothing,(id:42518) Evelina Womens Services,NHS SUPPLY CHAIN (MAIDSTONE),id:13578141    ,  24.50
Department of Health,Guys and St Thomas NHS Foundation Trust,28/01/2021,(82800) Bedding & Linen,(id:42518) Evelina Womens Services,NHS SUPPLY CHAIN (MAIDSTONE),id:13578141   ,  28.79
Department of Health,Guys and St Thomas NHS Foundation Trust,28/01/2021,(82800) Bedding & Linen,(id:42518) Evelina Womens Services,NHS SUPPLY CHAIN (MAIDSTONE),id:13589614   ,   5.02
Department of Health,Guys and St Thomas NHS Foundation Trust,15/01/2021,(82800) Bedding & Linen,(id:42517) Evelina Womens Services,NHS SUPPLY CHAIN (MAIDSTONE),id:13559981   ,  83.78
Department of Health,Guys and St Thomas NHS Foundation Trust,15/01/2021,(55042) Admin & Clerical,(id:42517) Evelina Womens Services,VENN GROUP LTD,id:13629368 ,3353.42
Department of Health,Guys and St Thomas NHS Foundation Trust,28/01/2021,(89270) Establishment,(id:42517) Evelina Womens Services,HUMAN FERTILISATION & EMBRYOLOGY AUTHORITY (HFEA),id:13688534    , 750.00
Department of Health,Guys and St Thomas NHS Foundation Trust,08/01/2021,(89270) Establishment,(id:42517) Evelina Womens Services,GOSIA HEELEY FERTILITY COUNCELLING,id:13594234    , 900.00
Department of Health,Guys and St Thomas NHS Foundation Trust,22/01/2021,(81200) Medical Surgical Supplies & Equipment,(id:42517) Evelina Womens Services,VITROLIFE LTD,id:13647435 ,4880.16
Department of Health,Guys and St Thomas NHS Foundation Trust,15/01/2021,(81200) Medical Surgical Supplies & Equipment,(id:42517) Evelina Womens Services,MANN+HUMMEL VOKES AIR LTD,id:13617157    ,3225.20
Department of Health,Guys and St Thomas NHS Foundation Trust,15/01/2021,(84500) Establishment,(id:42514) Evelina Womens Services,CDP  PRINT MANAGEMENT,id:13614400  ,  80.60
Department of Health,Guys and St Thomas NHS Foundation Trust,15/01/2021,(84500) Establishment,(id:42514) Evelina Womens Services,CDP  PRINT MANAGEMENT,id:13614397  ,   6.20
Department of Health,Guys and St Thomas NHS Foundation Trust,28/01/2021,(83400) Office Equipment,(id:42513) Evelina Womens Services,NHS SUPPLY CHAIN (MAIDSTONE),id:13598214  ,  80.83
Department of Health,Guys and St Thomas NHS Foundation Trust,15/01/2021,(81100) Dressings,(id:42513) Evelina Womens Services,NHS SUPPLY CHAIN (MAIDSTONE),id:13544798    , 262.74
Department of Health,Guys and St Thomas NHS Foundation Trust,15/01/2021,(82000) Provisions & Kitchens,(id:42513) Evelina Womens Services,NHS SUPPLY CHAIN (MAIDSTONE),id:13544798  , 167.03
Department of Health,Guys and St Thomas NHS Foundation Trust,08/01/2021,(81200) Medical Surgical Supplies & Equipment,(id:42511) Evelina Womens Services,OLYMPUS KEYMED,id:13613735,2419.52
Department of Health,Guys and St Thomas NHS Foundation Trust,28/01/2021,(83400) Office Equipment,(id:42510) Evelina Womens Services,NHS SUPPLY CHAIN (MAIDSTONE),id:13589614  ,   9.56
Department of Health,Guys and St Thomas NHS Foundation Trust,15/01/2021,(83400) Office Equipment,(id:42510) Evelina Womens Services,NHS SUPPLY CHAIN (MAIDSTONE),id:13559981  ,  84.26
Department of Health,Guys and St Thomas NHS Foundation Trust,15/01/2021,(83400) Office Equipment,(id:42510) Evelina Womens Services,NHS SUPPLY CHAIN (MAIDSTONE),id:13544798  , 268.10
Department of Health,Guys and St Thomas NHS Foundation Trust,28/01/2021,(82800) Bedding & Linen,(id:42510) Evelina Womens Services,NHS SUPPLY CHAIN (MAIDSTONE),id:13598214   ,  52.44
Department of Health,Guys and St Thomas NHS Foundation Trust,28/01/2021,(81100) Dressings,(id:42510) Evelina Womens Services,NHS SUPPLY CHAIN (MAIDSTONE),id:13598214    ,  38.13
Department of Health,Guys and St Thomas NHS Foundation Trust,15/01/2021,(81275) Medical Surgical Supplies & Equipment,(id:42510) Evelina Womens Services,NHS SUPPLY CHAIN (MAIDSTONE),id:13559981 ,   5.93
Department of Health,Guys and St Thomas NHS Foundation Trust,15/01/2021,(81700) Lab Equipment Purchase,(id:42510) Evelina Womens Services,NHS SUPPLY CHAIN (MAIDSTONE),id:13544798 ,   6.34
Department of Health,Guys and St Thomas NHS Foundation Trust,28/01/2021,(81700) Lab Equipment Purchase,(id:42510) Evelina Womens Services,NHS SUPPLY CHAIN (MAIDSTONE),id:13578141 , 106.30
Department of Health,Guys and St Thomas NHS Foundation Trust,15/01/2021,(84500) Establishment,(id:42509) Evelina Womens Services,CDP  PRINT MANAGEMENT,id:13614394  ,  19.10
Department of Health,Guys and St Thomas NHS Foundation Trust,22/01/2021,(81200) Medical Surgical Supplies & Equipment,(id:42509) Evelina Womens Services,OLYMPUS KEYMED,id:13567704,2419.52
Department of Health,Guys and St Thomas NHS Foundation Trust,08/01/2021,(81200) Medical Surgical Supplies & Equipment,(id:42509) Evelina Womens Services,MEDTRONIC LTD,id:13546015 ,1274.40
Department of Health,Guys and St Thomas NHS Foundation Trust,08/01/2021,(81200) Medical Surgical Supplies & Equipment,(id:42509) Evelina Womens Services,OLYMPUS KEYMED,id:13584010,4736.44
Department of Health,Guys and St Thomas NHS Foundation Trust,15/01/2021,(84500) Establishment,(id:42506) Evelina Womens Services,CDP  PRINT MANAGEMENT,id:13614400  ,  41.70
Department of Health,Guys and St Thomas NHS Foundation Trust,15/01/2021,(81200) Medical Surgical Supplies & Equipment,(id:42506) Evelina Womens Services,SCHULTZ MEDICAL (UK) LTD,id:13620529,1218.00
Department of Health,Guys and St Thomas NHS Foundation Trust,28/01/2021,(83400) Office Equipment,(id:42506) Evelina Womens Services,NHS SUPPLY CHAIN (MAIDSTONE),id:13578141  , 189.81
Department of Health,Guys and St Thomas NHS Foundation Trust,28/01/2021,(81700) Lab Equipment Purchase,(id:42506) Evelina Womens Services,NHS SUPPLY CHAIN (MAIDSTONE),id:13578141 ,  50.52
Department of Health,Guys and St Thomas NHS Foundation Trust,15/01/2021,(81200) Medical Surgical Supplies & Equipment,(id:42486) Evelina Womens Services,NHS SUPPLY CHAIN (MAIDSTONE),id:13559981 ,  10.75
Department of Health,Guys and St Thomas NHS Foundation Trust,28/01/2021,(81200) Medical Surgical Supplies & Equipment,(id:42486) Evelina Womens Services,NHS SUPPLY CHAIN (MAIDSTONE),id:13578141 ,    .85
Department of Health,Guys and St Thomas NHS Foundation Trust,28/01/2021,(81200) Medical Surgical Supplies & Equipment,(id:42486) Evelina Womens Services,NHS SUPPLY CHAIN (MAIDSTONE),id:13589614 ,  10.18
Department of Health,Guys and St Thomas NHS Foundation Trust,08/01/2021,(81400) Medical Surgical Supplies & Equipment,(id:42486) Evelina Womens Services,NHS SUPPLY CHAIN ( CAPITAL FUND ONLY),id:13603985  , 716.50
Department of Health,Guys and St Thomas NHS Foundation Trust,28/01/2021,(83400) Office Equipment,(id:42486) Evelina Womens Services,NHS SUPPLY CHAIN (MAIDSTONE),id:13578141  ,  34.55
Department of Health,Guys and St Thomas NHS Foundation Trust,22/01/2021,(80200) Drug Costs,(id:42486) Evelina Womens Services,THERMO FISHER DIAGNOSTICS LTD,id:13661177  ,6078.14
Department of Health,Guys and St Thomas NHS Foundation Trust,15/01/2021,(81100) Dressings,(id:42488) Evelina Womens Services,NHS SUPPLY CHAIN (MAIDSTONE),id:13544798    ,  20.45
Department of Health,Guys and St Thomas NHS Foundation Trust,28/01/2021,(82800) Bedding & Linen,(id:42488) Evelina Womens Services,NHS SUPPLY CHAIN (MAIDSTONE),id:13589614   , 137.17
Department of Health,Guys and St Thomas NHS Foundation Trust,15/01/2021,(82800) Bedding & Linen,(id:42488) Evelina Womens Services,NHS SUPPLY CHAIN (MAIDSTONE),id:13544798   ,  33.47
Department of Health,Guys and St Thomas NHS Foundation Trust,28/01/2021,(82800) Bedding & Linen,(id:42496) Evelina Womens Services,NHS SUPPLY CHAIN (MAIDSTONE),id:13598214   ,  38.56
Department of Health,Guys and St Thomas NHS Foundation Trust,15/01/2021,(81200) Medical Surgical Supplies & Equipment,(id:42496) Evelina Womens Services,NHS SUPPLY CHAIN (MAIDSTONE),id:13559981 ,  68.64
Department of Health,Guys and St Thomas NHS Foundation Trust,28/01/2021,(81200) Medical Surgical Supplies & Equipment,(id:42496) Evelina Womens Services,NHS SUPPLY CHAIN (MAIDSTONE),id:13598214 ,  68.16
Department of Health,Guys and St Thomas NHS Foundation Trust,15/01/2021,(81100) Dressings,(id:42496) Evelina Womens Services,NHS SUPPLY CHAIN (MAIDSTONE),id:13544798    ,   3.26
Department of Health,Guys and St Thomas NHS Foundation Trust,08/01/2021,(81000) Surgical Appliances,(id:42495) Evelina Womens Services,TALAR MADE ORTHOTICS LTD,id:13589136   , 588.00
Department of Health,Guys and St Thomas NHS Foundation Trust,28/01/2021,(82700) Uniforms & Clothing,(id:42493) Evelina Womens Services,NHS SUPPLY CHAIN (MAIDSTONE),id:13589614    ,  52.97
Department of Health,Guys and St Thomas NHS Foundation Trust,28/01/2021,(83400) Office Equipment,(id:42493) Evelina Womens Services,NHS SUPPLY CHAIN (MAIDSTONE),id:13598214  ,  47.43
Department of Health,Guys and St Thomas NHS Foundation Trust,15/01/2021,(82800) Bedding & Linen,(id:42493) Evelina Womens Services,NHS SUPPLY CHAIN (MAIDSTONE),id:13559981   , 108.76
Department of Health,Guys and St Thomas NHS Foundation Trust,28/01/2021,(80010) Drug Costs,(id:42493) Evelina Womens Services,NHS SUPPLY CHAIN (MAIDSTONE),id:13598214   ,  19.44
Department of Health,Guys and St Thomas NHS Foundation Trust,15/01/2021,(81200) Medical Surgical Supplies & Equipment,(id:42493) Evelina Womens Services,NHS SUPPLY CHAIN (MAIDSTONE),id:13544798 , 338.99
Department of Health,Guys and St Thomas NHS Foundation Trust,28/01/2021,(82700) Uniforms & Clothing,(id:42492) Evelina Womens Services,NHS SUPPLY CHAIN (MAIDSTONE),id:13589614    , 148.15
Department of Health,Guys and St Thomas NHS Foundation Trust,08/01/2021,(50532) Unqualified Nursing Staff,(id:42492) Evelina Womens Services,GLOBE LOCUMS LTD,id:13611886, 260.15
Department of Health,Guys and St Thomas NHS Foundation Trust,15/01/2021,(81100) Dressings,(id:42492) Evelina Womens Services,NHS SUPPLY CHAIN (MAIDSTONE),id:13544798    ,1659.53
Department of Health,Guys and St Thomas NHS Foundation Trust,28/01/2021,(81100) Dressings,(id:42492) Evelina Womens Services,NHS SUPPLY CHAIN (MAIDSTONE),id:13589614    ,3550.43
Department of Health,Guys and St Thomas NHS Foundation Trust,15/01/2021,(81200) Medical Surgical Supplies & Equipment,(id:42492) Evelina Womens Services,NHS SUPPLY CHAIN (MAIDSTONE),id:13559981 ,4761.94
Department of Health,Guys and St Thomas NHS Foundation Trust,15/01/2021,(81225) Medical Surgical Supplies & Equipment,(id:42492) Evelina Womens Services,NHS SUPPLY CHAIN (MAIDSTONE),id:13559981 ,  70.05
Department of Health,Guys and St Thomas NHS Foundation Trust,28/01/2021,(81700) Lab Equipment Purchase,(id:42492) Evelina Womens Services,NHS SUPPLY CHAIN (MAIDSTONE),id:13598214 ,  60.95
Department of Health,Guys and St Thomas NHS Foundation Trust,28/01/2021,(82700) Uniforms & Clothing,(id:42491) Evelina Womens Services,NHS SUPPLY CHAIN (MAIDSTONE),id:13578141    ,  21.84
Department of Health,Guys and St Thomas NHS Foundation Trust,28/01/2021,(82700) Uniforms & Clothing,(id:42491) Evelina Womens Services,NHS SUPPLY CHAIN (MAIDSTONE),id:13598214    ,  21.84
Department of Health,Guys and St Thomas NHS Foundation Trust,08/01/2021,(50522) Unqualified Nursing Staff,(id:42491) Evelina Womens Services,GENEVA HEALTH INTERNATIONAL LIMITED,id:13596002 , 259.97
Department of Health,Guys and St Thomas NHS Foundation Trust,28/01/2021,(81200) Medical Surgical Supplies & Equipment,(id:42491) Evelina Womens Services,NHS SUPPLY CHAIN (MAIDSTONE),id:13578141 , 739.78
Department of Health,Guys and St Thomas NHS Foundation Trust,22/01/2021,(89595) Non-Healthcare from Foundation Trusts,(id:42504) Evelina Womens Services,CHELSEA AND WESTMINSTER HOSPITAL NHS FOUNDATION TRUST,id:13356417 , 742.69
Department of Health,Guys and St Thomas NHS Foundation Trust,15/01/2021,(84500) Establishment,(id:42504) Evelina Womens Services,CDP  PRINT MANAGEMENT,id:13614399  ,   3.10
Department of Health,Guys and St Thomas NHS Foundation Trust,28/01/2021,(83400) Office Equipment,(id:42348) Evelina Central,NHS SUPPLY CHAIN (MAIDSTONE),id:13578141, 104.36
Department of Health,Guys and St Thomas NHS Foundation Trust,28/01/2021,(81700) Lab Equipment Purchase,(id:42348) Evelina Central,NHS SUPPLY CHAIN (MAIDSTONE),id:13578141    ,  30.43
Department of Health,Guys and St Thomas NHS Foundation Trust,28/01/2021,(81700) Lab Equipment Purchase,(id:42348) Evelina Central,NHS SUPPLY CHAIN (MAIDSTONE),id:13589614    ,  43.01
Department of Health,Guys and St Thomas NHS Foundation Trust,28/01/2021,(82700) Uniforms & Clothing,(id:42331) Evelina Central,NHS SUPPLY CHAIN (MAIDSTONE),id:13589614  ,  23.26
Department of Health,Guys and St Thomas NHS Foundation Trust,28/01/2021,(83400) Office Equipment,(id:42325) Evelina Central,NHS SUPPLY CHAIN (MAIDSTONE),id:13578141,  29.76
Department of Health,Guys and St Thomas NHS Foundation Trust,15/01/2021,(83400) Office Equipment,(id:42325) Evelina Central,NHS SUPPLY CHAIN (MAIDSTONE),id:13544798,  13.73
Department of Health,Guys and St Thomas NHS Foundation Trust,08/01/2021,(89595) Non-Healthcare from Foundation Trusts,(id:4247419) Evelina Central,UNIVERSITY COLLEGE LONDON HOSPITALS NHS FOUNDATION TRUST,id:13590185    ,5022.00
Department of Health,Guys and St Thomas NHS Foundation Trust,22/01/2021,(89570) Other – Other Operating Expenditure,(id:2709419) Evelina Central,KORN WALL LTD T/A KWICKSCREEN,id:13636155  ,4264.80
Department of Health,Guys and St Thomas NHS Foundation Trust,08/01/2021,(55092) Admin & Clerical,(id:42316) Evelina Central,ALLEN LANE,id:13575062   ,4317.30
Department of Health,Guys and St Thomas NHS Foundation Trust,08/01/2021,(89640) Non-Healthcare from NHS Trusts,(id:42316) Evelina Central,NORTH MIDDLESEX UNIVERSITY HOSPITAL NHS TRUST,id:12559616    ,7048.00
Department of Health,Guys and St Thomas NHS Foundation Trust,28/01/2021,(81100) Dressings,(id:590444) Evelina Community Services,NHS SUPPLY CHAIN (MAIDSTONE),id:13578141,   2.89
Department of Health,Guys and St Thomas NHS Foundation Trust,15/01/2021,(84500) Establishment,(id:590550) Evelina Community Services,CDP  PRINT MANAGEMENT,id:13614398   ,   3.60
Department of Health,Guys and St Thomas NHS Foundation Trust,15/01/2021,(82000) Provisions & Kitchens,(id:1831419) Evelina Community Services,NHS SUPPLY CHAIN (MAIDSTONE),id:13544798  , 448.26
Department of Health,Guys and St Thomas NHS Foundation Trust,15/01/2021,(81200) Medical Surgical Supplies & Equipment,(id:590561) Evelina Community Services,NHS SUPPLY CHAIN (MAIDSTONE),id:13544798  ,  38.40
Department of Health,Guys and St Thomas NHS Foundation Trust,15/01/2021,(89280) Other - Consultancy costs,(id:590548) Evelina Community Services,ODGERS BERNDTSON,id:13623194 ,5333.00
Department of Health,Guys and St Thomas NHS Foundation Trust,28/01/2021,(82000) Provisions & Kitchens,(id:590557) Evelina Community Services,NHS SUPPLY CHAIN (MAIDSTONE),id:13578141   ,  72.66
Department of Health,Guys and St Thomas NHS Foundation Trust,15/01/2021,(82800) Bedding & Linen,(id:590446) Evelina Community Services,NHS SUPPLY CHAIN (MAIDSTONE),id:13544798    ,  51.93
Department of Health,Guys and St Thomas NHS Foundation Trust,28/01/2021,(83400) Office Equipment,(id:590545) Evelina Community Services,NHS SUPPLY CHAIN (MAIDSTONE),id:13589614   ,  28.16
Department of Health,Guys and St Thomas NHS Foundation Trust,28/01/2021,(83400) Office Equipment,(id:1210419) Evelina Community Services,NHS SUPPLY CHAIN (MAIDSTONE),id:13578141  ,  21.74
Department of Health,Guys and St Thomas NHS Foundation Trust,28/01/2021,(81400) Medical Surgical Supplies & Equipment,(id:1210419) Evelina Community Services,NHS SUPPLY CHAIN (MAIDSTONE),id:13578141 ,  30.92
Department of Health,Guys and St Thomas NHS Foundation Trust,28/01/2021,(82000) Provisions & Kitchens,(id:590541) Evelina Community Services,NHS SUPPLY CHAIN (MAIDSTONE),id:13589614   , 185.04
Department of Health,Guys and St Thomas NHS Foundation Trust,28/01/2021,(81700) Lab Equipment Purchase,(id:590541) Evelina Community Services,NHS SUPPLY CHAIN (MAIDSTONE),id:13578141  ,  14.40
Department of Health,Guys and St Thomas NHS Foundation Trust,15/01/2021,(82000) Provisions & Kitchens,(id:590539) Evelina Community Services,NHS SUPPLY CHAIN (MAIDSTONE),id:13559981   ,  77.10
Department of Health,Guys and St Thomas NHS Foundation Trust,15/01/2021,(84500) Establishment,(id:590537) Evelina Community Services,CDP  PRINT MANAGEMENT,id:13614398   ,  18.60
Department of Health,Guys and St Thomas NHS Foundation Trust,28/01/2021,(82600) Uniforms & Clothing,(id:590419) Evelina Community Services,NHS SUPPLY CHAIN (MAIDSTONE),id:13578141,  50.40
Department of Health,Guys and St Thomas NHS Foundation Trust,15/01/2021,(81200) Medical Surgical Supplies & Equipment,(id:590418) Evelina Community Services,NHS SUPPLY CHAIN (MAIDSTONE),id:13559981  ,  35.40
Department of Health,Guys and St Thomas NHS Foundation Trust,15/01/2021,(83400) Office Equipment,(id:590416) Evelina Community Services,NHS SUPPLY CHAIN (MAIDSTONE),id:13559981   ,  28.16
Department of Health,Guys and St Thomas NHS Foundation Trust,08/01/2021,(50562) Qualified Nursing Staff,(id:590540) Evelina Community Services,ARTHUR RAI MEDICAL SERVICES LTD,id:13611905   , 790.20
Department of Health,Guys and St Thomas NHS Foundation Trust,22/01/2021,(50562) Qualified Nursing Staff,(id:590540) Evelina Community Services,ARTHUR RAI MEDICAL SERVICES LTD,id:13661622   , 790.20
Department of Health,Guys and St Thomas NHS Foundation Trust,28/01/2021,(82800) Bedding & Linen,(id:590540) Evelina Community Services,NHS SUPPLY CHAIN (MAIDSTONE),id:13578141    ,  64.03
Department of Health,Guys and St Thomas NHS Foundation Trust,15/01/2021,(81100) Dressings,(id:2356419) Evelina Medicine & Neonatology,NHS SUPPLY CHAIN (MAIDSTONE),id:13559981, 107.63
Department of Health,Guys and St Thomas NHS Foundation Trust,28/01/2021,(81100) Dressings,(id:2356419) Evelina Medicine & Neonatology,NHS SUPPLY CHAIN (MAIDSTONE),id:13578141,   2.21
Department of Health,Guys and St Thomas NHS Foundation Trust,28/01/2021,(83400) Office Equipment,(id:2356419) Evelina Medicine & Neonatology,NHS SUPPLY CHAIN (MAIDSTONE),id:13589614   ,  95.90
Department of Health,Guys and St Thomas NHS Foundation Trust,15/01/2021,(83400) Office Equipment,(id:2356419) Evelina Medicine & Neonatology,NHS SUPPLY CHAIN (MAIDSTONE),id:13559981   ,  18.07
Department of Health,Guys and St Thomas NHS Foundation Trust,15/01/2021,(82600) Uniforms & Clothing,(id:2356419) Evelina Medicine & Neonatology,NHS SUPPLY CHAIN (MAIDSTONE),id:13544798,  27.00
Department of Health,Guys and St Thomas NHS Foundation Trust,28/01/2021,(81700) Lab Equipment Purchase,(id:2356419) Evelina Medicine & Neonatology,NHS SUPPLY CHAIN (MAIDSTONE),id:13578141  ,  14.02
Department of Health,Guys and St Thomas NHS Foundation Trust,28/01/2021,(81230) Medical Surgical Supplies & Equipment,(id:2356419) Evelina Medicine & Neonatology,NHS SUPPLY CHAIN (MAIDSTONE),id:13578141  , 182.70
Department of Health,Guys and St Thomas NHS Foundation Trust,08/01/2021,(82600) Uniforms & Clothing,(id:4446419) Evelina Medicine & Neonatology,LABORIE MEDICAL TECHNOLOGIES UK,id:13595154  , 856.51
Department of Health,Guys and St Thomas NHS Foundation Trust,22/01/2021,(81200) Medical Surgical Supplies & Equipment,(id:42349) Evelina Medicine & Neonatology,JOHNSON & JOHNSON MEDICAL LTD,id:13602545   , 292.97
Department of Health,Guys and St Thomas NHS Foundation Trust,15/01/2021,(81100) Dressings,(id:42349) Evelina Medicine & Neonatology,NHS SUPPLY CHAIN (MAIDSTONE),id:13544798  , 287.04
Department of Health,Guys and St Thomas NHS Foundation Trust,28/01/2021,(81275) Medical Surgical Supplies & Equipment,(id:817420) Evelina Medicine & Neonatology,RADIOMETER LTD,id:13680055  ,1460.10
Department of Health,Guys and St Thomas NHS Foundation Trust,15/01/2021,(81200) Medical Surgical Supplies & Equipment,(id:42335) Evelina Medicine & Neonatology,NHS SUPPLY CHAIN (MAIDSTONE),id:13559981    ,    21767.52
Department of Health,Guys and St Thomas NHS Foundation Trust,15/01/2021,(82000) Provisions & Kitchens,(id:42335) Evelina Medicine & Neonatology,NHS SUPPLY CHAIN (MAIDSTONE),id:13559981,  15.84
Department of Health,Guys and St Thomas NHS Foundation Trust,28/01/2021,(82000) Provisions & Kitchens,(id:42327) Evelina Medicine & Neonatology,NHS SUPPLY CHAIN (MAIDSTONE),id:13578141, 134.73
Department of Health,Guys and St Thomas NHS Foundation Trust,15/01/2021,(81200) Medical Surgical Supplies & Equipment,(id:42327) Evelina Medicine & Neonatology,NHS SUPPLY CHAIN (MAIDSTONE),id:13559981    ,    11866.78
Department of Health,Guys and St Thomas NHS Foundation Trust,22/01/2021,(81200) Medical Surgical Supplies & Equipment,(id:42327) Evelina Medicine & Neonatology,MEDACX LIMITED,id:13638114   ,3960.00
Department of Health,Guys and St Thomas NHS Foundation Trust,15/01/2021,(83400) Office Equipment,(id:42327) Evelina Medicine & Neonatology,NHS SUPPLY CHAIN (MAIDSTONE),id:13559981, 183.91
Department of Health,Guys and St Thomas NHS Foundation Trust,28/01/2021,(83400) Office Equipment,(id:42327) Evelina Medicine & Neonatology,NHS SUPPLY CHAIN (MAIDSTONE),id:13598214, 135.17
Department of Health,Guys and St Thomas NHS Foundation Trust,15/01/2021,(81230) Medical Surgical Supplies & Equipment,(id:42327) Evelina Medicine & Neonatology,VYGON (UK) LTD,id:13583487   , 579.24
Department of Health,Guys and St Thomas NHS Foundation Trust,15/01/2021,(81230) Medical Surgical Supplies & Equipment,(id:42327) Evelina Medicine & Neonatology,NHS SUPPLY CHAIN (MAIDSTONE),id:13544798    , 279.60
Department of Health,Guys and St Thomas NHS Foundation Trust,15/01/2021,(81230) Medical Surgical Supplies & Equipment,(id:42327) Evelina Medicine & Neonatology,NHS SUPPLY CHAIN (MAIDSTONE),id:13559981    , 670.80
Department of Health,Guys and St Thomas NHS Foundation Trust,15/01/2021,(80010) Drug Costs,(id:1196420) Evelina Medicine & Neonatology,DEXCOM INTERNATIONAL LTD,id:13627454   , 793.50
Department of Health,Guys and St Thomas NHS Foundation Trust,28/01/2021,(80010) Drug Costs,(id:1196420) Evelina Medicine & Neonatology,AIR LIQUIDE (HOMECARE) LTD,id:13678979 ,3438.00
Department of Health,Guys and St Thomas NHS Foundation Trust,28/01/2021,(80010) Drug Costs,(id:1196420) Evelina Medicine & Neonatology,DEXCOM INTERNATIONAL LTD,id:13687956   , 793.50
Department of Health,Guys and St Thomas NHS Foundation Trust,22/01/2021,(81200) Medical Surgical Supplies & Equipment,(id:2984419) Evelina Medicine & Neonatology,TERUMO BCT EUROPE NV/SA  (PREVIOUSLY CARIDIAN),id:13645334    ,4155.31
Department of Health,Guys and St Thomas NHS Foundation Trust,08/01/2021,(81200) Medical Surgical Supplies & Equipment,(id:2496419) Evelina Medicine & Neonatology,REMSERVE MEDICAL SUPPLIES LTD,id:13611021 , 792.00
Department of Health,Guys and St Thomas NHS Foundation Trust,15/01/2021,(81275) Medical Surgical Supplies & Equipment,(id:2496419) Evelina Medicine & Neonatology,RADIOMETER LTD,id:13628805 , 741.72
Department of Health,Guys and St Thomas NHS Foundation Trust,28/01/2021,(83400) Office Equipment,(id:2496419) Evelina Medicine & Neonatology,NHS SUPPLY CHAIN (MAIDSTONE),id:13578141   , 109.36
Department of Health,Guys and St Thomas NHS Foundation Trust,28/01/2021,(83400) Office Equipment,(id:2496419) Evelina Medicine & Neonatology,NHS SUPPLY CHAIN (MAIDSTONE),id:13598214   ,  28.02
Department of Health,Guys and St Thomas NHS Foundation Trust,15/01/2021,(82800) Bedding & Linen,(id:2496419) Evelina Medicine & Neonatology,NHS SUPPLY CHAIN (MAIDSTONE),id:13544798    ,  26.79
Department of Health,Guys and St Thomas NHS Foundation Trust,28/01/2021,(81255) Medical Surgical Supplies & Equipment,(id:2496419) Evelina Medicine & Neonatology,NHS SUPPLY CHAIN (MAIDSTONE),id:13589614  ,   5.76
Department of Health,Guys and St Thomas NHS Foundation Trust,28/01/2021,(82700) Uniforms & Clothing,(id:2496419) Evelina Medicine & Neonatology,NHS SUPPLY CHAIN (MAIDSTONE),id:13589614,  21.54
Department of Health,Guys and St Thomas NHS Foundation Trust,28/01/2021,(82800) Bedding & Linen,(id:41874) Evelina Medicine & Neonatology,NHS SUPPLY CHAIN (MAIDSTONE),id:13578141 ,   5.33
Department of Health,Guys and St Thomas NHS Foundation Trust,28/01/2021,(81100) Dressings,(id:41874) Evelina Medicine & Neonatology,NHS SUPPLY CHAIN (MAIDSTONE),id:13578141  ,  37.58
Department of Health,Guys and St Thomas NHS Foundation Trust,15/01/2021,(83400) Office Equipment,(id:41874) Evelina Medicine & Neonatology,NHS SUPPLY CHAIN (MAIDSTONE),id:13544798,    .76
Department of Health,Guys and St Thomas NHS Foundation Trust,15/01/2021,(81700) Lab Equipment Purchase,(id:42323) Evelina Medicine & Neonatology,NHS SUPPLY CHAIN (MAIDSTONE),id:13559981    ,  19.12
Department of Health,Guys and St Thomas NHS Foundation Trust,28/01/2021,(81200) Medical Surgical Supplies & Equipment,(id:42315) Evelina Medicine & Neonatology,NHS SUPPLY CHAIN (MAIDSTONE),id:13598214    , 261.77
Department of Health,Guys and St Thomas NHS Foundation Trust,28/01/2021,(81700) Lab Equipment Purchase,(id:42315) Evelina Medicine & Neonatology,NHS SUPPLY CHAIN (MAIDSTONE),id:13598214    ,   5.93
Department of Health,Guys and St Thomas NHS Foundation Trust,15/01/2021,(81200) Medical Surgical Supplies & Equipment,(id:4082419) Evelina Surgery Theatres & PICU,NHS SUPPLY CHAIN (MAIDSTONE),id:13544798 ,2218.01
Department of Health,Guys and St Thomas NHS Foundation Trust,15/01/2021,(82800) Bedding & Linen,(id:4082419) Evelina Surgery Theatres & PICU,NHS SUPPLY CHAIN (MAIDSTONE),id:13559981   ,  93.26
Department of Health,Guys and St Thomas NHS Foundation Trust,28/01/2021,(81100) Dressings,(id:4082419) Evelina Surgery Theatres & PICU,NHS SUPPLY CHAIN (MAIDSTONE),id:13589614    , 163.65
Department of Health,Guys and St Thomas NHS Foundation Trust,22/01/2021,(81200) Medical Surgical Supplies & Equipment,(id:42312) Evelina Surgery Theatres & PICU,CARDINAL HEALTH UK 432 LIMITED,id:13609640 , 687.60
Department of Health,Guys and St Thomas NHS Foundation Trust,15/01/2021,(81200) Medical Surgical Supplies & Equipment,(id:42312) Evelina Surgery Theatres & PICU,COOK UK LTD,id:13558294,  36.00
Department of Health,Guys and St Thomas NHS Foundation Trust,22/01/2021,(81200) Medical Surgical Supplies & Equipment,(id:42312) Evelina Surgery Theatres & PICU,BENTLEY INNOMED GMBH,id:13557054 ,2730.00
Department of Health,Guys and St Thomas NHS Foundation Trust,22/01/2021,(83500) Furniture & Fittings,(id:42312) Evelina Surgery Theatres & PICU,BHC HEALTHCARE FURNITURE,id:13652636    ,4608.00
Department of Health,Guys and St Thomas NHS Foundation Trust,15/01/2021,(81700) Lab Equipment Purchase,(id:42312) Evelina Surgery Theatres & PICU,NHS SUPPLY CHAIN (MAIDSTONE),id:13559981   ,  74.40
Department of Health,Guys and St Thomas NHS Foundation Trust,08/01/2021,(81230) Medical Surgical Supplies & Equipment,(id:42312) Evelina Surgery Theatres & PICU,COOK UK LTD,id:13558306, 450.00
Department of Health,Guys and St Thomas NHS Foundation Trust,15/01/2021,(81230) Medical Surgical Supplies & Equipment,(id:42312) Evelina Surgery Theatres & PICU,COOK UK LTD,id:13558294, 888.06
Department of Health,Guys and St Thomas NHS Foundation Trust,28/01/2021,(81230) Medical Surgical Supplies & Equipment,(id:42312) Evelina Surgery Theatres & PICU,CARDINAL HEALTH UK 432 LIMITED,id:13615255 , 342.00
Department of Health,Guys and St Thomas NHS Foundation Trust,28/01/2021,(81230) Medical Surgical Supplies & Equipment,(id:42312) Evelina Surgery Theatres & PICU,NHS SUPPLY CHAIN (MAIDSTONE),id:13578141   ,1459.30
Department of Health,Guys and St Thomas NHS Foundation Trust,15/01/2021,(81100) Dressings,(id:42312) Evelina Surgery Theatres & PICU,NHS SUPPLY CHAIN (MAIDSTONE),id:13544798 ,   3.26
Department of Health,Guys and St Thomas NHS Foundation Trust,28/01/2021,(82800) Bedding & Linen,(id:41914) Evelina Surgery Theatres & PICU,NHS SUPPLY CHAIN (MAIDSTONE),id:13598214,  62.75
Department of Health,Guys and St Thomas NHS Foundation Trust,28/01/2021,(82800) Bedding & Linen,(id:41914) Evelina Surgery Theatres & PICU,NHS SUPPLY CHAIN (MAIDSTONE),id:13589614, 128.28
Department of Health,Guys and St Thomas NHS Foundation Trust,15/01/2021,(82800) Bedding & Linen,(id:41914) Evelina Surgery Theatres & PICU,NHS SUPPLY CHAIN (MAIDSTONE),id:13559981, 175.75
Department of Health,Guys and St Thomas NHS Foundation Trust,28/01/2021,(82700) Uniforms & Clothing,(id:41914) Evelina Surgery Theatres & PICU,NHS SUPPLY CHAIN (MAIDSTONE),id:13589614 ,  13.37
Department of Health,Guys and St Thomas NHS Foundation Trust,28/01/2021,(81200) Medical Surgical Supplies & Equipment,(id:41914) Evelina Surgery Theatres & PICU,NHS SUPPLY CHAIN (MAIDSTONE),id:13578141   ,1702.08
Department of Health,Guys and St Thomas NHS Foundation Trust,28/01/2021,(81200) Medical Surgical Supplies & Equipment,(id:41914) Evelina Surgery Theatres & PICU,JOHNSON & JOHNSON MEDICAL LTD,id:13615285  , 894.12
Department of Health,Guys and St Thomas NHS Foundation Trust,15/01/2021,(81200) Medical Surgical Supplies & Equipment,(id:41914) Evelina Surgery Theatres & PICU,JOHNSON & JOHNSON MEDICAL LTD,id:13582606  , 737.15
Department of Health,Guys and St Thomas NHS Foundation Trust,15/01/2021,(81200) Medical Surgical Supplies & Equipment,(id:41914) Evelina Surgery Theatres & PICU,NHS SUPPLY CHAIN (MAIDSTONE),id:13544798   ,2315.32
Department of Health,Guys and St Thomas NHS Foundation Trust,15/01/2021,(81200) Medical Surgical Supplies & Equipment,(id:41914) Evelina Surgery Theatres & PICU,STRYKER UK LTD,id:13634614  , 504.00
Department of Health,Guys and St Thomas NHS Foundation Trust,15/01/2021,(50562) Qualified Nursing Staff,(id:41914) Evelina Surgery Theatres & PICU,MEDICSPRO LTD,id:13629401  , 533.92
Department of Health,Guys and St Thomas NHS Foundation Trust,15/01/2021,(81100) Dressings,(id:41914) Evelina Surgery Theatres & PICU,NHS SUPPLY CHAIN (MAIDSTONE),id:13544798 , 998.59
Department of Health,Guys and St Thomas NHS Foundation Trust,08/01/2021,(50552) Qualified Nursing Staff,(id:41914) Evelina Surgery Theatres & PICU,CONTINENTAL NURSE LTD,id:13611890    , 994.93
Department of Health,Guys and St Thomas NHS Foundation Trust,28/01/2021,(81700) Lab Equipment Purchase,(id:41914) Evelina Surgery Theatres & PICU,NHS SUPPLY CHAIN (MAIDSTONE),id:13578141   ,   5.93
Department of Health,Guys and St Thomas NHS Foundation Trust,15/01/2021,(81200) Medical Surgical Supplies & Equipment,(id:41910) Evelina Surgery Theatres & PICU,NHS SUPPLY CHAIN (MAIDSTONE),id:13559981   ,2800.02
Department of Health,Guys and St Thomas NHS Foundation Trust,28/01/2021,(81100) Dressings,(id:41910) Evelina Surgery Theatres & PICU,NHS SUPPLY CHAIN (MAIDSTONE),id:13598214 ,  51.58
Department of Health,Guys and St Thomas NHS Foundation Trust,15/01/2021,(81200) Medical Surgical Supplies & Equipment,(id:4622419) Evelina Surgery Theatres & PICU,TOTAL PROTECTION (UK) LTD,id:13245099    , 750.00
Department of Health,Guys and St Thomas NHS Foundation Trust,22/01/2021,(81200) Medical Surgical Supplies & Equipment,(id:1196421) Evelina Surgery Theatres & PICU,JOHNSON & JOHNSON MEDICAL LTD,id:13602344,2123.18
Department of Health,Guys and St Thomas NHS Foundation Trust,28/01/2021,(81200) Medical Surgical Supplies & Equipment,(id:1196421) Evelina Surgery Theatres & PICU,NUVASIVE UK LTD,id:13598819    ,8649.60
Department of Health,Guys and St Thomas NHS Foundation Trust,28/01/2021,(81200) Medical Surgical Supplies & Equipment,(id:1196421) Evelina Surgery Theatres & PICU,NUVASIVE UK LTD,id:13653034    ,    15126.60
Department of Health,Guys and St Thomas NHS Foundation Trust,28/01/2021,(81200) Medical Surgical Supplies & Equipment,(id:1196421) Evelina Surgery Theatres & PICU,NUVASIVE UK LTD,id:13678316    ,8649.60
Department of Health,Guys and St Thomas NHS Foundation Trust,15/01/2021,(81200) Medical Surgical Supplies & Equipment,(id:1196421) Evelina Surgery Theatres & PICU,GLOBUS MEDICAL UK,id:13186439  ,6072.00
Department of Health,Guys and St Thomas NHS Foundation Trust,08/01/2021,(81200) Medical Surgical Supplies & Equipment,(id:1196421) Evelina Surgery Theatres & PICU,STRYKER UK LTD,id:13556581, 758.40
Department of Health,Guys and St Thomas NHS Foundation Trust,08/01/2021,(81200) Medical Surgical Supplies & Equipment,(id:1196421) Evelina Surgery Theatres & PICU,ZIMMER BIOMET UK LTD,id:13594096    ,9374.40
Department of Health,Guys and St Thomas NHS Foundation Trust,15/01/2021,(81000) Surgical Appliances,(id:1196421) Evelina Surgery Theatres & PICU,NHS SUPPLY CHAIN (MAIDSTONE),id:13559981    , 484.80
Department of Health,Guys and St Thomas NHS Foundation Trust,28/01/2021,(81200) Medical Surgical Supplies & Equipment,(id:431409) Evelina Surgery Theatres & PICU,ORTHOPEDIATRICS EU LIMITED,id:13647015    , 636.00
Department of Health,Guys and St Thomas NHS Foundation Trust,28/01/2021,(81200) Medical Surgical Supplies & Equipment,(id:431409) Evelina Surgery Theatres & PICU,NHS SUPPLY CHAIN (MAIDSTONE),id:13598214  ,  52.93
Department of Health,Guys and St Thomas NHS Foundation Trust,28/01/2021,(81200) Medical Surgical Supplies & Equipment,(id:431409) Evelina Surgery Theatres & PICU,NHS SUPPLY CHAIN (MAIDSTONE),id:13578141  , 816.96
Department of Health,Guys and St Thomas NHS Foundation Trust,15/01/2021,(81200) Medical Surgical Supplies & Equipment,(id:431409) Evelina Surgery Theatres & PICU,MERCIAN SURGICAL SUPPLY CO LTD,id:13619346,1380.00
Department of Health,Guys and St Thomas NHS Foundation Trust,15/01/2021,(81200) Medical Surgical Supplies & Equipment,(id:431409) Evelina Surgery Theatres & PICU,STRYKER UK LTD,id:13497614 , 654.91
Department of Health,Guys and St Thomas NHS Foundation Trust,08/01/2021,(81200) Medical Surgical Supplies & Equipment,(id:431409) Evelina Surgery Theatres & PICU,LAVENDER MEDICAL LTD,id:13511934,1002.00
Department of Health,Guys and St Thomas NHS Foundation Trust,15/01/2021,(81000) Surgical Appliances,(id:431409) Evelina Surgery Theatres & PICU,JOHN FLORENCE LTD,id:13623745 , 842.57
Department of Health,Guys and St Thomas NHS Foundation Trust,15/01/2021,(81000) Surgical Appliances,(id:431409) Evelina Surgery Theatres & PICU,JOHN FLORENCE LTD,id:13623739 , 857.96
Department of Health,Guys and St Thomas NHS Foundation Trust,15/01/2021,(81200) Medical Surgical Supplies & Equipment,(id:468409) Evelina Surgery Theatres & PICU,NHS SUPPLY CHAIN (MAIDSTONE),id:13559981  , 366.56
Department of Health,Guys and St Thomas NHS Foundation Trust,15/01/2021,(82800) Bedding & Linen,(id:468409) Evelina Surgery Theatres & PICU,NHS SUPPLY CHAIN (MAIDSTONE),id:13559981    , 144.30
Department of Health,Guys and St Thomas NHS Foundation Trust,28/01/2021,(81550) X Ray Equipment Purchase,(id:468409) Evelina Surgery Theatres & PICU,NHS SUPPLY CHAIN (MAIDSTONE),id:13578141, 232.80
Department of Health,Guys and St Thomas NHS Foundation Trust,28/01/2021,(81235) Medical Surgical Supplies & Equipment,(id:42347) Evelina Surgery Theatres & PICU,NHS SUPPLY CHAIN (MAIDSTONE),id:13589614   , 259.20
Department of Health,Guys and St Thomas NHS Foundation Trust,15/01/2021,(81100) Dressings,(id:42347) Evelina Surgery Theatres & PICU,NHS SUPPLY CHAIN (MAIDSTONE),id:13559981 ,  53.09
Department of Health,Guys and St Thomas NHS Foundation Trust,28/01/2021,(81100) Dressings,(id:42347) Evelina Surgery Theatres & PICU,NHS SUPPLY CHAIN (MAIDSTONE),id:13578141 ,  50.34
Department of Health,Guys and St Thomas NHS Foundation Trust,15/01/2021,(81200) Medical Surgical Supplies & Equipment,(id:42347) Evelina Surgery Theatres & PICU,MEDTRONIC LTD,id:13596982   , 714.89
Department of Health,Guys and St Thomas NHS Foundation Trust,28/01/2021,(81200) Medical Surgical Supplies & Equipment,(id:42344) Evelina Surgery Theatres & PICU,NHS SUPPLY CHAIN (MAIDSTONE),id:13578141   , 295.93
Department of Health,Guys and St Thomas NHS Foundation Trust,28/01/2021,(82700) Uniforms & Clothing,(id:42339) Evelina Surgery Theatres & PICU,NHS SUPPLY CHAIN (MAIDSTONE),id:13598214 , 136.48
Department of Health,Guys and St Thomas NHS Foundation Trust,28/01/2021,(82000) Provisions & Kitchens,(id:42339) Evelina Surgery Theatres & PICU,NHS SUPPLY CHAIN (MAIDSTONE),id:13598214    , 174.56
Department of Health,Guys and St Thomas NHS Foundation Trust,15/01/2021,(84500) Establishment,(id:42339) Evelina Surgery Theatres & PICU,CDP  PRINT MANAGEMENT,id:13614396    ,  43.40
Department of Health,Guys and St Thomas NHS Foundation Trust,28/01/2021,(81200) Medical Surgical Supplies & Equipment,(id:42339) Evelina Surgery Theatres & PICU,FISHER & PAYKEL HEALTHCARE LTD,id:13647494 ,1296.00
Department of Health,Guys and St Thomas NHS Foundation Trust,28/01/2021,(80150) Drug Costs,(id:42339) Evelina Surgery Theatres & PICU,NHS SUPPLY CHAIN (MAIDSTONE),id:13578141, 706.80
Department of Health,Guys and St Thomas NHS Foundation Trust,28/01/2021,(81225) Medical Surgical Supplies & Equipment,(id:42339) Evelina Surgery Theatres & PICU,NHS SUPPLY CHAIN (MAIDSTONE),id:13598214   ,  36.84
Department of Health,Guys and St Thomas NHS Foundation Trust,28/01/2021,(81700) Lab Equipment Purchase,(id:42339) Evelina Surgery Theatres & PICU,NHS SUPPLY CHAIN (MAIDSTONE),id:13598214   ,  39.16
Department of Health,Guys and St Thomas NHS Foundation Trust,15/01/2021,(81700) Lab Equipment Purchase,(id:4755419) Evelina R&D and Charity,KING'S COLLEGE HOSPITAL NHS FOUNDATION TRUST,id:13616734   ,    19873.10
Department of Health,Guys and St Thomas NHS Foundation Trust,28/01/2021,(89270) Establishment,(id:4897419) Evelina R&D and Charity,THE MEDICAL MEDIATION FOUNDATION,id:13680674    ,1500.00
Department of Health,Guys and St Thomas NHS Foundation Trust,22/01/2021,(89000) Other - Training courses and conferences,(id:4400419) Evelina R&D and Charity,KINGS COLLEGE LONDON:03529700,id:13501435,1575.00
Department of Health,Guys and St Thomas NHS Foundation Trust,15/01/2021,(84500) Establishment,(id:42399) Evelina R&D and Charity,CDP  PRINT MANAGEMENT,id:13614398  ,  18.60
Department of Health,Guys and St Thomas NHS Foundation Trust,22/01/2021,(84500) Establishment,(id:2634419) Evelina R&D and Charity,LAMBETH PRACTICES LTD,id:13647922,4166.52
Department of Health,Guys and St Thomas NHS Foundation Trust,28/01/2021,(81100) Dressings,(id:1127419) Cardiovascular Services,NHS SUPPLY CHAIN (MAIDSTONE),id:13578141  , 425.54
Department of Health,Guys and St Thomas NHS Foundation Trust,15/01/2021,(81100) Dressings,(id:1127419) Cardiovascular Services,NHS SUPPLY CHAIN (MAIDSTONE),id:13559981  ,1694.26
Department of Health,Guys and St Thomas NHS Foundation Trust,15/01/2021,(81200) Medical Surgical Supplies & Equipment,(id:780420) Cardiovascular Services,NHS SUPPLY CHAIN (MAIDSTONE),id:13544798,1282.87
Department of Health,Guys and St Thomas NHS Foundation Trust,15/01/2021,(81700) Lab Equipment Purchase,(id:780420) Cardiovascular Services,NHS SUPPLY CHAIN (MAIDSTONE),id:13544798,  67.25
Department of Health,Guys and St Thomas NHS Foundation Trust,15/01/2021,(81700) Lab Equipment Purchase,(id:780420) Cardiovascular Services,NHS SUPPLY CHAIN (MAIDSTONE),id:13559981,  63.90
Department of Health,Guys and St Thomas NHS Foundation Trust,28/01/2021,(82000) Provisions & Kitchens,(id:780420) Cardiovascular Services,NHS SUPPLY CHAIN (MAIDSTONE),id:13598214 ,  53.40
Department of Health,Guys and St Thomas NHS Foundation Trust,22/01/2021,(50552) Qualified Nursing Staff,(id:780420) Cardiovascular Services,CONTINENTAL NURSE LTD,id:13666978 ,1820.15
Department of Health,Guys and St Thomas NHS Foundation Trust,08/01/2021,(50522) Unqualified Nursing Staff,(id:780420) Cardiovascular Services,MSI GROUP LTD,id:13611732  , 208.27
Department of Health,Guys and St Thomas NHS Foundation Trust,08/01/2021,(50522) Unqualified Nursing Staff,(id:780420) Cardiovascular Services,GLOBE LOCUMS LTD,id:13611564    , 254.67
Department of Health,Guys and St Thomas NHS Foundation Trust,08/01/2021,(81230) Medical Surgical Supplies & Equipment,(id:639421) Cardiovascular Services,COOK UK LTD,id:9977020   , 723.60
Department of Health,Guys and St Thomas NHS Foundation Trust,08/01/2021,(81200) Medical Surgical Supplies & Equipment,(id:639421) Cardiovascular Services,MEDTRONIC LTD,id:13561654, 600.00
Department of Health,Guys and St Thomas NHS Foundation Trust,08/01/2021,(81200) Medical Surgical Supplies & Equipment,(id:639421) Cardiovascular Services,COOK UK LTD,id:13569528  , 768.00
Department of Health,Guys and St Thomas NHS Foundation Trust,08/01/2021,(81200) Medical Surgical Supplies & Equipment,(id:639421) Cardiovascular Services,MEDTRONIC LTD,id:13604754,-600.00
Department of Health,Guys and St Thomas NHS Foundation Trust,28/01/2021,(81200) Medical Surgical Supplies & Equipment,(id:639421) Cardiovascular Services,MERIT MEDICAL UK LTD,id:13650685   , 718.20
Department of Health,Guys and St Thomas NHS Foundation Trust,28/01/2021,(81200) Medical Surgical Supplies & Equipment,(id:639421) Cardiovascular Services,NHS SUPPLY CHAIN (MAIDSTONE),id:13578141,3492.00
Department of Health,Guys and St Thomas NHS Foundation Trust,28/01/2021,(81200) Medical Surgical Supplies & Equipment,(id:639421) Cardiovascular Services,WL GORE & ASSOCIATES (UK) LTD,id:13693261    ,2760.00
Department of Health,Guys and St Thomas NHS Foundation Trust,22/01/2021,(81200) Medical Surgical Supplies & Equipment,(id:639421) Cardiovascular Services,CARDINAL HEALTH UK 432 LIMITED,id:13608482   , 513.00
Department of Health,Guys and St Thomas NHS Foundation Trust,15/01/2021,(84500) Establishment,(id:42299) Cardiovascular Services,CDP  PRINT MANAGEMENT,id:13614397  ,   6.20
Department of Health,Guys and St Thomas NHS Foundation Trust,28/01/2021,(82600) Uniforms & Clothing,(id:41952) Cardiovascular Services,NHS SUPPLY CHAIN (MAIDSTONE),id:13589614    ,  17.71
Department of Health,Guys and St Thomas NHS Foundation Trust,15/01/2021,(81200) Medical Surgical Supplies & Equipment,(id:41952) Cardiovascular Services,NHS SUPPLY CHAIN (MAIDSTONE),id:13559981 ,  48.34
Department of Health,Guys and St Thomas NHS Foundation Trust,28/01/2021,(83400) Office Equipment,(id:41952) Cardiovascular Services,NHS SUPPLY CHAIN (MAIDSTONE),id:13598214  ,  48.62
Department of Health,Guys and St Thomas NHS Foundation Trust,15/01/2021,(84500) Establishment,(id:41950) Cardiovascular Services,CDP  PRINT MANAGEMENT,id:13614401  ,  80.60
Department of Health,Guys and St Thomas NHS Foundation Trust,15/01/2021,(81200) Medical Surgical Supplies & Equipment,(id:41950) Cardiovascular Services,COOK UK LTD,id:13558078   ,1464.00
Department of Health,Guys and St Thomas NHS Foundation Trust,08/01/2021,(81200) Medical Surgical Supplies & Equipment,(id:41950) Cardiovascular Services,MEDTRONIC LTD,id:13570774 ,3360.00
Department of Health,Guys and St Thomas NHS Foundation Trust,08/01/2021,(81200) Medical Surgical Supplies & Equipment,(id:41950) Cardiovascular Services,COOK UK LTD,id:13558304   , 792.00
Department of Health,Guys and St Thomas NHS Foundation Trust,22/01/2021,(81200) Medical Surgical Supplies & Equipment,(id:41950) Cardiovascular Services,MEDTRONIC LTD,id:13649914 ,1680.00
Department of Health,Guys and St Thomas NHS Foundation Trust,28/01/2021,(81200) Medical Surgical Supplies & Equipment,(id:41950) Cardiovascular Services,NHS SUPPLY CHAIN (MAIDSTONE),id:13589614 ,8919.03
Department of Health,Guys and St Thomas NHS Foundation Trust,28/01/2021,(81200) Medical Surgical Supplies & Equipment,(id:41950) Cardiovascular Services,NHS SUPPLY CHAIN (MAIDSTONE),id:13578141 ,5646.88
Department of Health,Guys and St Thomas NHS Foundation Trust,08/01/2021,(81235) Medical Surgical Supplies & Equipment,(id:41950) Cardiovascular Services,BARD LTD,id:13565126 ,1251.34
Department of Health,Guys and St Thomas NHS Foundation Trust,08/01/2021,(81000) Surgical Appliances,(id:41950) Cardiovascular Services,MEDI UK LTD,id:13588444 , 584.93
Department of Health,Guys and St Thomas NHS Foundation Trust,15/01/2021,(81000) Surgical Appliances,(id:41950) Cardiovascular Services,TALAR MADE ORTHOTICS LTD,id:13624714   ,  93.00
Department of Health,Guys and St Thomas NHS Foundation Trust,15/01/2021,(81100) Dressings,(id:41950) Cardiovascular Services,NHS SUPPLY CHAIN (MAIDSTONE),id:13559981    ,  25.39
Department of Health,Guys and St Thomas NHS Foundation Trust,15/01/2021,(82800) Bedding & Linen,(id:41950) Cardiovascular Services,NHS SUPPLY CHAIN (MAIDSTONE),id:13544798   , 196.67
Department of Health,Guys and St Thomas NHS Foundation Trust,22/01/2021,(81200) Medical Surgical Supplies & Equipment,(id:41948) Cardiovascular Services,BARD LTD,id:13597815 , 610.61
Department of Health,Guys and St Thomas NHS Foundation Trust,22/01/2021,(81200) Medical Surgical Supplies & Equipment,(id:41948) Cardiovascular Services,LEMAITRE VASCULAR LTD,id:13641614   , 896.40
Department of Health,Guys and St Thomas NHS Foundation Trust,15/01/2021,(82800) Bedding & Linen,(id:41947) Cardiovascular Services,NHS SUPPLY CHAIN (MAIDSTONE),id:13559981   ,  46.82
Department of Health,Guys and St Thomas NHS Foundation Trust,28/01/2021,(82800) Bedding & Linen,(id:41947) Cardiovascular Services,NHS SUPPLY CHAIN (MAIDSTONE),id:13589614   , 143.42
Department of Health,Guys and St Thomas NHS Foundation Trust,15/01/2021,(83400) Office Equipment,(id:3923419) Cardiovascular Services,NHS SUPPLY CHAIN (MAIDSTONE),id:13559981,  12.49
Department of Health,Guys and St Thomas NHS Foundation Trust,15/01/2021,(81100) Dressings,(id:3923419) Cardiovascular Services,NHS SUPPLY CHAIN (MAIDSTONE),id:13559981  ,  19.84
Department of Health,Guys and St Thomas NHS Foundation Trust,15/01/2021,(81200) Medical Surgical Supplies & Equipment,(id:1243420) Cardiovascular Services,GE HEALTHCARE (50652318),id:13618158   ,1285.20
Department of Health,Guys and St Thomas NHS Foundation Trust,28/01/2021,(81200) Medical Surgical Supplies & Equipment,(id:42303) Cardiovascular Services,ZOLL MEDICAL UK LTD,id:13668176,2247.44
Department of Health,Guys and St Thomas NHS Foundation Trust,27/01/2021,(54072) Technical Officers,(id:42303) Cardiovascular Services,PRICEWATERHOUSECOOPERS LLP,id:13693838  ,7852.47
Department of Health,Guys and St Thomas NHS Foundation Trust,15/01/2021,(84500) Establishment,(id:42302) Cardiovascular Services,CDP  PRINT MANAGEMENT,id:13614401  ,  54.00
Department of Health,Guys and St Thomas NHS Foundation Trust,08/01/2021,(83400) Office Equipment,(id:42302) Cardiovascular Services,EDWARDS LIFESCIENCES LTD,id:13551414 ,    25530.00
Department of Health,Guys and St Thomas NHS Foundation Trust,08/01/2021,(83400) Office Equipment,(id:42302) Cardiovascular Services,EDWARDS LIFESCIENCES LTD,id:13551721 ,    25530.00
Department of Health,Guys and St Thomas NHS Foundation Trust,08/01/2021,(83400) Office Equipment,(id:42302) Cardiovascular Services,EDWARDS LIFESCIENCES LTD,id:13551394 ,    25530.00
Department of Health,Guys and St Thomas NHS Foundation Trust,08/01/2021,(83400) Office Equipment,(id:42302) Cardiovascular Services,EDWARDS LIFESCIENCES LTD,id:13607143 ,    25530.00
Department of Health,Guys and St Thomas NHS Foundation Trust,15/01/2021,(83400) Office Equipment,(id:42302) Cardiovascular Services,EDWARDS LIFESCIENCES LTD,id:13619031 ,    25530.00
Department of Health,Guys and St Thomas NHS Foundation Trust,15/01/2021,(83400) Office Equipment,(id:42302) Cardiovascular Services,EDWARDS LIFESCIENCES LTD,id:13619023 ,    25530.00
Department of Health,Guys and St Thomas NHS Foundation Trust,28/01/2021,(81200) Medical Surgical Supplies & Equipment,(id:42302) Cardiovascular Services,VASCULAR PERSPECTIVES LTD,id:13685055    , 540.00
Department of Health,Guys and St Thomas NHS Foundation Trust,28/01/2021,(81200) Medical Surgical Supplies & Equipment,(id:42302) Cardiovascular Services,CARDINAL HEALTH UK 432 LIMITED,id:13663605    ,1080.00
Department of Health,Guys and St Thomas NHS Foundation Trust,08/01/2021,(81200) Medical Surgical Supplies & Equipment,(id:42302) Cardiovascular Services,VOLCANO EUROPE BVBA/SPRL,id:13596514,1056.00
Department of Health,Guys and St Thomas NHS Foundation Trust,08/01/2021,(81200) Medical Surgical Supplies & Equipment,(id:42302) Cardiovascular Services,VOLCANO EUROPE BVBA/SPRL,id:13595574, 880.00
Department of Health,Guys and St Thomas NHS Foundation Trust,08/01/2021,(81200) Medical Surgical Supplies & Equipment,(id:42302) Cardiovascular Services,BOSTON SCIENTIFIC LTD,id:13558204   , 990.00
Department of Health,Guys and St Thomas NHS Foundation Trust,15/01/2021,(81225) Medical Surgical Supplies & Equipment,(id:42302) Cardiovascular Services,NHS SUPPLY CHAIN (MAIDSTONE),id:13559981 ,   4.85
Department of Health,Guys and St Thomas NHS Foundation Trust,22/01/2021,(81235) Medical Surgical Supplies & Equipment,(id:42302) Cardiovascular Services,CARDINAL HEALTH UK 432 LIMITED,id:13663722    , 640.80
Department of Health,Guys and St Thomas NHS Foundation Trust,08/01/2021,(81230) Medical Surgical Supplies & Equipment,(id:42302) Cardiovascular Services,BRACCO UK LTD,id:13583975 ,2400.00
Department of Health,Guys and St Thomas NHS Foundation Trust,15/01/2021,(81200) Medical Surgical Supplies & Equipment,(id:42301) Cardiovascular Services,NHS SUPPLY CHAIN (MAIDSTONE),id:13544798 ,   8.52
Department of Health,Guys and St Thomas NHS Foundation Trust,15/01/2021,(81200) Medical Surgical Supplies & Equipment,(id:42301) Cardiovascular Services,NHS SUPPLY CHAIN (MAIDSTONE),id:13559981 ,  73.08
Department of Health,Guys and St Thomas NHS Foundation Trust,28/01/2021,(82000) Provisions & Kitchens,(id:42300) Cardiovascular Services,NHS SUPPLY CHAIN (MAIDSTONE),id:13578141  , 180.49
Department of Health,Guys and St Thomas NHS Foundation Trust,15/01/2021,(84500) Establishment,(id:42300) Cardiovascular Services,CDP  PRINT MANAGEMENT,id:13614395  ,  16.50
Department of Health,Guys and St Thomas NHS Foundation Trust,28/01/2021,(83400) Office Equipment,(id:42300) Cardiovascular Services,NHS SUPPLY CHAIN (MAIDSTONE),id:13598214  ,  56.68
Department of Health,Guys and St Thomas NHS Foundation Trust,15/01/2021,(81100) Dressings,(id:42300) Cardiovascular Services,NHS SUPPLY CHAIN (MAIDSTONE),id:13544798    , 319.82
Department of Health,Guys and St Thomas NHS Foundation Trust,28/01/2021,(81255) Medical Surgical Supplies & Equipment,(id:42300) Cardiovascular Services,NHS SUPPLY CHAIN (MAIDSTONE),id:13598214 ,   1.87
Department of Health,Guys and St Thomas NHS Foundation Trust,28/01/2021,(81700) Lab Equipment Purchase,(id:42300) Cardiovascular Services,NHS SUPPLY CHAIN (MAIDSTONE),id:13598214 ,  54.53
Department of Health,Guys and St Thomas NHS Foundation Trust,15/01/2021,(81700) Lab Equipment Purchase,(id:42300) Cardiovascular Services,NHS SUPPLY CHAIN (MAIDSTONE),id:13544798 ,  46.92
Department of Health,Guys and St Thomas NHS Foundation Trust,28/01/2021,(83400) Office Equipment,(id:42298) Cardiovascular Services,NHS SUPPLY CHAIN (MAIDSTONE),id:13598214  ,  12.49
Department of Health,Guys and St Thomas NHS Foundation Trust,08/01/2021,(81200) Medical Surgical Supplies & Equipment,(id:42298) Cardiovascular Services,BOSTON SCIENTIFIC LTD,id:13546162   ,2032.20
Department of Health,Guys and St Thomas NHS Foundation Trust,08/01/2021,(81200) Medical Surgical Supplies & Equipment,(id:42298) Cardiovascular Services,ABBOTT MEDICAL UK LTD,id:13571734   , 792.00
Department of Health,Guys and St Thomas NHS Foundation Trust,22/01/2021,(81200) Medical Surgical Supplies & Equipment,(id:42298) Cardiovascular Services,MEDTRONIC LTD,id:13650684 , 960.00
Department of Health,Guys and St Thomas NHS Foundation Trust,22/01/2021,(81200) Medical Surgical Supplies & Equipment,(id:42298) Cardiovascular Services,ABBOTT MEDICAL UK LTD,id:13639494   , 588.00
Department of Health,Guys and St Thomas NHS Foundation Trust,22/01/2021,(81200) Medical Surgical Supplies & Equipment,(id:42298) Cardiovascular Services,BOSTON SCIENTIFIC LTD,id:13665938   , 768.00
Department of Health,Guys and St Thomas NHS Foundation Trust,08/01/2021,(81200) Medical Surgical Supplies & Equipment,(id:42298) Cardiovascular Services,TELEFLEX MEDICAL,id:13574144   ,1140.00
Department of Health,Guys and St Thomas NHS Foundation Trust,08/01/2021,(81200) Medical Surgical Supplies & Equipment,(id:42298) Cardiovascular Services,ABBOTT MEDICAL UK LTD,id:13605914   , 600.00
Department of Health,Guys and St Thomas NHS Foundation Trust,08/01/2021,(81200) Medical Surgical Supplies & Equipment,(id:42298) Cardiovascular Services,ABBOTT MEDICAL UK LTD,id:13607304   , 300.00
Department of Health,Guys and St Thomas NHS Foundation Trust,08/01/2021,(81200) Medical Surgical Supplies & Equipment,(id:42298) Cardiovascular Services,ABBOTT MEDICAL UK LTD,id:13590139   ,2220.00
Department of Health,Guys and St Thomas NHS Foundation Trust,08/01/2021,(81200) Medical Surgical Supplies & Equipment,(id:42298) Cardiovascular Services,MEDTRONIC LTD,id:13570634 ,2880.00
Department of Health,Guys and St Thomas NHS Foundation Trust,08/01/2021,(81200) Medical Surgical Supplies & Equipment,(id:42298) Cardiovascular Services,MEDTRONIC LTD,id:13593654 ,    14334.00
Department of Health,Guys and St Thomas NHS Foundation Trust,28/01/2021,(81200) Medical Surgical Supplies & Equipment,(id:42298) Cardiovascular Services,NHS SUPPLY CHAIN (MAIDSTONE),id:13578141 ,4312.36
Department of Health,Guys and St Thomas NHS Foundation Trust,28/01/2021,(81200) Medical Surgical Supplies & Equipment,(id:42298) Cardiovascular Services,NHS SUPPLY CHAIN (MAIDSTONE),id:13589614 ,7855.47
Department of Health,Guys and St Thomas NHS Foundation Trust,15/01/2021,(81200) Medical Surgical Supplies & Equipment,(id:42298) Cardiovascular Services,VYGON (UK) LTD,id:13626574, 586.80
Department of Health,Guys and St Thomas NHS Foundation Trust,28/01/2021,(81200) Medical Surgical Supplies & Equipment,(id:42298) Cardiovascular Services,JOHNSON & JOHNSON MEDICAL LTD,id:13621338,1260.00
Department of Health,Guys and St Thomas NHS Foundation Trust,28/01/2021,(81100) Dressings,(id:42298) Cardiovascular Services,KIMAL PLC,id:13679457   , 666.66
Department of Health,Guys and St Thomas NHS Foundation Trust,15/01/2021,(82700) Uniforms & Clothing,(id:42298) Cardiovascular Services,NHS SUPPLY CHAIN (MAIDSTONE),id:13559981    ,  55.37
Department of Health,Guys and St Thomas NHS Foundation Trust,15/01/2021,(81700) Lab Equipment Purchase,(id:42298) Cardiovascular Services,NHS SUPPLY CHAIN (MAIDSTONE),id:13544798 ,   3.14
Department of Health,Guys and St Thomas NHS Foundation Trust,15/01/2021,(81700) Lab Equipment Purchase,(id:42298) Cardiovascular Services,NHS SUPPLY CHAIN (MAIDSTONE),id:13559981 ,   5.34
Department of Health,Guys and St Thomas NHS Foundation Trust,15/01/2021,(82800) Bedding & Linen,(id:42298) Cardiovascular Services,NHS SUPPLY CHAIN (MAIDSTONE),id:13544798   ,  20.30
Department of Health,Guys and St Thomas NHS Foundation Trust,08/01/2021,(81265) Medical Surgical Supplies & Equipment,(id:42298) Cardiovascular Services,ABBOTT MEDICAL UK LTD,id:13607254   ,    13606.80
Department of Health,Guys and St Thomas NHS Foundation Trust,22/01/2021,(81240) Medical Surgical Supplies & Equipment,(id:42298) Cardiovascular Services,MEDTRONIC LTD,id:13659094 ,    12420.00
